{"text_format":"1","workbook":"xlsx","n_sheets":4,"sheets":["Trinity","OUR","US","WE"],"not_rendered":{"charts":0,"images":0,"macros":1,"external_links":0,"defined_names":0,"comments":0,"pivot_tables":0},"unopened":[],"bounds":{"document_bytes":16777216,"sheet_cells":100000,"rows_first":2000,"rows_last":500,"rows_between":2000,"halvings":0,"cell_chars":16384,"cell_head_chars":4096},"cells_cut":0,"cells_raw":0,"read":"whole","date_system":"1900"}

{"sheet":"Trinity","index":0,"n_rows":956,"n_cols":6,"rows_kept":956,"cut":false,"hidden":false,"merged":[]}
["Our","Us","We","Total","Text","Reference"]
[]
[null,null,1,{"$f":"SUM(A3:C3)","v":1},"A blessed Book that We sent down to you, that they may ponder its Verses, and for those with intelligence to take heed.","S.039:029"]
[null,1,1,{"$f":"SUM(A4:C4)","v":2},"A blessing from Us. Thus We reward the thankful.","S.055:035"]
[null,null,1,1,"A chapter that We have revealed, and made obligatory, and revealed in it clear Verses, that you may take heed.","S.025:001"]
[null,1,1,2,"A decree from Us. We have been sending messages.","S.045:005"]
[null,null,2,2,"After him, We said to the Children of Israel, \"Inhabit the land, and when the promise of the Hereafter arrives, We will bring you all together.\"","S.018:104"]
[null,null,2,2,"After him, We sent down no hosts from heaven to his people; nor would We ever send any down.","S.037:028"]
[null,null,1,1,"Alif, Lam, Ra. A Scripture that We revealed to you, that you may bring humanity from darkness to light-with the permission of their Lord-to the path of the Almighty, the Praiseworthy.","S.015:001"]
[null,1,null,1,"All of them, every single one of them, will be arraigned before Us.","S.037:032"]
[null,null,2,2,"Among the Desert-Arabs around you there are some hypocrites, and among the inhabitants of Medina too. They have become adamant in hypocrisy. You do not know them, but We know them. We will punish them twice; then they will be returned to a severe torment.","S.009:101"]
[null,null,1,1,"Among them are those who listen to you; but We place covers over their hearts, to prevent them from understanding it, and heaviness in their ears. Even if they see every sign, they will not believe in it. Until, when they come to you, to argue with you, those who disbelieve will say, \"These are nothing but myths of the ancients.\"","S.006:025"]
[null,null,1,1,"Among those We created is a community-they guide by truth, and do justice thereby.","S.007:181"]
[null,null,1,1,"And as for Thamood, We guided them, but they preferred blindness over guidance. So the thunderbolt of the humiliating punishment seized them, because of what they used to earn.","S.042:017"]
[2,null,null,2,"And build the Ark, under Our eyes, and with Our inspiration, and do not address Me regarding those who did wrong; they are to be drowned.","S.011:037"]
[null,null,1,1,"And cite for them the parable of the present life: it is like water that We send down from the sky; the plants of the earth absorb it; but then it becomes debris, scattered by the wind. God has absolute power over everything.","S.019:045"]
[null,null,3,3,"And cite for them the parable of two men. To one of them We gave two gardens of vine, and We surrounded them with palms-trees, and We placed between them crops.","S.019:032"]
[1,null,1,2,"And content yourself with those who pray to their Lord morning and evening, desiring His Presence. And do not turn your eyes away from them, desiring the glitter of this world. And do not obey him whose heart We have made heedless of Our remembrance-so he follows his own desires-and his priorities are confused.","S.019:028"]
[null,null,1,1,"And David and Solomon, when they gave judgment in the case of the field, when some people's sheep wandered therein by night; and We were witnesses to their judgment.","S.022:078"]
[null,null,1,1,"And do not come near the property of the orphan, except with the best intentions, until he reaches maturity. And give full weight and full measure, equitably. We do not burden any soul beyond its capacity. And when you speak, be fair, even if it concerns a close relative. And fulfill your covenant with God. All this He has enjoined upon you, so that you may take heed.","S.006:152"]
[null,null,2,2,"And do not extend your glance towards what We have given some classes of them to enjoy-the splendor of the life of this world-that We may test them thereby. Your Lord's provision is better, and more lasting.","S.021:131"]
[null,null,1,1,"And do not kill the soul which God has made sacred, except in the course of justice. If someone is killed unjustly, We have given his next of kin certain authority. But he should not be excessive in killing, for he will be supported.","S.018:033"]
[null,null,1,1,"And do not kill your children for fear of poverty. We provide for them, and for you. Killing them is a grave sin.","S.018:031"]
[null,null,2,2,"And exhort your people to pray, and patiently adhere to it. We ask of you no sustenance, but it is We who sustain you. The good ending is that for righteousness.","S.021:132"]
[1,null,2,3,"And for Solomon the wind-its outward journey was one month, and its return journey was one month. And We made a spring of tar flow for him. And there were sprites that worked under him, by the leave of his Lord. But whoever of them swerved from Our command, We make him taste of the punishment of the Inferno.","S.035:012"]
[null,null,1,1,"And for their taking usury, although they were forbidden it; and for their consuming people's wealth dishonestly. We have prepared for the faithless among them a painful torment.","S.004:161"]
[null,null,3,3,"And from those who say, \"We are Christians,\" We received their pledge, but they neglected some of what they were reminded of. So We provoked enmity and hatred among them until the Day of Resurrection; God will then inform them of what they used to craft.","S.005:014"]
[null,null,1,1,"And give from what We have provided for you, before death approaches one of you, and he says, \"My Lord, if only You would delay me for a short while, so that I may be charitable, and be one of the righteous.\"","S.064:010"]
[null,1,null,1,"And he produces arguments against Us, and he forgets his own creation. He says, \"Who will revive the bones when they have decayed?\"","S.037:078"]
[null,null,2,2,"And how many a city did We destroy for turning unappreciative of its livelihood? Here are their homes, uninhabited after them, except for a few. And We became the Inheritors.","S.029:058"]
[null,null,1,1,"And if We give him a taste of prosperity, after some adversity has afflicted him, he will say, \"Troubles have gone away from me.\" He becomes excited and proud.","S.011:010"]
[null,null,1,1,"And if We postponed their punishment until a stated time, they would say, \"What holds it back?\" On the Day when it reaches them, it will not be averted from them, and what they used to ridicule will besiege them.","S.011:008"]
[null,null,2,2,"And if We will, We can cripple them in their place; so they can neither move forward, nor go back.","S.037:067"]
[1,null,1,2,"And if you are in doubt about what We have revealed to Our servant, then produce a chapter like these, and call your witnesses apart from God, if you are truthful.","S.002:023"]
[null,null,1,1,"And in Aad. We unleashed against them the devastating wind.","S.052:041"]
[null,null,1,1,"And in it We created livelihoods for you, and for those for whom you are not the providers.","S.016:020"]
[null,null,1,1,"And in Moses. We sent him to Pharaoh with a clear authority.","S.052:038"]
[1,null,1,2,"And inscribe for us goodness in this world, and in the Hereafter. We have turned to You. He said, \"My punishment-I inflict it upon whomever I will, but My mercy encompasses all things. I will specify it for those who act righteously and practice regular charity, and those who believe in Our signs.\"","S.007:156"]
[null,null,1,1,"And it is He Who created the stars for you, that you may be guided by them in the darkness of land and sea. We thus explain the revelations for people who know.","S.006:097"]
[null,null,1,1,"And it is He who produced you from a single person, then a repository, then a depository. We have detailed the revelations for people who understand.","S.006:098"]
[null,null,3,3,"And it is He who sends down water from the sky. With it We produce vegetation of all kinds, from which We bring greenery, from which We produce grains in clusters. And palm-trees with hanging clusters, and vineyards, and olives, and pomegranates-similar and dissimilar. Watch their fruits as they grow and ripen. Surely in this are signs for people who believe.","S.006:099"]
[null,null,1,1,"And it is He who sends the winds, bringing advance news of His mercy; and We send down from the sky pure water.","S.026:048"]
[null,1,null,1,"And it is with Us, in the Source Book, sublime and wise.","S.044:004"]
[null,null,1,1,"And it will be said, \"Today We forget you, as you forgot the encounter of this Day of yours. Your abode is the Fire, and there are no saviors for you.","S.046:034"]
[null,null,1,1,"And Jonah, when he stormed out in fury, thinking We had no power over him. But then He cried out in the darkness, \"There is no god but You! Glory to You! I was one of the wrongdoers!\"","S.022:087"]
[1,null,1,2,"And know that whatever spoils you gain, to God belongs its fifth, and to the Messenger, and the relatives, and the orphans, and the poor, and to the wayfarer, provided you believe in God and in what We revealed to Our servant on the Day of Distinction, the day when the two armies met. God is Capable of everything.","S.008:041"]
[null,null,2,2,"And Lot-We gave him judgment and knowledge, and We delivered him from the town that practiced the abominations. They were wicked and perverted people.","S.022:074"]
[1,null,1,2,"And Mary, the daughter of Imran, who guarded her womb, and so We breathed into her of Our Spirit; and she believed in the truth of her Lord's Words and His Books, and was one of the devout.","S.067:012"]
[1,null,null,1,"And mention Our servant Job, when he called out to his Lord, \"Satan has afflicted me with hardship and pain.\"","S.039:041"]
[1,null,null,1,"And mention Our servants Abraham, Isaac, and Jacob-endowed with ability and vision.","S.039:045"]
[1,null,null,1,"And Moses chose from his people seventy men for Our appointment. When the tremor shook them, he said, \"My Lord, had You willed, You could have destroyed them before, and me too. Will you destroy us for what the fools among us have done? This is but Your test-with it You misguide whomever You will, and guide whomever You will. You are our Protector, so forgive us, and have mercy on us. You are the Best of Forgivers.\"","S.007:155"]
[null,1,1,2,"And Noah called out to Us, and We are the Best of responders.","S.038:075"]
[null,null,1,1,"And Noah, when he called before. So We answered him, and delivered him and his family from the great disaster.","S.022:076"]
[null,1,null,1,"And none of you could have restrained Us from him.","S.070:047"]
[null,null,1,1,"And of His signs is that you see the land still. But when We send down water upon it, it stirs and grows. Surely, He Who revived it will revive the dead. He is Able to do all things.","S.042:039"]
[null,null,1,1,"And of the devils were some that dived for him, and performed other, lesser tasks. But We kept them restrained.","S.022:082"]
[1,null,null,1,"And Our command is but once, like the twinkling of an eye.","S.055:050"]
[1,null,null,1,"And Our troops will be the victors.","S.038:173"]
[null,null,1,1,"And recall that We appointed for Moses forty nights. Then you took to worshiping the calf after him, and you turned wicked.","S.002:051"]
[null,null,1,1,"And recall that We delivered you from the people of Pharaoh. They inflicted on you terrible persecution, killing your sons and sparing your women. Therein was a tremendous trial from your Lord.","S.002:049"]
[null,null,1,1,"And recall that We gave Moses the Scripture and the Criterion, so that you may be guided.","S.002:053"]
[null,null,3,3,"And recall that We parted the sea for you, so We saved you, and We drowned the people of Pharaoh as you looked on.","S.002:050"]
[null,null,2,2,"And recall that We said, \"Enter this town, and eat plentifully from it whatever you wish; but enter the gate humbly, and say, 'Pardon.' We will forgive your sins, and give increase to the virtuous.\"","S.002:058"]
[null,null,1,1,"And recall when Moses prayed for water for his people. We said, \"Strike the rock with your staff.\" Thereupon twelve springs gushed out from it, and each tribe recognized its drinking-place. \"Eat and drink from God's provision, and do not corrupt the earth with disobedience.\"","S.002:060"]
[null,null,2,2,"And recall when We received a pledge from you, and raised the Mount above you: \"Take what We have given you earnestly, and remember what is in it, that you may attain righteousness.\"","S.002:063"]
[1,null,1,2,"And relate to them the story of him to whom We delivered Our signs, but he detached himself from them, so Satan went after him, and he became one of the perverts.","S.007:175"]
[null,null,1,1,"And say, \"The truth is from your Lord. Whoever wills-let him believe. And whoever wills-let him disbelieve\". We have prepared for the unjust a Fire, whose curtains will hem them in. And when they cry for relief, they will be relieved with water like molten brass, which scalds the faces. What a miserable drink, and what a terrible place.","S.019:029"]
[1,null,1,{"$f":"SUM(A68:C68)","v":2},"And she who guarded her virginity. We breathed into her of Our spirit, and made her and her son a sign to the world.","S.022:091"]
[null,null,1,1,"And so it was. We had full knowledge of what he had.","S.019:091"]
[1,null,4,5,"And so We made Solomon understand it, and to each We gave wisdom and knowledge. And We subjected the mountains along with David to sing Our praises, and the birds as well-surely We did.","S.022:079"]
[null,1,null,1,"And tenderness from Us, and innocence. He was devout.","S.020:013"]
[null,null,1,1,"And the earth, how We spread it out, and set on it mountains, and grew in it all kinds of delightful pairs?","S.051:007"]
[null,null,2,2,"And the earth-We spread it out-How well We prepared it!","S.052:048"]
[null,null,1,1,"And the jinn We created before, from piercing fire.","S.016:027"]
[null,null,1,1,"And the moon: We have disposed it in phases, until it returns like the old twig.","S.037:039"]
[null,null,2,2,"And the people of Noah: when they rejected the messengers, We drowned them, and made them a lesson for mankind. We have prepared for the wrongdoers a painful retribution.","S.026:037"]
[null,null,1,1,"And there is a lesson for you in cattle: We give you a drink from their bellies, from between waste and blood, pure milk, refreshing to the drinkers.","S.017:066"]
[null,null,1,1,"And there is a lesson for you in livestock: We give you to drink from what is in their bellies, and you have many benefits in them, and from them you eat.","S.024:021"]
[null,null,1,1,"And there is a sign for them in the dead land: We give it life, and produce from it grains from which they eat.","S.037:033"]
[null,null,1,1,"And there We brought the others near.","S.027:064"]
[null,null,2,2,"And these towns-We destroyed them when they committed injustices, and We set for their destruction an appointed time.","S.019:059"]
[null,null,1,1,"And they allocate, to something they do not know, a share of what We have provided for them. By God, you will be questioned about what you have been inventing.","S.017:056"]
[null,null,1,1,"And they believed, so We gave them enjoyment for a while.","S.038:148"]
[1,null,null,1,"And they denied Our signs utterly.","S.079:028"]
[1,null,1,2,"And they say, \"If we follow the guidance with you, we will be snatched from our land.\" Did We not establish for them a Safe Sanctuary, to which are brought all kinds of fruits, as provision from Ourselves? But most of them do not know.","S.029:057"]
[null,null,1,1,"And they say, \"Why was an angel not sent down to him.\" Had We sent down an angel, the matter would have been settled, and they would not have been reprieved.","S.006:008"]
[1,null,1,2,"And they will scream therein, \"Our Lord, let us out, and we will act righteously, differently from the way we used to act.\" Did We not give you a life long enough, in which anyone who wanted to understand would have understood? And the warner did come to you. So taste. The evildoers will have no helper.","S.036:037"]
[1,null,null,1,"And those who patiently seek the presence of their Lord, and pray regularly, and spend from Our provisions to them, secretly and openly, and repel evil with good. These will have the Ultimate Home.","S.014:022"]
[null,null,1,1,"And those who respond to their Lord, and pray regularly, and conduct their affairs by mutual consultation, and give of what We have provided them.","S.043:038"]
[null,null,1,1,"And those who were oppressed will say to those who were arrogant, \"It was your scheming by night and day; as you instructed us to reject God, and to set up rivals to Him.\" They will hide their remorse when they see the retribution. We will put yokes around the necks of those who disbelieved. Will they be repaid for anything other than what they used to do?","S.035:033"]
[1,null,4,5,"And thus We established Joseph in the land, to live therein wherever he wished. We touch with Our mercy whomever We will, and We never waste the reward of the righteous.","S.013:056"]
[null,null,1,1,"And thus We set up in every city its leading wicked sinners, to conspire in it, but they conspire only against themselves, and they do not realize it.","S.006:123"]
[null,null,2,2,"And to Solomon the stormy wind, blowing at His command towards the land that We have blessed. We are aware of everything.","S.022:081"]
[null,1,null,1,"And to Us belong the Last and the First.","S.093:013"]
[1,null,1,2,"And We admitted him into Our mercy; for He was one of the righteous.","S.022:075"]
[1,null,1,2,"And We admitted them into Our mercy. They were among the righteous.","S.022:086"]
[null,null,1,1,"And We afflicted the people of Pharaoh with barren years, and with shortage of crops, that they may take heed.","S.007:130"]
[2,null,1,3,"And We appointed leaders from among them, guiding by Our command, as long as they persevered and were certain of Our communications.","S.033:024"]
[null,null,1,1,"And We appointed to Moses thirty nights, and completed them with ten; and thus the time appointed by his Lord was forty nights. And Moses said to his brother Aaron: \"Take my place among my people, and be upright, and do not follow the way of the mischief-makers.\"","S.007:142"]
[null,null,1,1,"And We blessed him, and Isaac. But among their descendants are some who are righteous, and some who are clearly unjust to themselves.","S.038:113"]
[null,null,1,1,"And We blessed Moses and Aaron.","S.038:114"]
[null,null,1,1,"And We brought down from the sky blessed water, and produced with it gardens and grain to harvest.","S.051:009"]
[null,null,1,1,"And We called him from the right side of the Mount, and brought him near in communion.","S.020:052"]
[null,null,1,1,"And We carried him on a craft of planks and nails.","S.055:013"]
[null,null,1,1,"And We chose them knowingly over all other people.","S.045:032"]
[null,null,1,1,"And We conveyed to the Children of Israel in the Scripture: You will commit evil on earth twice, and you will rise to a great height.","S.018:004"]
[null,null,2,2,"And We covenanted with Adam before, but he forgot, and We found in him no resolve.","S.021:115"]
[null,null,1,1,"And We created for them the like of it, in which they ride.","S.037:042"]
[null,null,2,2,"And We delivered him, and Lot, to the land that We blessed for all people.","S.022:071"]
[null,null,1,1,"And We delivered the Children of Israel across the sea. And when they came upon a people who were devoted to some statues of theirs, they said, \"O Moses, make for us a god, as they have gods.\" He said, \"You are truly an ignorant people.\"","S.007:138"]
[null,null,1,1,"And We delivered the Children of Israel across the sea. Pharaoh and his troops pursued them, defiantly and aggressively. Until, when he was about to drown, he said, \"I believe that there is no god except the One the Children of Israel believe in, and I am of those who submit.\"","S.010:090"]
[null,null,1,1,"And We delivered the Children of Israel from the humiliating persecution.","S.045:030"]
[null,null,1,1,"And We delivered them and their people from the terrible disaster.","S.038:115"]
[null,null,1,1,"And We gave David and Solomon knowledge. They said, \"Praise God, who has favored us over many of His believing servants.\"","S.028:015"]
[null,null,1,1,"And We gave him good news of Isaac, a prophet, one of the righteous.","S.038:112"]
[null,null,1,1,"And We gave him goodness in this world, and in the Hereafter he will be among the righteous.","S.017:122"]
[null,null,4,4,"And We gave him Isaac and Jacob-each of them We guided. And We guided Noah previously; and from his descendants David, and Solomon, and Job, and Joseph, and Moses, and Aaron. Thus We reward the righteous.","S.006:084"]
[null,null,1,1,"And We gave Moses the Scripture, and made it a guide for the Children of Israel: Take none for protector other than Me.","S.018:002"]
[null,null,1,1,"And We gave Moses the Scripture, that they may be guided.","S.024:049"]
[1,null,1,2,"And We gave them freely of Our mercy, and gave them a noble reputation of truth.","S.020:050"]
[null,null,1,1,"And We gave them many signs, in which was an obvious test.","S.045:033"]
[null,null,1,1,"And We gave them precise rulings. They fell into dispute only after knowledge came to them, out of mutual rivalry. Your Lord will judge between them on the Day of Resurrection regarding the things they differed about.","S.046:017"]
[null,null,1,1,"And We gave them the Clarifying Scripture.","S.038:117"]
[null,null,1,1,"And We granted David, Solomon, an excellent servant. He was penitent.","S.039:030"]
[null,null,2,2,"And We granted him Isaac and Jacob as a gift; and each We made righteous.","S.022:072"]
[null,null,1,1,"And We granted him Isaac and Jacob, and conferred on his descendants the Prophethood and the Book, and gave him his reward in this life; and in the Hereafter he will be among the upright.","S.030:027"]
[1,null,1,2,"And We granted him, out of Our mercy, his brother Aaron, a prophet.","S.020:053"]
[null,null,1,1,"And We guarded them from every outcast devil.","S.016:017"]
[null,null,1,1,"And We guided them upon the straight path.","S.038:118"]
[1,null,1,2,"And We informed him of Our decree: the last remnant of these will be uprooted by early morning.","S.016:066"]
[null,null,1,1,"And We inscribed for him in the Tablets all kinds of enlightenments, and decisive explanation of all things. \"Hold fast to them, and exhort your people to adopt the best of them. I will show you the fate of the sinners.\"","S.007:145"]
[null,null,1,{"$f":"SUM(A132:C132)","v":1},"And We inspired Moses and his brother, \"Settle your people in Egypt, and make your homes places of worship, and perform the prayer, and give good news to the believers.\"","S.010:087"]
[null,null,1,1,"And We inspired Moses: \"Throw your staff.\" And at once, it swallowed what they were faking.","S.007:117"]
[null,null,1,1,"And We inspired Moses: \"Travel by night with My servants, and strike for them a dry path across the sea, not fearing being overtaken, nor worrying.\"","S.021:077"]
[null,null,1,1,"And We inspired Moses: \"Travel with My servants by night. You will be followed.\"","S.027:052"]
[null,null,1,1,"And We know that some of you will reject it.","S.070:049"]
[null,null,2,2,"And We know those of you who go forward, and We know those who lag behind.","S.016:024"]
[null,null,1,1,"And We left behind a clear trace of it, for people who understand.","S.030:035"]
[null,null,1,1,"And We left in it a sign for those who fear the painful punishment.","S.052:037"]
[null,null,1,1,"And We left it as a sign. Is there anyone who would take heed?","S.055:015"]
[null,null,1,1,"And We left mention of him among those who succeeded.","S.038:078"]
[null,null,1,1,"And We left with him for later generations.","S.038:108"]
[null,null,1,1,"And We left with him for later generations.","S.038:129"]
[null,null,1,1,"And We left with them for later generations.","S.038:119"]
[null,null,3,3,"And We made a covenant with you, and raised the Mount above you: \"Take what We have given you firmly, and listen.\" They said, \"We hear and disobey.\" And their hearts became filled with the love of the calf because of their disbelief. Say, \"Wretched is what your faith commands you to do, if you are believers.\"","S.002:093"]
[null,null,1,1,"And We made a covenant with you: \"You shall not shed the blood of your own, nor shall you evict your own from your homes.\" You agreed, and were all witnesses.","S.002:084"]
[null,null,1,1,"And We made a gourd tree grow over him.","S.038:146"]
[null,null,1,1,"And We made his descendants the survivors.","S.038:077"]
[null,null,2,2,"And We made Mary's son and his mother a sign, and We sheltered them on high ground with security and flowing springs.","S.024:050"]
[null,null,1,1,"And We made the earth burst with springs, and the waters met for a purpose already destined.","S.055:012"]
[null,1,2,3,"And We made the House a focal point for the people, and a sanctuary. Use the shrine of Abraham as a place of prayer. And We commissioned Abraham and Ishmael, \"Sanctify My House for those who circle around it, and those who seclude themselves in it, and those who kneel and prostrate.\"","S.002:125"]
[null,null,3,3,"And We made the oppressed people inherit the eastern and western parts of the land, which We had blessed. Thus the fair promise of your Lord to the Children of Israel was fulfilled, because of their endurance. And We destroyed what Pharaoh and his people had built, and what they had harvested.","S.007:137"]
[null,null,1,1,"And We made the sky a protected ceiling; yet they turn away from its wonders.","S.022:032"]
[null,null,1,1,"And We made them leaders calling to the Fire. And on Resurrection Day, they will not be saved.","S.029:041"]
[1,1,2,4,"And We made them leaders, guiding by Our command; and We inspired them to do good works, and to observe the prayer, and to give out charity. They were devoted servants to Us.","S.022:073"]
[null,null,1,1,"And We place in it gardens of palm-trees and vines, and cause springs to gush out of it.","S.037:034"]
[null,null,2,2,"And We placed a barrier in front of them, and a barrier behind them, and We have enshrouded them, so they cannot see.","S.037:009"]
[null,null,2,2,"And We placed on earth stabilizers, lest it sways with them, and We placed therein signposts and passages, that they may be guided.","S.022:031"]
[null,null,1,1,"And We pursued them in this world with a curse. And on Resurrection Day, they will be among the despised.","S.029:042"]
[null,null,1,1,"And We rained down on them a rain. Dreadful is the rain of those forewarned.","S.027:173"]
[null,null,1,1,"And We rained down on them a rain; note the consequences for the sinners.","S.007:084"]
[null,null,1,1,"And We rained upon them a rain. Miserable was the rain of those forewarned.","S.028:058"]
[null,null,1,1,"And We raised him to a high position.","S.020:057"]
[null,null,4,4,"And We raised the Mount above them in accordance with their covenant, and We said to them, \"Enter the gate humbly\", and We said to them, \"Do not violate the Sabbath\", and We received from them a solemn pledge.","S.004:154"]
[null,null,1,1,"And We redeemed him with a great sacrifice.","S.038:107"]
[null,1,1,2,"And We restored his family for him, and their like with them; as a mercy from Us, and a lesson for those who possess insight.","S.039:043"]
[null,null,2,2,"And We revealed to you the Book, with truth, confirming the Scripture that preceded it, and superseding it. So judge between them according to what God revealed, and do not follow their desires if they differ from the truth that has come to you. For each of you We have assigned a law and a method. Had God willed, He could have made you a single nation, but He tests you through what He has given you. So compete in righteousness. To God is your return, all of you; then He will inform you of what you had disputed.","S.005:048"]
[null,null,1,1,"And We said to the angels, \"Bow down to Adam.\" They bowed down, except for Satan. He refused, was arrogant, and was one of the disbelievers.","S.002:034"]
[null,null,1,1,"And We saved him and his family from the great calamity.","S.038:076"]
[null,null,1,1,"And We saved Moses and those with him, all together.","S.027:065"]
[null,null,1,1,"And We saved those who believed and were pious.","S.028:053"]
[null,null,1,1,"And We saved those who believed and were righteous.","S.042:018"]
[null,null,2,2,"And We scattered them into communities on earth. Some of them righteous, and some of them short of that. And We tested them with fortunes and misfortunes, so that they may return.","S.007:168"]
[null,null,1,1,"And We sent among them a messenger from themselves: \"Serve God. You have no god other than Him. Will you not be cautious?\"","S.024:032"]
[null,null,2,2,"And We sent down water from the sky in proper quantity, and settled it in the ground, and We are Able to take it away.","S.024:018"]
[1,null,1,2,"And We sent Moses with Our signs and a clear mandate.","S.012:096"]
[null,null,1,1,"And We sent to Thamood their brother Saleh: \"Worship God.\" But they became two disputing factions.","S.028:045"]
[null,null,1,1,"And We settled the Children of Israel in a position of honor, and provided them with good things. They did not differ until knowledge came to them. Your Lord will judge between them on the Day of Resurrection regarding their differences.","S.010:093"]
[null,1,3,4,"And We shaded you with clouds, and We sent down to you manna and quails: \"Eat of the good things We have provided for you.\" They did not wrong Us, but they used to wrong their own souls.","S.002:057"]
[null,null,1,1,"And We showed him the two ways?","S.091:010"]
[null,null,1,1,"And We strengthened his kingdom, and gave him wisdom and decisive speech.","S.039:020"]
[1,null,1,2,"And We strengthened their hearts, when they stood up and said, \"Our Lord is the Lord of the heavens and the earth; we will not call on any god besides Him, for then we would have spoken an outrage.\"","S.019:014"]
[null,null,1,1,"And We subdued them for them. Some they ride, and some they eat.","S.037:072"]
[1,null,2,3,"And We supported him against the people who rejected Our signs. They were an evil people, so We drowned them all.","S.022:077"]
[null,null,1,1,"And We supported them, and so they were the victors.","S.038:116"]
[null,null,1,1,"And We taught him the making of shields for you, to protect you from your violence. Are you, then, appreciative?","S.022:080"]
[null,null,2,2,"And We turn away their hearts and their visions, as they refused to believe in it the first time, and We leave them blundering in their rebellion.","S.006:110"]
[null,null,1,1,"And We turned it upside down, and rained down upon them stones of baked clay.","S.016:074"]
[null,null,1,1,"And We will draw out from every community a witness, and say, \"Produce your evidence.\" Then they will realize that the truth is God's, and those they used to invent have forsaken them.","S.029:075"]
[null,null,1,1,"And We will remove all ill-feelings from their hearts-brothers and sisters, on couches facing one another.","S.016:047"]
[null,null,1,1,"And We will settle you in the land after them. That is for him who fears My Majesty, and fears My threats.","S.015:014"]
[null,null,1,1,"And We will supply them with fruit, and meat; such as they desire.","S.053:022"]
[null,null,1,1,"And We will turn what is on it into barren waste.","S.019:008"]
[1,null,1,2,"And We would have given them from Our presence a rich compensation.","S.004:067"]
[null,null,1,1,"And We would have guided them on a straight path.","S.004:068"]
[null,null,1,{"$f":"SUM(A196:C196)","v":1},"And We wrote for them in it: a life for a life, an eye for an eye, a nose for a nose, an ear for an ear, a tooth for a tooth, and an equal wound for a wound; but whoever forgoes it in charity, it will serve as atonement for him. Those who do not rule according to what God revealed are the evildoers.","S.005:045"]
[1,null,null,1,"And when he learns something of Our revelations, he takes them in mockery. For such there is a shameful punishment.","S.046:009"]
[null,null,2,2,"And when he reached his maturity, and became established, We gave him wisdom and knowledge. Thus do We reward the virtuous.","S.029:014"]
[null,null,2,2,"And when I inspired the disciples: 'Believe in Me and in My Messenger.' They said, 'We have believed, so bear witness that We have submitted.'","S.005:111"]
[1,null,null,1,"And when Moses came to Our appointment, and his Lord spoke to him, he said, \"My Lord, allow me to look and see You.\" He said, \"You will not see Me, but look at the mountain; if it stays in its place, you will see Me.\" But when his Lord manifested Himself to the mountain, He turned it into dust, and Moses fell down unconscious. Then, when he recovered, he said, \"Glory be to you, I repent to you, and I am the first of the believers.\"","S.007:143"]
[2,null,null,2,"And when Our Clear Verses are recited to them, you will recognize disgust on the faces of those who disbelieve. They nearly assault those who recite to them Our Verses. Say, \"Shall I inform you of something worse than that? The Fire! God has promised it to those who disbelieve. And what a wretched outcome!\"","S.023:072"]
[1,null,2,3,"And when Our command came about, We turned it upside down, and We rained down on it stones of baked clay.","S.012:082"]
[1,1,1,3,"And when Our command came, We saved Shuaib and those who believed with him, by mercy from Us, and the Blast struck the wrongdoers, and they became motionless bodies in their homes.","S.012:094"]
[1,1,2,4,"And when Our decree came, We saved Hud and those who believed with him, by a mercy from Us, and We delivered them from a harsh punishment.","S.012:058"]
[1,null,null,1,"And when Our enlightening Verses are recited to them, they say, \"This is nothing but a man who wants to divert you from what your ancestors used to worship.\" And they say, \"This is nothing but a fabricated lie.\" And when the Truth comes to them, the blasphemers say of the Truth, \"This is nothing but plain magic.\"","S.035:043"]
[1,null,1,2,"And when Our envoys brought Abraham the good news, they said, \"We are going to destroy the people of this town; its people are wrongdoers.\"","S.030:031"]
[1,null,null,1,"And when Our envoys came to Lot, he was anxious for them, and concerned for them. He said, \"This is a dreadful day.\"","S.012:077"]
[1,null,1,2,"And when Our revelations are recited to them, they say, \"We have heard. Had we wanted, we could have said the like of this; these are nothing but myths of the ancients.\"","S.008:031"]
[1,null,null,1,"And when Our Verses are recited to him, he turns away in pride, as though he did not hear them, as though there is deafness in his ears. So inform him of a painful punishment.","S.032:007"]
[null,1,null,1,"And when the truth came to them from Us, they said, \"This is clearly sorcery.\"","S.010:076"]
[1,null,1,2,"And when the Word has fallen on them, We will bring out for them from the earth a creature which will say to them that the people are uncertain of Our revelations.","S.028:082"]
[null,null,1,1,"And when they entered as their father had instructed them, it did not avail them anything against God; it was just a need in the soul of Jacob, which he carried out. He was a person of knowledge inasmuch as We had taught him, but most people do not know.","S.013:068"]
[null,null,1,1,"And when they opened their baggage, they found that their goods were returned to them. They said, \"Father, what more do we want? Here are our goods, returned to us. We will provide for our family, and protect our brother, and have an additional camel-load. This is easy commerce.\"","S.013:065"]
[1,null,2,3,"And when they provoked Our wrath, We took retribution from them, and We drowned them all.","S.044:055"]
[null,1,3,4,"And when We let him taste a mercy from Us, after the adversity that had afflicted him, he will say, \"This is mine, and I do not think that the Hour is coming; and even if I am returned to my Lord, I will have the very best with Him.\" We will inform those who disbelieve of what they did, and We will make them taste an awful punishment.","S.042:050"]
[null,null,1,1,"And when We said to the angels, \"Bow down to Adam.\" They bowed down, except for Satan; he refused.","S.021:116"]
[null,null,2,2,"And when We suspended the mountain over them, as if it was an umbrella, and they thought it would fall on them: \"Hold fast to what We have given you, and remember what it contains, so that you may be saved.\"","S.007:171"]
[null,null,2,2,"And whoever of them says, \"I am a god besides Him,\" We will reward him with Hell. Thus We reward the wrongdoers.","S.022:029"]
[null,null,1,1,"And why should we not trust in God, when He has guided us in our ways? We will persevere in the face of your persecution. And upon God the reliant should rely.","S.015:012"]
[null,null,2,2,"And you inhabited the homes of those who wronged themselves, and it became clear to you how We dealt with them, and We cited for you the examples.","S.015:045"]
[null,null,1,1,"And you surely knew those of you who violated the Sabbath. We said to them, \"Be despicable apes!\"","S.002:065"]
[null,null,1,1,"Another sign for them is that We carried their offspring in the laden Ark.","S.037:041"]
[null,null,1,1,"Another sign for them is the night: We strip the day out of it-and they are in darkness.","S.037:037"]
[null,null,2,2,"Approach him and say, 'We are the messengers of your Lord; so let the Children of Israel go with us, and do not torment them. We bring you a sign from your Lord, and peace be upon him who follows guidance.","S.021:047"]
[null,null,1,1,"Are they better, or the people of Tubba and those before them? We annihilated them. They were evildoers.","S.045:037"]
[1,null,null,1,"Are they seeking to hasten Our punishment?","S.038:176"]
[1,null,null,1,"As for Aad, they turned arrogant on earth, and opposed justice, and said, \"Who is more powerful than us?\" Have they not considered that God, who created them, is more powerful than they? And they went on denying Our revelations.","S.042:015"]
[null,null,1,1,"As for the good land, it yields its produce by the leave of its Lord. But as for the bad, it produces nothing but hardship and misery. Thus We explain the revelations in various ways for people who are thankful.","S.007:058"]
[null,null,2,2,"As for those who believe and do good deeds, We will admit them into Gardens beneath which rivers flow, abiding therein forever. They will have purified spouses therein, and We will admit them into a shady shade.","S.004:057"]
[null,1,null,1,"As for those who deserved goodness from Us-these will be kept away from it.","S.022:101"]
[1,null,null,1,"As for those who disbelieve and reject Our revelations-these are the inmates of Hell.","S.005:010"]
[null,null,2,2,"As for those who disbelieve and repel from God's path and from the Sacred Mosque-which We have designated for all mankind equally, whether residing therein or passing through-and seek to commit sacrilege therein-We will make him taste of a painful punishment.","S.023:025"]
[null,null,1,1,"As for those who disbelieve, for them is the Fire of Hell, wherein they will never be finished off and die, nor will its punishment be lightened for them. Thus We will repay every ingrate.","S.036:036"]
[null,null,1,1,"As for those who do not believe in the Hereafter: We made their deeds appear good to them, so they wander aimlessly.","S.028:004"]
[1,null,1,2,"As for those who reject Our messages, We will gradually lead them from where they do not know.","S.007:182"]
[1,null,null,1,"As for those who strive against Our revelations, seeking to undermine them-for them is a punishment of a painful plague.","S.035:005"]
[1,1,1,3,"As for those who strive for Us-We will guide them in Our ways. God is with the doers of good.","S.030:069"]
[null,null,1,1,"As sustenance for the servants. And We revive thereby a dead town. Likewise is the resurrection.","S.051:011"]
[null,null,1,1,"Ask the Children of Israel how many clear signs We have given them. Whoever alters the blessing of God after it has come to him-God is severe in retribution.","S.002:211"]
[null,null,1,1,"Ask the town where we were, and the caravan in which we came. We are being truthful.","S.013:082"]
[null,null,1,1,"Ask them about the town by the sea, when they violated the Sabbath. When they observed the Sabbath, their fish would come to them abundantly. But when they violated the Sabbath, their fish would not come to them. Thus We tried them because they disobeyed.","S.007:163"]
[1,null,2,3,"Ask those of Our messengers We sent before you: \"Did We appoint gods besides the Most Gracious to be worshiped?\"","S.044:045"]
[1,null,null,1,"Be patient in the face of what they say, and mention Our servant David, the resourceful. He was obedient.","S.039:017"]
[1,null,1,2,"Because of that We ordained for the Children of Israel: that whoever kills a person-unless it is for murder or corruption on earth-it is as if he killed the whole of mankind; and whoever saves it, it is as if he saved the whole of mankind. Our messengers came to them with clarifications, but even after that, many of them continue to commit excesses in the land.","S.005:032"]
[null,null,1,1,"Because of their breaking their pledge, We cursed them, and made their hearts hard. They twist the words out of their context, and they disregarded some of what they were reminded of. You will always witness deceit from them, except for a few of them. But pardon them, and overlook. God loves the doers of good.","S.005:013"]
[1,null,null,1,"Before them the people of Noah disbelieved. They rejected Our servant, and said, \"Crazy,\" and he was rebuked.","S.055:009"]
[null,null,1,1,"Before them We tested the people of Pharaoh; a noble messenger came to them.","S.045:017"]
[null,1,2,3,"Before you, We sent messengers to their people. They came to them with clear proofs. Then We took revenge on those who sinned. It is incumbent on Us to help the believers.","S.031:047"]
[null,null,3,3,"Between them and the towns We had blessed, We placed prominent towns, and We made the travel between them easy. \"Travel between them by night and day, in safety.\"","S.035:018"]
[null,null,1,1,"Both gardens produced their harvest in full, and suffered no loss. And We made a river flow through them.","S.019:033"]
[1,null,1,2,"But as for him who believes and acts righteously, he will have the finest reward, and We will speak to him of Our command with ease.","S.019:088"]
[null,null,1,1,"But as for those who believe and do righteous deeds, We will admit them into gardens beneath which rivers flow, where they will abide forever. The promise of God is true-and who is more truthful in speech than God?","S.004:122"]
[1,null,null,1,"But as for those who defy Our revelations-these are the people of misery.","S.091:019"]
[1,null,null,1,"But as for those who disbelieve and denounce Our revelations-these are the inmates of the Fire, dwelling therein forever; and what a miserable fate!","S.065:010"]
[1,null,null,1,"But as for those who disbelieve and deny Our signs-these are the inmates of the Fire.","S.005:086"]
[1,null,null,1,"But as for those who disbelieve and reject Our signs-these are the inmates of the Fire-wherein they will remain forever.\"","S.002:039"]
[1,null,null,1,"But as for those who disbelieved, and rejected Our signs and the encounter of the Hereafter-those will be hauled into the torment.","S.031:016"]
[1,null,null,1,"But as for those who reject Our revelations, and are too proud to accept them-these are the inmates of the Fire, where they will remain forever.","S.007:036"]
[1,null,null,1,"But as for those who reject Our revelations, torment will afflict them because of their defiance.","S.006:049"]
[1,null,null,{"$f":"SUM(A260:C260)","v":1},"But as for those whose weights are light-it is they who have lost their souls, because they used to mistreat Our revelations.","S.007:009"]
[null,null,1,1,"But if they repent, and perform the prayers, and give the obligatory charity, then they are your brethren in faith. We detail the revelations for a people who know.","S.009:011"]
[null,1,2,3,"But if they turn away-We did not send you as a guardian over them. Your only duty is communication. Whenever We let man taste mercy from Us, he rejoices in it; but when misfortune befalls them, as a consequence of what their hands have perpetrated, man turns blasphemous.","S.043:048"]
[null,null,1,1,"But if We send a wind, and they see it turning things yellow, they would continue thereafter to disbelieve.","S.031:051"]
[null,null,1,1,"But Pharaoh defied the Messenger, so We seized him with a terrible seizing.","S.074:016"]
[null,null,1,1,"But Satan caused them to slip from it, and caused them to depart the state they were in. We said, \"Go down, some of you enemies of one another. And you will have residence on earth, and enjoyment for a while.\"","S.002:036"]
[null,null,1,1,"But the dignitaries of his people, those who disbelieved and denied the meeting of the Hereafter, and We had indulged them in the present life, said, \"This is nothing but a human like you; he eats what you eat, and he drinks what you drink.","S.024:033"]
[null,null,1,1,"But the notables of his people, who disbelieved, said, \"This is nothing but a human like you, who wants to gain superiority over you. Had God willed, He would have sent down angels. We never heard of this from our forefathers of old.","S.024:024"]
[null,null,1,1,"But the wicked among them substituted other words for the words given to them; so We sent down upon them a plague from the sky, because of their wrongdoing.","S.007:162"]
[null,null,1,1,"But the wrongdoers among them substituted words other than those given to them, so We sent down on the wrongdoers a plague from heaven, because of their wicked behavior.","S.002:059"]
[1,null,null,1,"But their faith could not help them once they witnessed Our might. This has been God's way of dealing with His servants. And there and then the disbelievers lost.","S.041:085"]
[null,1,1,2,"But then, when He has saved them, they commit violations on earth, and oppose justice. O people! Your violations are against your own souls. It is the enjoyment of the present life. Then to Us is your return, and We will inform you of what you used to do.","S.010:023"]
[1,null,2,3,"But they called him a liar. So We saved him and those with him in the Ark, and We drowned those who rejected Our revelations. They were blind people.","S.007:064"]
[1,null,3,4,"But they denounced him, so We saved him and those with him in the Ark, and We made them successors, and We drowned those who rejected Our signs. So consider the fate of those who were warned.","S.010:073"]
[1,null,2,3,"But they said, \"Our Lord, lengthen the distances of our journeys.\" They wronged themselves; so We made them history, and We scattered them in every direction. In this are lessons for every steadfast and appreciative person.","S.035:019"]
[null,1,null,1,"But they splintered themselves into factions. They will all return to Us.","S.022:093"]
[null,null,2,2,"But they turned away, so We unleashed against them the flood of the dam; and We substituted their two gardens with two gardens of bitter fruits, thorny shrubs, and meager harvest.","S.035:016"]
[null,null,1,1,"But those among them firmly rooted in knowledge, and the believers, believe in what was revealed to you, and in what was revealed before you; and the observers of prayers, and the givers of charity, and the believers in God and the Last Day-upon these We will bestow an immense reward.","S.004:162"]
[1,null,null,1,"But those who disbelieve and reject Our revelations-these will have a humiliating punishment.","S.023:057"]
[1,null,null,1,"But those who strive against Our revelations-these are the inmates of Hell.","S.023:051"]
[1,null,null,1,"But those who work against Our revelations, seeking to undermine them-those will be summoned to the punishment.","S.035:038"]
[null,null,1,1,"But We desired to favor those who were oppressed in the land, and to make them leaders, and to make them the inheritors.","S.029:005"]
[1,null,2,3,"But We established many generations, and time took its toll on them. Nor were you among the people of Median, reciting Our revelations to them. But We kept sending messengers.","S.029:045"]
[null,null,2,2,"But We gave them no book to study, and We did not send them any warner before you.","S.035:044"]
[null,null,1,1,"But We have enumerated everything in writing.","S.079:029"]
[null,null,1,1,"But We saved him and his family, except for his wife; she was of those who lagged behind.","S.007:083"]
[null,null,2,2,"But We saved him, together with the company of the Ark, and We made it a sign for all peoples.","S.030:015"]
[null,null,1,1,"But We see it near.","S.071:007"]
[1,null,null,1,"But when he showed them Our signs, they started laughing at them.","S.044:047"]
[1,null,1,2,"But when Moses came to them with Our signs, clear and manifest, they said, \"This is nothing but fabricated magic, and We never heard of this from our ancestors of old.\"","S.029:036"]
[null,1,1,2,"But when the truth came to them from Us, they said, \"If only he was given the like of what was given to Moses.\" Did they not disbelieve in what was given to Moses in the past? They said, \"Two works of magic backing one another.\" And they said, \"We are disbelieving in both.\"","S.029:048"]
[null,null,1,1,"But when We lifted the plague from them, for a term they were to fulfill, they broke their promise.","S.007:135"]
[null,null,1,1,"But when We lifted the torment from them, they immediately broke their promise.","S.044:050"]
[null,null,2,2,"But whoever of you remains obedient to God and His Messenger, and acts righteously, We will give her a double reward; and We have prepared for her a generous provision.","S.034:031"]
[null,null,1,1,"But whoever turns away from My Reminder, for him is a confined life. And We will raise him on the Day of Resurrection blind.\"","S.021:124"]
[null,null,1,1,"By God, We sent messengers to communities before you, but Satan made their deeds appear alluring to them. He is their master today, and they will have a painful punishment.","S.017:063"]
[null,null,1,1,"By God, We were in evident error.","S.027:097"]
[1,null,null,1,"By no means! He was stubborn towards Our revelations.","S.075:016"]
[null,null,2,2,"By your Lord, We will round them up, and the devils, then We will bring them around Hell, on their knees.","S.020:068"]
[null,null,2,2,"Can someone to whom We have made a fine promise-which he will attain-be equal to someone to whom We have given enjoyments in this world, but who will be, on Resurrection Day, among the arraigned?","S.029:061"]
[null,null,1,1,"Did We not create you from an insignificant fluid?","S.078:020"]
[null,null,1,1,"Did We not destroy the ancients?","S.078:016"]
[null,null,1,1,"Did We not give him two eyes?","S.091:008"]
[null,null,1,1,"Did We not make the earth a cradle?","S.079:006"]
[null,null,1,1,"Did We not make the earth a homestead?","S.078:025"]
[null,null,1,1,"Did We not soothe your heart?","S.095:001"]
[1,null,null,1,"Did you know that the People of the Cave and the Inscription were of Our wondrous signs?","S.019:009"]
[null,1,1,2,"Did you think that We created you in vain, and that to Us you will not be returned?\"","S.024:115"]
[null,null,2,2,"Do not apologize. You have disbelieved after your belief. If We pardon some of you, We will punish others, because they are guilty.","S.009:066"]
[null,null,1,1,"Do not extend your eyes towards what We have bestowed on some couples of them to enjoy, and do not grieve over them, and lower your wing to the believers.","S.016:088"]
[null,1,null,1,"Do not groan today. You will receive no help from Us.","S.024:065"]
[null,null,1,1,"Do not insult those they call upon besides God, lest they insult God out of hostility and ignorance. We made attractive to every community their deeds. Then to their Lord is their return, and He will inform them of what they used to do.","S.006:108"]
[null,null,2,2,"Do the disbelievers not see that the heavens and the earth were one mass, and We tore them apart? And We made from water every living thing. Will they not believe?","S.022:030"]
[1,null,null,1,"Do the people of the towns feel secure that Our might will not come upon them by day, while they play?","S.007:098"]
[1,null,null,1,"Do the people of the towns feel secure that Our might will not come upon them by night, while they sleep?","S.007:097"]
[null,null,2,2,"Do they not reflect upon what lies before them and behind them, of the heaven and the earth? If We will, We can make the earth cave in beneath them, or make pieces of the sky fall down on them. In that is a sign for every devout servant.","S.035:009"]
[null,null,2,2,"Do they not see how We conduct the water to a dry land, and with it We produce vegetation, from which their livestock eat, and themselves? Do they not see?","S.033:027"]
[null,null,1,1,"Do they not see how We deal with the earth, diminishing it at its edges? God judges; and nothing can hold back His judgment. And He is quick to settle accounts.","S.014:041"]
[null,null,1,1,"Do they not see that We established a Secure Sanctuary, while all around them the people are being carried away? Do they believe in falsehood, and reject the blessings of God?","S.030:067"]
[null,null,1,1,"Do they not see that We made the night for them to rest therein, and the day for visibility? Surely in that are signs for people who believe.","S.028:086"]
[1,null,null,1,"Do they seek to hasten Our punishment?","S.027:204"]
[null,null,1,1,"Do those who disbelieve think that they can take My servants for masters instead of Me? We have prepared Hell for the hospitality of the faithless.","S.019:102"]
[null,null,1,1,"Do those who perpetrate the evil deeds assume that We will regard them as equal to those who believe and do righteous deeds, whether in their life or their death? Evil is their judgment!","S.046:021"]
[null,null,1,1,"Do you not see how your Lord extends the shadow? Had He willed, He could have made it still. And We made the sun a pointer to it.","S.026:045"]
[null,null,1,{"$f":"SUM(A324:C324)","v":1},"Does it not suffice them that We revealed to you the Scripture, which is recited to them? In that is mercy and a reminder for people who believe.","S.030:051"]
[null,null,1,1,"Does man think that We will not reassemble his bones?","S.076:003"]
[null,null,1,1,"Does the human being not consider that We created him from a seed? Yet he becomes a fierce adversary.","S.037:077"]
[null,null,1,1,"Does the human being not remember that We created him before, when he was nothing?","S.020:067"]
[null,null,1,1,"Due to wrongdoing on the part of the Jews, We forbade them good things that used to be lawful for them; and for deterring many from God's path.","S.004:160"]
[null,null,2,2,"Each sign We showed them was more marvelous than its counterpart. And We afflicted them with the plagues, so that they may repent.","S.044:048"]
[null,null,4,4,"Each We seized by his sin. Against some We sent a sandstorm. Some were struck by the Blast. Some We caused the ground to cave in beneath them. And some We drowned. It was not God who wronged them, but it was they who wronged their own selves.","S.030:040"]
[null,null,1,1,"Eat of the good things We have provided for you, but do not be excessive therein, lest My wrath descends upon you. He upon whom My wrath descends has fallen.","S.021:081"]
[null,null,1,1,"Even if We had mercy on them, and relieved their problems, they would still blindly persist in their defiance.","S.024:075"]
[null,null,1,1,"Even if We opened for them a gateway into the sky, and they began to ascend through it.","S.016:014"]
[null,null,2,2,"Even if We sent down the angels to them, and the dead spoke to them, and We gathered all things before them, they still would not believe, unless God wills; but most of them are ignorant.","S.006:111"]
[null,null,2,2,"Even if We take you away, We will wreak vengeance upon them.","S.044:041"]
[null,null,2,2,"Even so, We awakened them, so that they may ask one another. A speaker among them said, \"How long have you stayed?\" They said, \"We have stayed a day, or part of a day.\" They said, \"Your Lord knows best how long you have stayed.\" \"Send one of you to the city, with this money of yours, and let him see which food is most suitable, and let him bring you some provision thereof. And let him be gentle, and let no one become aware of you.\"","S.019:019"]
[null,null,1,1,"Even though We sent messengers to warn them.","S.038:072"]
[null,1,null,1,"Every soul will taste death. Then to Us you will be returned.","S.030:057"]
[null,1,1,2,"Every soul will taste death. We burden you with adversity and prosperity-a test. And to Us you will be returned.","S.022:035"]
[null,null,1,1,"Everything We created is precisely measured.","S.055:049"]
[null,null,1,1,"Everything We narrate to you of the history of the messengers is to strengthen your heart therewith. The truth has come to you in this, and a lesson, and a reminder for the believers.","S.012:120"]
[1,null,null,1,"Evil is the metaphor of the people who reject Our signs and wrong themselves.","S.007:177"]
[null,1,null,1,"Except by a mercy from Us, and enjoyment for a while.","S.037:044"]
[null,null,1,1,"Except for his wife. We have determined that she will be of those who lag behind.","S.016:060"]
[null,null,1,1,"For every congregation We have appointed acts of devotion, which they observe. So do not let them dispute with you in this matter. And invite to your Lord; you are upon a straight guidance.","S.023:067"]
[null,null,2,2,"For every person We have attached his fate to his neck. And on the Day of Resurrection, We will bring out for him a book which he will find spread open.","S.018:013"]
[null,1,null,1,"For him is nearness to Us, and a beautiful resort.","S.039:040"]
[null,null,4,4,"For the Jews We forbade everything with claws. As of cattle and sheep: We forbade them their fat, except what adheres to their backs, or the entrails, or what is mixed with bone. This is how We penalized them for their inequity. We are indeed truthful.","S.006:146"]
[null,null,1,1,"For them is a couch of hell, and above them are sheets of fire. Thus We repay the wrongdoers.","S.007:041"]
[null,null,3,3,"For those who are Jews, We have prohibited what We related to you before. We did not wrong them, but they used to wrong their own selves.","S.017:118"]
[null,null,3,3,"From it We created you, and into it We will return you, and from it We will bring you out another time.","S.021:055"]
[1,null,1,2,"Glory to Him who journeyed His servant by night, from the Sacred Mosque, to the Farthest Mosque, whose precincts We have blessed, in order to show him of Our wonders. He is the Listener, the Beholder.","S.018:001"]
[null,null,1,1,"Go back to them. We will come upon them with troops they cannot resist; and we will expel them from there, disgraced and humiliated.\"","S.028:037"]
[1,null,1,2,"Go back to your father, and say, 'Our father, your son has stolen. We testify only to what we know, and we could not have prevented the unforeseen.'","S.013:081"]
[null,null,1,1,"God cites the example of a bonded slave, who has no power over anything; and someone to whom We have given plentiful provision, from which he gives secretly and openly. Are they equal in comparison? All praise belongs to God, but most of them do not know.","S.017:075"]
[3,null,null,3,"God does not burden any soul beyond its capacity. To its credit is what it earns, and against it is what it commits. \"Our Lord, do not condemn us if we forget or make a mistake. Our Lord, do not burden us as You have burdened those before us. Our Lord, do not burden us with more than we have strength to bear; and pardon us, and forgive us, and have mercy on us. You are our Lord and Master, so help us against the disbelieving people.\"","S.002:286"]
[null,null,2,2,"God has heard the statement of those who said, \"God is poor, and we are rich.\" We will write down what they said, and their wrongful killing of the prophets; and We will say, \"Taste the torment of the burning.\"","S.003:181"]
[1,null,null,1,"God illustrates an example of those who disbelieve: the wife of Noah and the wife of Lot. They were under two of Our righteous servants, but they betrayed them. They availed them nothing against God, and it was said, \"Enter the Fire with those who are entering.\"","S.067:010"]
[null,null,1,1,"God is He who sends the winds, which agitate clouds, which We drive to a dead land, and thereby revive the ground after it had died. Likewise is the Resurrection.","S.036:009"]
[null,null,1,1,"God is sufficient witness between us and you. We were unaware of your worshiping us.","S.010:029"]
[null,null,1,1,"God received a pledge from the Children of Israel, and We raised among them twelve chiefs. God said, \"I am with you; if you perform the prayer, and pay the alms, and believe in My messengers and support them, and lend God a loan of righteousness; I will remit your sins, and admit you into Gardens beneath which rivers flow. But whoever among you disbelieves afterwards has strayed from the right way.\"","S.005:012"]
[null,null,1,1,"Had God willed, they would not have practiced idolatry. We did not appoint you as a guardian over them, and you are not a manager over them.","S.006:107"]
[null,1,null,1,"Had he falsely attributed some statements to Us.","S.070:044"]
[null,null,1,1,"Had the People of the Scriputure believed and been righteous, We would have remitted their sins, and admitted them into the Gardens of Bliss.","S.005:065"]
[null,null,2,2,"Had the people of the towns believed and turned righteous, We would have opened for them the blessings of the heaven and the earth; but they rejected the truth, so We seized them by what they were doing.","S.007:096"]
[null,null,1,1,"Had they kept true to the Path, We would have given them plenty water to drink.","S.073:016"]
[null,null,1,1,"Had We decreed for them: \"Kill yourselves,\" or \"Leave your homes,\" they would not have done it, except for a few of them. But had they done what they were instructed to do, it would have been better for them, and a firmer confirmation.","S.004:066"]
[1,null,1,2,"Had We destroyed them with a punishment before him, they would have said, \"Our Lord, if only You had sent us a messenger, we would have followed Your revelations before we were humiliated and disgraced.\"","S.021:134"]
[null,null,2,2,"Had We made him an angel, We would have made him a man, and confused them when they are already confused.","S.006:009"]
[null,null,1,1,"Had We not given you stability, you might have inclined towards them a little.","S.018:074"]
[null,null,1,1,"Had We revealed it to one of the foreigners.","S.027:198"]
[null,null,1,1,"Had We sent down upon you a book on paper, and they had touched it with their hands, those who disbelieve would have said, \"This is nothing but plain magic.\"","S.006:007"]
[1,null,2,3,"Had We willed, We could have elevated him through them; but he clung to the ground, and followed his desires. His metaphor is that of a dog: if you chase it, it pants; and if you leave it alone, it pants. Such is the metaphor of the people who deny Our signs. So tell the tale, so that they may ponder.","S.007:176"]
[null,null,2,2,"Had We willed, We could have given every soul its guidance, but the declaration from Me will come true: \"I will fill Hell with jinn and humans, altogether.\"","S.033:013"]
[null,null,2,2,"Had We willed, We could have sent to every town a warner.","S.026:051"]
[null,null,2,2,"Had We willed, We could have shown them to you, and you would have recognized them by their marks. Yet you will recognize them by their tone of speech. And God knows your actions.","S.048:030"]
[null,null,2,2,"Had We willed, We would have made of you angels to be successors on earth.","S.044:060"]
[null,null,1,1,"Have they contrived some scheme? We too are contriving.","S.044:079"]
[null,null,1,1,"Have they not considered how many generations We destroyed before them; and that unto them they will not return?","S.037:031"]
[null,null,6,6,"Have they not considered how many generations We destroyed before them? We had established them on earth more firmly than We established you, and We sent the clouds pouring down abundant rain on them, and We made rivers flow beneath them. But We destroyed them for their sins, and established other civilizations after them.","S.006:006"]
[null,null,1,1,"Have they not observed the sky above them, how We constructed it, and decorated it, and it has no cracks?","S.051:006"]
[1,null,1,2,"Have they not seen that We created for them, of Our Handiwork, livestock that they own?","S.037:071"]
[null,null,1,1,"Have they not seen the earth, and how many beautiful pairs We produced therein?","S.027:007"]
[null,null,1,1,"Have We sent down to them any authority, which speaks in support of their idols?","S.031:035"]
[null,null,1,1,"Have you considered: if We let them enjoy themselves for some years.","S.027:205"]
[null,null,1,1,"Have you not considered how We dispatch the devils against the disbelievers, exciting them with incitement?","S.020:083"]
[null,null,1,1,"Have you not seen that God sends down water from the sky? With it We produce fruits of various colors. And in the mountains are streaks of white and red-varying in their hue-and pitch-black.","S.036:027"]
[1,null,null,{"$f":"SUM(A388:C388)","v":1},"Have you seen him who denied Our revelations, and said, \"I will be given wealth and children\"?","S.020:077"]
[null,1,null,1,"He and his troops acted arrogantly in the land, with no justification. They thought they would not be returned to Us.","S.029:039"]
[null,null,1,1,"He created the heavens without pillars that you can see, and placed stabilizers on earth lest it shifts with you, and scattered throughout it all kinds of creatures. And from the sky We sent down water, and caused to grow therein of every noble pair.","S.032:010"]
[null,null,1,1,"He had no authority over them; except that We willed to distinguish him who believes in the Hereafter, from him who is doubtful about it. Your Lord is Guardian over all things.","S.035:021"]
[1,null,null,1,"He had warned them of Our onslaught, but they dismissed the warnings.","S.055:036"]
[null,null,2,2,"He illustrates an example for you, from your own selves: do you make your servants full partners in the wealth We have given you? Do you revere them as you revere one another? We thus explain the revelations for a people who understand.","S.031:028"]
[null,null,1,1,"He is nothing but a man, making up lies about God. We have no faith in him.\"","S.024:038"]
[1,null,null,1,"He is the Conqueror over His servants, and He sends guardians over you, until, when death overtakes one of you, Our envoys take him away, and they never fail.","S.006:061"]
[null,null,2,2,"He prescribed for you the same religion He enjoined upon Noah, and what We inspired to you, and what We enjoined upon Abraham, and Moses, and Jesus: \"You shall uphold the religion, and be not divided therein.\" As for the idolaters, what you call them to is outrageous to them. God chooses to Himself whom He wills, and He guides to Himself whoever repents.","S.043:013"]
[null,null,1,1,"He resolved to scare them off the land, but We drowned him, and those with him, altogether.","S.018:103"]
[null,null,1,1,"He said, \"He has done you wrong by asking your ewe in addition to his ewes. Many partners take advantage of one another, except those who believe and do good deeds, but these are so few.\" David realized that We were testing him, so he sought forgiveness from his Lord, and fell down to his knees, and repented.","S.039:024"]
[1,null,1,2,"He said, \"No. Go, both of you, with Our proofs. We will be with you, listening.","S.027:015"]
[null,null,1,1,"He said, \"Take hold of it, and do not fear. We will restore it to its original condition.","S.021:021"]
[null,1,1,2,"He said, \"Thus said your Lord, 'It is easy for Me, and We will make him a sign for humanity, and a mercy from Us. It is a matter already decided.'\"","S.020:021"]
[1,null,2,3,"He said, \"We will strengthen your arm with your brother, and We will give you authority, so they will not touch you. By virtue of Our signs, you and those who follow you will be the triumphant.\"","S.029:035"]
[null,null,1,1,"He said, \"What was the matter with you, women, when you tried to seduce Joseph?\" They said, \"God forbid! We knew of no evil committed by him.\" The governor's wife then said, \"Now the truth is out. It was I who tried to seduce him, and he is telling the truth.\"","S.013:051"]
[null,null,2,2,"He said, \"Yet Lot is in it.\" They said, \"We are well aware of who is in it. We will save him, and his family, except for his wife, who will remain behind.\"","S.030:032"]
[null,null,2,2,"He was just a servant whom We blessed, and We made him an example for the Children of Israel.","S.044:059"]
[1,null,null,1,"He was one of Our believing servants.","S.038:081"]
[1,null,null,1,"He was one of Our believing servants.","S.038:111"]
[1,null,null,1,"He was one of Our believing servants.","S.038:132"]
[null,null,1,1,"He who made the earth a habitat for you; and traced in it routes for you; and sent down water from the sky, with which We produce pairs of diverse plants.","S.021:053"]
[null,null,1,1,"He who sends down water from the sky in due proportion; and so We revive thereby a dead land. Thus you will be brought out.","S.044:011"]
[1,null,null,1,"He will say, \"Just as Our revelations came to you, and you forgot them, today you will be forgotten.\"","S.021:126"]
[null,null,1,1,"His wife was standing by, so she laughed. And We gave her good news of Isaac; and after Isaac, Jacob.","S.012:071"]
[null,null,1,1,"How about when We gather them for a Day in which there is no doubt, and each soul will be paid in full for what it has earned, and they will not be wronged?","S.003:025"]
[null,null,1,1,"How many a generation have We destroyed before them, who surpassed them in riches and splendor?","S.020:074"]
[null,null,1,1,"How many a generation have We destroyed before them? Can you feel a single one of them, or hear from them the slightest whisper?","S.020:098"]
[null,null,1,1,"How many a guilty town have We crushed, and established thereafter another people?","S.022:011"]
[null,null,1,1,"How many a prophet did We send to the ancients?","S.044:006"]
[null,null,2,2,"How many a town defied the command of its Lord and His messengers? So We held it strictly accountable, and We punished it with a dreadful punishment.","S.066:008"]
[null,null,1,1,"How many a town have We destroyed while it was doing wrong? They lie in ruins; with stilled wells, and lofty mansions.","S.023:045"]
[1,null,1,2,"How many a town have We destroyed? Our might came upon them by night, or while they were napping.","S.007:004"]
[null,null,1,1,"How many a town was more powerful than your town which evicted you? We destroyed them, and there was no helper for them.","S.048:013"]
[null,null,1,1,"How many generations before them, who were more powerful than they, did We destroy? They explored the lands-was there any escape?","S.051:036"]
[null,null,1,1,"How many generations have We destroyed after Noah? Your Lord is sufficient as Knower and Beholder of the sins of his servants.","S.018:017"]
[null,null,1,1,"How many generations have We destroyed before them? They cried out when it was too late to escape.","S.039:003"]
[null,null,2,2,"I swear by the Lord of the Easts and the Wests, that We are Able.","S.071:040"]
[1,null,null,1,"I will turn away from My revelations those who behave proudly on earth without justification. Even if they see every sign, they will not believe in it; and if they see the path of rectitude, they will not adopt it for a path; and if they see the path of error, they will adopt it for a path. That is because they denied Our revelations, and paid no attention to them.","S.007:146"]
[null,null,1,1,"If a wound afflicts you, a similar wound has afflicted the others. Such days We alternate between the people, that God may know those who believe, and take martyrs from among you. God does not love the evildoers.","S.003:140"]
[1,null,1,2,"If God were to accelerate the ill for the people, as they wish to accelerate the good, their term would have been fulfilled. But We leave those who do not expect Our encounter to blunder in their excesses.","S.010:011"]
[null,null,2,2,"If only there was one town that believed and benefited by its belief. Except for the people of Jonah. When they believed, We removed from them the suffering of disgrace in the worldly life, and We gave them comfort for a while.","S.010:098"]
[null,null,1,1,"If only there were, among the generations before you, people with wisdom, who spoke against corruption on earth-except for the few whom We saved. But the wrongdoers pursued the luxuries they were indulged in, and thus became guilty.","S.012:116"]
[1,null,null,1,"If only, when Our calamity came upon them, they humbled themselves. But their hearts hardened, and Satan made their deeds appear good to them.","S.006:043"]
[null,null,1,1,"If the hypocrites, and those with sickness in their hearts, and the rumormongers in the City, do not desist, We will incite you against them; then they will not be your neighbors there except for a short while.","S.034:060"]
[null,null,1,1,"If the truth conformed to their desires, the heavens, the earth, and everyone in them would have gone to ruin. In fact, We have given them their message, but they keep avoiding their message.","S.024:071"]
[null,1,1,2,"If We give the human being a taste of mercy from Us, and then withdraw it from him, he becomes despairing and ungrateful.","S.011:009"]
[null,1,3,4,"If We wanted amusement, We could have found it within Us, were We to do so.","S.022:017"]
[null,null,2,2,"If We will, We can blind their eyes as they rush towards the path-but how will they see?","S.037:066"]
[null,null,2,2,"If We will, We can drown them-with no screaming to be heard from them, nor will they be saved.","S.037:043"]
[null,null,2,2,"If We will, We can make it salty. Will you not be thankful?","S.057:070"]
[null,null,2,2,"If We will, We can send down upon them a sign from heaven, at which their necks will stay bent in humility.","S.027:004"]
[null,null,2,2,"If We will, We can turn it into rubble; then you will lament.","S.057:065"]
[null,1,3,4,"If We willed, We could take away what We revealed to you. Then you will find for yourself no protecting guardian against Us.","S.018:086"]
[null,null,1,1,"If you are in doubt about what We revealed to you, ask those who read the Scripture before you. The truth has come to you from your Lord, so do not be of those who doubt.","S.010:094"]
[null,null,1,1,"If you avoid the worst of what you are forbidden, We will remit your sins, and admit you by a Gate of Honor.","S.004:031"]
[null,null,1,1,"If you desire a verdict, the verdict has come to you. And if you desist, it would be best for you. And if you return, We will return; and your troops, however numerous, will not benefit you. God is with the believers.","S.008:019"]
[1,null,null,1,"In fact, it is clear signs in the hearts of those given knowledge. No one renounce Our signs except the unjust.","S.030:049"]
[null,null,1,1,"In fact, they have denied the Hour, and We have prepared for those who deny the Hour a Blaze.","S.026:011"]
[null,null,1,1,"In fact, We have given them the truth, and they are liars.","S.024:090"]
[null,null,1,1,"In fact, We hurl the truth against falsehood, and it crushes it, so it vanishes. Woe unto you, for what you describe.","S.022:018"]
[null,null,2,2,"In their footsteps, We sent Jesus son of Mary, fulfilling the Torah that preceded him; and We gave him the Gospel, wherein is guidance and light, and confirming the Torah that preceded him, and guidance and counsel for the righteous.","S.005:046"]
[null,null,2,2,"Inquire of them, \"Are they more difficult to create, or the others We created?\" We created them from sticky clay.","S.038:011"]
[null,null,1,1,"Is he who was dead, then We gave him life, and made for him a light by which he walks among the people, like he who is in total darkness, and cannot get out of it? Thus the doings of disbelievers are made to appear good to them.","S.006:122"]
[null,null,1,{"$f":"SUM(A452:C452)","v":1},"Is it a wonder to the people that We inspired a man from among them: \"Warn mankind, and give good news to those who believe that they are on a sound footing with their Lord\"? The disbelievers said, \"This is a manifest sorcerer.\"","S.010:002"]
[null,null,1,1,"Is it not a lesson for them, how many generations We have destroyed before them, in whose habitations they walk? Surely in that are signs. Do they not hear?","S.033:026"]
[null,null,2,2,"Is it not guidance for those who inherit the land after its inhabitants, that if We willed, We could strike them for their sins? And seal up their hearts, so that they would not hear?","S.007:100"]
[null,null,1,1,"Is it not instructive to them, how many generations before them We destroyed, in whose settlements they walk? Surely in that are signs for people of understanding.","S.021:128"]
[null,null,2,2,"Is it they who allocate the mercy of your Lord? It is We who have allocated their livelihood in this life, and We elevated some of them in rank above others, that some of them would take others in service. But your Lord's mercy is better than what they amass.","S.044:032"]
[null,null,1,1,"Is it you who create it, or are We the Creator?","S.057:059"]
[null,null,1,1,"Is it you who make it grow, or are We the Grower?","S.057:064"]
[null,null,1,1,"Is it you who produce its tree, or are We the Producer?","S.057:072"]
[null,null,1,1,"Is it you who sent it down from the clouds, or are We the Sender?","S.057:069"]
[null,null,4,4,"It is He who sends the wind ahead of His mercy. Then, when they have gathered up heavy clouds, We drive them to a dead land, where We make water come down, and with it We bring out all kinds of fruits. Thus We bring out the dead-perhaps you will reflect.","S.007:057"]
[null,1,null,1,"It is neither your wealth nor your children that bring you closer to Us, but it is he who believes and does good deeds. These will have a double reward for what they did; and they will reside in the Chambers, in peace and security.","S.035:037"]
[null,null,2,2,"It is they who disbelieved, and barred you from the Sacred Mosque, and prevented the offering from reaching its destination. Were it not for faithful men and faithful women, whom you did not know, you were about to hurt them, and became guilty of an unintentional crime. Thus God admits into His mercy whomever He wills. Had they dispersed, We would have punished those who disbelieved among them with a painful penalty.","S.049:025"]
[null,null,1,1,"It is they who rejected the communications of their Lord, and the encounter with Him. So their works are in vain. And on the Day of Resurrection, We will consider them of no weight.","S.019:105"]
[null,1,null,1,"It is upon Us to guide.","S.093:012"]
[null,1,1,2,"It is We who control life and death, and to Us is the destination.","S.051:043"]
[null,null,2,2,"It is We who give life and cause death, and We are the Inheritors.","S.016:023"]
[null,null,3,3,"It is We who revive the dead; and We write down what they have forwarded, and their traces. We have tallied all things in a Clear Record.","S.037:012"]
[null,1,1,2,"It is We who will inherit the earth and everyone on it, and to Us they will be returned.","S.020:040"]
[null,1,null,1,"It was said, \"O Noah, disembark with peace from Us; and with blessings upon you, and upon communities from those with you.","S.011:048"]
[null,1,null,1,"It will be but a single scream; and behold, they will all be brought before Us.","S.037:053"]
[null,null,1,1,"It will destroy everything by the command of its Lord. And when the morning came upon them, there was nothing to be seen except their dwellings. Thus We requite the guilty people.","S.047:025"]
[null,null,1,1,"Just as We sent down to the separatists.","S.016:090"]
[1,null,1,2,"Just as We sent to you a messenger from among you, who recites Our revelations to you, and purifies you, and teaches you the Book and wisdom, and teaches you what you did not know.","S.002:151"]
[null,null,1,1,"Know that God revives the earth after its death. We thus explain the revelations for you, so that you may understand.","S.058:017"]
[null,null,1,1,"Let those who sell the life of this world for the Hereafter fight in the cause of God. Whoever fights in the cause of God, and then is killed, or achieves victory, We will grant him a great compensation.","S.004:074"]
[1,null,null,1,"Like the behavior of Pharaoh's people and those before them. They rejected Our signs, so God seized them for their sins. God is Strict in retribution.","S.003:011"]
[null,null,1,1,"Likewise, to every prophet We assign enemies from among the wicked. But your Lord suffices as a Guide and Savior.","S.026:031"]
[null,null,1,1,"Likewise, We have assigned for every prophet an enemy-human and jinn devils-inspiring one another with fancy words in order to deceive. But had your Lord willed, they would not have done it. So leave them to their fabrications.","S.006:112"]
[1,null,2,3,"Likewise, We revealed to you the Scripture. Those to whom We gave the Scripture believe in it, and some of these believe in it. None renounce Our communications except the disbelievers.","S.030:047"]
[null,null,2,2,"Likewise, We sent no warner before you to any town, but the wealthy among them said, \"We found our parents on a course, and we are following in their footsteps.\"","S.044:023"]
[null,1,null,1,"Listen to them and watch for them the Day they come to Us. But the wrongdoers today are completely lost.","S.020:038"]
[3,null,null,3,"Moses said, \"Our Lord, you have given Pharaoh and his chiefs splendor and wealth in the worldly life. Our Lord, for them to lead away from Your path. Our Lord, obliterate their wealth, and harden their hearts, they will not believe until they see the painful torment.\"","S.010:088"]
[1,null,1,2,"Most surely We will support Our messengers and those who believe, in this life, and on the Day the witnesses arise.","S.041:051"]
[1,null,null,1,"My Lord, make me one who performs the prayer, and from my offspring. Our Lord, accept my supplication.","S.015:040"]
[null,null,1,1,"Never did We destroy a town, but it had warners.","S.027:208"]
[null,null,1,1,"No calamity occurs on earth, or in your souls, but it is in a Book, even before We make it happen. That is easy for God.","S.058:022"]
[null,null,1,1,"No indeed! We created them from what they know.","S.071:039"]
[null,null,1,1,"No indeed! We will write what he says, and will keep extending the agony for him.","S.020:079"]
[null,null,3,3,"No soul can die except by God's leave, at a predetermined time. Whoever desires the reward of the world, We will give him some of it; and whoever desires the reward of the Hereafter, We will give him some of it; and We will reward the appreciative.","S.003:145"]
[null,null,1,1,"No. If he does not desist, We will drag him by the forelock.","S.097:015"]
[null,null,1,1,"None of the towns We destroyed before them had believed. Will they, then, believe?","S.022:006"]
[1,null,null,1,"Nor can you guide the blind out of their error. You can make hear only those who believe in Our signs, and so have submitted.","S.031:053"]
[1,null,null,1,"Nor can you guide the blind out of their straying. You can make no one listen, except those who believe in Our verses; for they are Muslims.","S.028:081"]
[null,null,1,1,"Nor were you by the side of the Mount when We proclaimed. Rather, it was a mercy from your Lord, that you may warn people who received no warner before you, so that they may take heed.","S.029:046"]
[null,1,2,3,"Nothing prevents Us from sending miraculous signs, except that the ancients called them lies. We gave Thamood the she-camel, a visible sign, but they mistreated her. We do not send the signs except to instill reverence.","S.018:059"]
[null,null,1,1,"O Children of Adam! Do not let Satan seduce you, as he drove your parents out of the Garden, stripping them of their garments, to show them their nakedness. He sees you, him and his clan, from where you cannot see them. We have made the devils friends of those who do not believe.","S.007:027"]
[null,null,1,1,"O children of Adam! We have provided you with clothing to cover your bodies, and for luxury. But the clothing of piety-that is best. These are some of God's revelations, so that they may take heed.","S.007:026"]
[null,null,1,1,"O Children of Israel! We have delivered you from your enemy, and promised you by the right side of the Mount, and sent down to you manna and quails.","S.021:080"]
[null,null,1,1,"O David, We made you a ruler in the land, so judge between the people with justice, and do not follow desire, lest it diverts you from God's path. Those who stray from God's path will have a painful punishment, for having ignored the Day of Account.","S.039:026"]
[null,null,1,1,"O John, hold on to the Scripture firmly, and We gave him wisdom in his youth.","S.020:012"]
[1,null,null,1,"O People of the Book! Our Messenger has come to you, clarifying for you much of what you kept hidden of the Book, and overlooking much. A light from God has come to you, and a clear Book.","S.005:015"]
[1,null,null,1,"O People of the Book! Our Messenger has come to you, making things clear to you-after a cessation of messengers-so that you cannot say, \"No preacher has come to us, and no warner.\" In fact, a preacher has come to you, and a warner; and God is Capable of everything.","S.005:019"]
[null,null,1,1,"O people! A proof has come to you from your Lord, and We sent down to you a clear light.","S.004:174"]
[null,null,5,5,"O people! If you are in doubt about the Resurrection-We created you from dust, then from a small drop, then from a clinging clot, then from a lump of flesh, partly developed and partly undeveloped. In order to clarify things for you. And We settle in the wombs whatever We will for a designated term, and then We bring you out as infants, until you reach your full strength. And some of you will pass away, and some of you will be returned to the vilest age, so that he may not know, after having known. And you see the earth still; but when We send down water on it, it vibrates, and swells, and grows all kinds of lovely pairs.","S.023:005"]
[null,null,2,2,"O people! We created you from a male and a female, and made you races and tribes, that you may know one another. The best among you in the sight of God is the most righteous. God is All-Knowing, Well-Experienced.","S.050:013"]
[null,null,3,3,"O Prophet! We have permitted to you your wives to whom you have given their dowries, and those you already have, as granted to you by God, and the daughters of your paternal uncle, and the daughters of your paternal aunts, and the daughters of your maternal uncle, and the daughters of your maternal aunts who emigrated with you, and a believing woman who has offered herself to the Prophet, if the Prophet desires to marry her, exclusively for you, and not for the believers. We know what We have ordained for them regarding their wives and those their right-hands possess. This is to spare you any difficulty. God is FORGIVING AND MERCIFUL.","S.034:050"]
[null,null,1,1,"O prophet! We have sent you as a witness, and a bearer of good news, and a warner.","S.034:045"]
[null,null,2,2,"O you who believe! Be supporters of God, as Jesus son of Mary said to the disciples, \"Who are my supporters towards God?\" The disciples said, \"We are God's supporters.\" So a group of the Children of Israel believed, while another group disbelieved. We supported those who believed against their foe, so they became dominant.","S.062:014"]
[null,null,1,1,"O you who believe! Do not befriend outsiders who never cease to wish you harm. They love to see you suffer. Hatred has already appeared from their mouths, but what their hearts conceal is worse. We have made the messages clear for you, if you understand.","S.003:118"]
[null,null,1,1,"O you who believe! Eat of the good things We have provided for you, and give thanks to God, if it is Him that you serve.","S.002:172"]
[null,null,1,1,"O you who believe! Give of the good things you have earned, and from what We have produced for you from the earth. And do not pick the inferior things to give away, when you yourselves would not accept it except with eyes closed. And know that God is Sufficient and Praiseworthy.","S.002:267"]
[null,null,1,1,"O you who believe! Remember God's blessings upon you, when forces came against you, and We sent against them a wind, and forces you did not see. God is Observant of what you do.","S.034:009"]
[null,null,1,1,"O you who believe! Spend from what We have given you, before a Day comes in which there is neither trading, nor friendship, nor intercession. The disbelievers are the wrongdoers.","S.002:254"]
[null,null,3,3,"O you who were given the Book! Believe in what We sent down, confirming what you have, before We obliterate faces and turn them inside out, or curse them as We cursed the Sabbath-breakers. The command of God is always done.","S.004:047"]
[null,null,2,{"$f":"SUM(A516:C516)","v":2},"O Zechariah, We give you good news of a son, whose name is John, a name We have never given before.","S.020:007"]
[1,null,null,1,"Obey God and obey the Messenger, and be cautious. If you turn away-know that the duty of Our Messenger is clear communication.","S.005:092"]
[null,null,1,1,"On earth are adjacent terrains, and gardens of vines, and crops, and date-palms, from the same root or from distinct roots, irrigated with the same water. We make some taste better than others. In that are proofs for people who reason.","S.014:004"]
[null,null,2,2,"On that Day, We will leave them surging upon one another. And the Trumpet will be blown, and We will gather them together.","S.019:099"]
[null,null,1,1,"On that Day, We will present the disbelievers to Hell, all displayed.","S.019:100"]
[null,null,1,1,"On the Day when He will say, \"Call on My partners whom you have claimed.\" They will call on them, but they will not answer them. And We will place between them a barrier.","S.019:052"]
[null,null,1,1,"On the Day when We call every people with their leader. Whoever is given his record in his right hand-these will read their record, and they will not be wronged one bit.","S.018:071"]
[null,1,4,5,"On the Day when We fold the heaven, like the folding of a book. Just as We began the first creation, We will repeat it-a promise binding on Us. We will act.","S.022:104"]
[1,null,1,2,"On the Day when We gather from every community a group of those who rejected Our revelations; and they will be restrained.","S.028:083"]
[null,null,1,1,"On the Day when We gather them all together, then say to the idolaters, \"Where are your idols, those you used to claim?\"","S.006:022"]
[null,null,2,2,"On the Day when We raise in every community a witness against them, from among them, and bring you as a witness against these. We have revealed to you the Book, as an explanation of all things, and guidance, and mercy and good news for those who submit.","S.017:089"]
[null,null,1,1,"On the Day when We raise up a witness from every community-those who disbelieved will not be permitted, nor will they be excused.","S.017:084"]
[null,null,2,2,"On the Day when We set the mountains in motion; and you see the earth emerging; and We gather them together, and leave none of them behind.","S.019:047"]
[null,null,1,1,"On the Day when We will gather the righteous to the Most Merciful, as guests.","S.020:085"]
[null,null,2,2,"On the Day when We will gather them altogether, then say to those who ascribed partners, \"To your place, you and your partners.\" Then We will separate between them, and their partners will say, \"It was not us you were worshiping.\"","S.010:028"]
[null,null,1,1,"On the Day when We will say to Hell, \"Are you full?\" And it will say, \"Are there any more?\"","S.051:030"]
[null,1,1,2,"On this Day, We will seal their mouths, and their hands will speak to Us, and their feet will testify to everything they had done.","S.037:065"]
[null,null,2,2,"Or are We to treat those who believe and do righteous deeds like those who make trouble on earth? Or are We to treat the pious like the shameless?","S.039:028"]
[null,1,null,1,"Or are you confident that He will not return you to it once again, and unleash a hurricane against you, and drown you for your ingratitude? Then you will find no helper against Us.","S.018:069"]
[null,null,1,1,"Or did We create the angels females, as they witnessed?\"","S.038:150"]
[null,null,2,2,"Or do they envy the people for what God has given them of His grace? We have given the family of Abraham the Book and wisdom, and We have given them a great kingdom.","S.004:054"]
[null,2,null,2,"Or do they have gods who can defend them against Us? They cannot help themselves, nor will they be protected from Us.","S.022:043"]
[1,null,1,2,"Or do they think that We cannot hear their secrets and their conspiracies? Yes indeed, Our messengers are by them, writing down.","S.044:080"]
[null,1,null,1,"Or do those who commit sins think they can fool Us? Terrible is their opinion!","S.030:004"]
[null,1,null,1,"Or do you have oaths from Us, binding until the Day of Resurrection, that you will have whatever you demand?","S.069:039"]
[null,null,1,1,"Or have We given them a book prior to this one, to which they adhere?","S.044:021"]
[1,null,1,2,"Or lest you say, \"Had the Scripture been revealed to us, we would have been better guided than they.\" Clarification has come to you from your Lord, and guidance, and mercy. Who then does greater wrong than he who gives the lie to God's messages, and turns away from them? We will repay those who turn away from Our messages with the worst kind of punishment, because of their turning away.","S.006:157"]
[null,null,2,2,"Or like him who passed by a town collapsed on its foundations. He said, \"How can God revive this after its demise?\" Thereupon God caused him to die for a hundred years, and then resurrected him. He said, \"For how long have you tarried?\" He said, \"I have tarried for a day, or part of a day.\" He said, \"No. You have tarried for a hundred years. Now look at your food and your drink-it has not spoiled-and look at your donkey. We will make you a wonder for mankind. And look at the bones, how We arrange them, and then clothe them with flesh.\" So when it became clear to him, he said, \"I know that God has power over all things.\"","S.002:259"]
[null,null,2,2,"Or show you what We have promised them; for We have absolute power over them.","S.044:042"]
[null,null,1,1,"Or, who created the heavens and the earth, and rains down water from the sky for you? With it We produce gardens full of beauty, whose trees you could not have produced. Is there another god with God? But they are a people who equate.","S.028:060"]
[1,null,null,1,"Other messengers before you were rejected, but they endured rejection and persecution until Our help came to them. There can be no change to God's words. News of the Messengers has already reached you.","S.006:034"]
[2,null,null,2,"Our Lord, we have heard a caller calling to the faith: 'Believe in your Lord,' and we have believed. Our Lord! Forgive us our sins, and remit our misdeeds, and make us die in the company of the virtuous.","S.003:193"]
[null,null,1,1,"Perhaps our Lord will give us a better substitute for it. We are turning to our Lord.\"","S.069:032"]
[null,null,2,2,"Perhaps your Lord will have mercy on you. But if you revert, We will revert. We have made Hell a prison for the disbelievers.","S.018:008"]
[null,null,1,1,"Quaroon belonged to the clan of Moses, but he oppressed them. We had given him treasures, the keys of which would weigh down a group of strong men. His people said to him, \"Do not exult; God does not love the exultant.","S.029:076"]
[null,null,2,2,"Recall that We received a pledge from the prophets, and from you, and from Noah, and Abraham, and Moses, and Jesus son of Mary. We received from them a solemn pledge.","S.034:007"]
[null,null,1,1,"Relaxing on luxurious furnishings; and We will couple them with gorgeous spouses.","S.053:020"]
[null,null,1,1,"Remember how We saved you from Pharaoh's people, who subjected you to the worst of sufferings-killing your sons and sparing your women. In that was a tremendous trial from your Lord.","S.007:141"]
[null,null,1,1,"Repel evil by what is better. We are aware of what they describe.","S.024:096"]
[1,null,null,1,"Sailing before Our eyes; a reward for him who was rejected.","S.055:014"]
[null,null,1,1,"Say, \"Do you argue with us about God, when He is our Lord and your Lord, and We have our works, and you have your works, and we are sincere to Him?\"","S.002:139"]
[null,null,1,1,"Say, \"Have you considered those partners of yours that you worship instead of God? Show me what they have created on earth. Or do they have any share in the heavens?\" Or have We given them a book whose clear teachings they follow? In fact, the wrongdoers promise one another nothing but delusions.","S.036:040"]
[null,null,1,1,"Say, \"Have you considered? If God took away your hearing and your sight, and set a seal on your hearts, what god other than God would restore them to you?\" Note how We explain the revelations in various ways, yet they still turn away.","S.006:046"]
[null,null,1,1,"Say, \"He is Able to send upon you an affliction, from above you, or from under your feet. Or He can divide you into factions, and make you taste the violence of one another. Note how We explain the revelations, so that they may understand.\"","S.006:065"]
[null,null,1,1,"Say, \"He is the Compassionate. We have faith in Him, and in Him we trust. Soon you will know who is in evident error.\"","S.068:029"]
[null,null,1,1,"Say, \"If the ocean were ink for the words of my Lord, the ocean would run out, before the words of my Lord run out,\" even if We were to bring the like of it in addition to it.","S.019:109"]
[null,null,1,1,"Say, \"If there were angels on earth, walking around in peace, We would have sent down to them from heaven an angel messenger.\"","S.018:095"]
[1,null,null,1,"Say, \"Produce your witnesses who would testify that God has prohibited this.\" If they testify, do not testify with them. And do not follow the whims of those who deny Our revelation, and those who do not believe in the Hereafter, and those who equate others with their Lord.","S.006:150"]
[null,null,1,1,"Say, \"Shall We inform you of the greatest losers in their works?\"","S.019:103"]
[null,null,2,2,"Say, \"We believe in God, and in what was revealed to us; and in what was revealed to Abraham, and Ishmael, and Isaac, and Jacob, and the Patriarchs; and in what was given to Moses, and Jesus, and the prophets from their Lord. We make no distinction between any of them, and to Him we submit.\"","S.003:084"]
[null,null,2,2,"Say, \"We believe in God; and in what was revealed to us; and in what was revealed to Abraham, and Ishmael, and Isaac, and Jacob, and the Patriarchs; and in what was given to Moses and Jesus; and in what was given to the prophets-from their Lord. We make no distinction between any of them, and to Him we surrender.\"","S.002:136"]
[null,null,1,1,"Say, \"Who delivers you from the darkness of land and sea?\" You call upon Him humbly and inwardly: \"If He delivers us from this, We will surely be among the thankful.\"","S.006:063"]
[null,null,1,1,"Say, \"Who forbade God's finery which He has produced for His servants, and the delights of livelihood?\" Say, \"They are for those who believe, in this present world, but exclusively theirs on the Day of Resurrection.\" We thus detail the revelations for people who know.","S.007:032"]
[null,null,1,1,"See how We have favored some of them over others; yet the Hereafter is greater in ranks, and greater in favors.","S.018:021"]
[null,null,1,1,"Shall I seek a judge other than God, when He is the One who revealed to you the Book, explained in detail? Those to whom We gave the Book know that it is the truth revealed from your Lord. So do not be of those who doubt.","S.006:114"]
[null,null,1,1,"Shall We hold back the Reminder from you, since you are a transgressing people?","S.044:005"]
[null,null,1,1,"Shall We treat the Muslims like the villains?","S.069:035"]
[1,null,1,2,"She desired him, and he desired her, had he not seen the proof of his Lord. It was thus that We diverted evil and indecency away from him. He was one of Our loyal servants.","S.013:024"]
[1,null,1,2,"She screened herself away from them, and We sent to her Our spirit, and He appeared to her as an immaculate human.","S.020:017"]
[1,null,null,1,"So avoid him who has turned away from Our remembrance, and desires nothing but the present life.","S.054:029"]
[null,null,1,1,"So be not in doubt regarding what these people worship. They worship only as their ancestors worshiped before. We will pay them their due in full, without any reduction.","S.012:109"]
[null,2,2,4,"So be patient. The promise of God is true. Whether We show you some of what We have promised them, or take you to Us, to Us they will be returned.","S.041:077"]
[null,null,1,1,"So believe in God and His Messenger, and the Light which We sent down. God is Aware of everything you do.","S.065:008"]
[null,null,1,1,"So do not hurry against them. We are counting for them a countdown.","S.020:084"]
[null,null,3,{"$f":"SUM(A580:C580)","v":3},"So he began with their bags, before his brother's bag. Then he pulled it out of his brother's bag. Thus We devised a plan for Joseph; he could not have detained his brother under the king's law, unless God so willed. We elevate by degrees whomever We will; and above every person of knowledge, there is one more learned.","S.013:076"]
[null,null,1,1,"So He completed them as seven universes in two days, and He assigned to each universe its laws. And We decorated the lower universe with lamps, and for protection. That is the design of the Almighty, the All-Knowing.","S.042:012"]
[null,null,1,1,"So it is, and We will wed them to lovely companions.","S.045:054"]
[null,null,2,2,"So it was, that We caused them to be discovered, that they would know that the promise of God is true, and that of the Hour there is no doubt. As they were disputing their case among themselves, they said, \"Build over them a building.\" Their Lord knows best about them. Those who prevailed over their case said, \"We will set up over them a place of worship.\"","S.019:021"]
[null,null,1,1,"So it was. And We made the Children of Israel inherit them.","S.027:059"]
[null,null,1,1,"So it was; and We passed it on to another people.","S.045:028"]
[null,null,1,1,"So leave Me to those who reject this discourse; We will proceed against them gradually, from where they do not know.","S.069:044"]
[null,null,1,1,"So let their words not sadden you. We know what they conceal, and what they reveal.","S.037:076"]
[null,null,1,1,"So note the outcome of their planning; We destroyed them and their people, altogether.","S.028:051"]
[1,null,null,1,"So obey God, and obey the Messenger. But if you turn away-it is only incumbent on Our Messenger to deliver the clear message.","S.065:012"]
[1,null,null,1,"So patiently await the decision of your Lord, for you are before Our Eyes; and proclaim the praises of your Lord when you arise.","S.053:048"]
[null,null,1,1,"So taste! We will increase you only in suffering.","S.079:030"]
[null,null,1,1,"So taste, because you forgot the meeting of this Day of yours; We have forgotten you; so taste the eternal torment for what you used to do.","S.033:014"]
[null,null,1,1,"So they denied him, and We destroyed them. Surely in this is a sign, but most of them are not believers.","S.027:139"]
[null,null,1,1,"So they went away with him, and agreed to put him at the bottom of the well. And We inspired him, \"You will inform them of this deed of theirs when they are unaware.\"","S.013:015"]
[null,2,2,4,"So We answered him, and gave him John. And We cured his wife for him. They used to vie in doing righteous deeds, and used to call on Us in love and awe, and they used to humble themselves to Us.","S.022:090"]
[null,null,2,2,"So We answered him, and saved him from the affliction. Thus We save the faithful.","S.022:088"]
[null,1,1,2,"So We answered him, lifted his suffering, and restored his family to him, and their like with them-a mercy from Us, and a reminder for the worshipers.","S.022:084"]
[null,null,1,1,"So We caused the earth to cave in on him and his mansion. He had no company to save him from God, and he could not defend himself.","S.029:081"]
[null,null,1,1,"So We delivered him and those with him in the laden Ark.","S.027:119"]
[null,null,1,1,"So We drove them out of gardens and springs.","S.027:057"]
[null,1,1,2,"So We forgave him that. And for him is nearness to Us, and a good place of return.","S.039:025"]
[null,null,1,1,"So We gave him good news of a clement boy.","S.038:101"]
[3,null,1,4,"So We inspired him: \"Build the Ark under Our observation and by Our inspiration. And when Our decree comes to pass, and the oven boils over, load into it two pairs of every kind, together with your family, except those of them against whom the word has already been pronounced. And do not speak to me concerning those who did wrong; for they are to be drowned.\"","S.024:027"]
[null,null,1,1,"So We let loose upon them the flood, and the locusts, and the lice, and the frogs, and blood-all explicit signs-but they were too arrogant. They were a sinful people.","S.007:133"]
[null,null,1,1,"So We opened the floodgates of heaven with water pouring down.","S.055:011"]
[null,null,1,1,"So We placed the wind at his service, blowing gently by his command, wherever he directed.","S.039:036"]
[null,null,1,1,"So We saved him and his family, altogether.","S.027:170"]
[null,null,2,2,"So We saved him and his family, except for his wife, whom We destined to be among the laggards.","S.028:057"]
[1,1,2,4,"So We saved him and those with him, by mercy from Us, and We cut off the roots of those who rejected Our revelations and were not believers.","S.007:072"]
[null,null,1,1,"So We seized him and his troops, and threw them into the sea, and He was to blame.","S.052:040"]
[null,null,2,2,"So We seized him, and his troops, and We threw them into the sea. Observe, therefore, what was the end of the oppressors.","S.029:040"]
[null,null,1,1,"So We took revenge upon them. Both are clearly documented.","S.016:079"]
[1,null,1,2,"So We took vengeance on them, and drowned them in the sea-because they rejected Our signs, and paid no heed to them.","S.007:136"]
[null,null,1,1,"So We unleashed upon them a screaming wind, for a few miserable days, to make them taste the punishment of shame in this life; but the punishment of the Hereafter is more shameful; and they will not be saved.","S.042:016"]
[null,null,1,1,"So We wreaked vengeance upon them. Behold, then, what was the fate of those who deny.","S.044:025"]
[null,1,1,2,"Some enjoyment in this world; then to Us is their return; then We will make them taste the severe punishment on account of their disbelief.","S.010:070"]
[null,null,1,1,"Some ladies in the city said, \"The governor's wife is trying to seduce her servant. She is deeply in love with him. We see she has gone astray.\"","S.013:030"]
[null,null,2,2,"Some messengers We have already told you about, while some messengers We have not told you about. And God spoke to Moses directly.","S.004:164"]
[1,null,null,1,"Such is Our bounty, inexhaustible.","S.039:054"]
[1,null,1,2,"Such is Paradise which We will give as inheritance to those of Our servants who are devout.","S.020:063"]
[1,null,null,1,"Such is the recompense of God's enemies-the Fire-where they will have their permanent home, in recompense for having disregarded Our revelations.","S.042:028"]
[null,null,2,2,"Such was the case with the people of Pharaoh, and those before them. They denied the signs of their Lord, so We annihilated them for their wrongs, and We drowned the people of Pharaoh-they were all evildoers.","S.008:054"]
[null,null,1,1,"Surely in that are signs. We are always testing.","S.024:030"]
[null,null,2,2,"Surely We revealed the Message, and We will surely preserve it.","S.016:009"]
[null,null,1,1,"Take with your hand a bundle, and strike with it, and do not break your oath. We found him patient. What an excellent servant! He was obedient.","S.039:044"]
[null,null,1,1,"Tell My servants who have believed to perform the prayers, and to give from what We have given them, secretly and publicly, before a Day comes in which there is neither trading nor friendship.","S.015:031"]
[null,null,1,1,"That is the good news God gives to His servants who believe and do good deeds. Say, \"I ask of you no wage for it, except affection among the near of kin.\" Whoever does a good deed, We will increase its goodness for him. God is Forgiving and Appreciative.","S.043:023"]
[1,null,3,4,"That was Our argument which We gave to Abraham against his people. We elevate by degrees whomever We will. Your Lord is Wise and Informed.","S.006:083"]
[1,null,1,2,"That We may show you some of Our greatest signs.","S.021:023"]
[null,null,1,1,"The arrogant elite among his people said, \"O Shuaib, We will evict you from our town, along with those who believe with you, unless you return to our religion.\" He said, \"Even if we are unwilling?\"","S.007:088"]
[null,null,2,2,"The chiefs of Pharaoh's people said, \"Will you let Moses and his people cause trouble in the land, and forsake you and your gods?\" He said, \"We will kill their sons, and spare their women. We have absolute power over them.\"","S.007:127"]
[null,1,null,1,"The Day when the earth will crack for them at once. That is an easy gathering for Us.","S.051:044"]
[null,null,2,2,"The Day when We launch the Great Assault-We will avenge.","S.045:016"]
[null,null,1,1,"The descendants of those We carried with Noah. He was an appreciative servant.","S.018:003"]
[null,null,1,1,"The Egyptian who bought him said to his wife, \"Take good care of him; he may be useful to us, or we may adopt him as a son.\" We thus established Joseph in the land, to teach him the interpretation of events. God has control over His affairs, but most people do not know.","S.013:021"]
[null,null,1,1,"The heart of Moses' mother became vacant. She was about to disclose him, had We not steadied her heart, that she may remain a believer.","S.029:010"]
[null,null,1,1,"The Jews say, \"God's hand is tied.\" It is their hands that are tied, and they are cursed for what they say. In fact, His hands are outstretched; He gives as He wills. Certainly, what was revealed to your from your Lord will increase many of them in defiance and blasphemy. And We placed between them enmity and hatred, until the Day of Resurrection. Whenever they kindle the fire of war, God extinguishes it. And they strive to spread corruption on earth. God does not love the corrupters.","S.005:064"]
[1,null,3,4,"The likeness of the present life is this: water that We send down from the sky is absorbed by the plants of the earth, from which the people and the animals eat. Until, when the earth puts on its fine appearance, and is beautified, and its inhabitants think that they have mastered it, Our command descends upon it by night or by day, and We turn it into stubble, as if it had not flourished the day before. We thus clarify the revelations for people who reflect.","S.010:024"]
[null,null,1,1,"The Messiah son of Mary was only a messenger, before whom other Messengers had passed away, and his mother was a woman of truth. They both used to eat food. Note how We make clear the revelations to them; then note how deluded they are.","S.005:075"]
[null,null,2,2,"The People of the Scripture challenge you to bring down to them a book from the sky. They had asked Moses for something even greater. They said, \"Show us God plainly.\" The thunderbolt struck them for their wickedness. Then they took the calf for worship, even after the clear proofs had come to them. Yet We pardoned that, and We gave Moses a clear authority.","S.004:153"]
[1,null,null,1,"The polytheists will say, \"Had God willed, we would not have practiced idolatry, nor would have our forefathers, nor would we have prohibited anything.\" Likewise those before them lied, until they tasted Our might. Say, \"Do you have any knowledge that you can produce for us? You follow nothing but conjecture, and you only guess.\"","S.006:148"]
[null,null,1,1,"The promise of truth has drawn near. The eyes of those who disbelieved will stare in horror: \"Woe to us. We were oblivious to this. In fact, we were wrongdoers.\"","S.022:097"]
[1,null,1,2,"The tradition of the messengers We sent before you-you will find no change in Our rules.","S.018:077"]
[null,null,1,{"$f":"SUM(A644:C644)","v":1},"The Word of our Lord has been realized against us. We are tasting it.","S.038:031"]
[1,null,null,1,"Their sides shun their beds, as they pray to their Lord, out of reverence and hope; and from Our provisions to them, they give.","S.033:016"]
[null,null,2,2,"Then how will it be, when We bring a witness from every community, and We bring you as a witness against these?","S.004:041"]
[null,null,1,1,"Then the Blast struck them, justifiably, and We turned them into scum. So away with the wicked people.","S.024:041"]
[2,1,1,4,"Then they came upon a servant of Ours, whom We had blessed with mercy from Us, and had taught him knowledge from Our Own.","S.019:065"]
[null,1,null,1,"Then upon Us is its explanation.","S.076:019"]
[null,1,null,1,"Then upon Us rests their reckoning.","S.089:026"]
[null,null,1,1,"Then We annihilated the others.","S.038:136"]
[null,null,1,1,"Then We awakened them to know which of the two groups could better calculate the length of their stay.","S.019:012"]
[null,null,1,1,"Then We destroyed the others.","S.027:172"]
[null,null,5,5,"Then We developed the seed into a clot. Then We developed the clot into a lump. Then We developed the lump into bones. Then We clothed the bones with flesh. Then We produced it into another creature. Most Blessed is God, the Best of Creators.","S.024:014"]
[null,null,1,1,"Then We drowned the others.","S.027:066"]
[null,null,1,1,"Then We drowned the others.","S.038:082"]
[null,null,1,1,"Then We drowned the rest.","S.027:120"]
[1,null,4,5,"Then We fulfilled Our promise to them, and We saved them together with whomever We willed, and We destroyed the extravagant.","S.022:009"]
[null,null,1,1,"Then We gave Moses the Scripture, perfect for the righteous, and explaining everything clearly, and a beacon, and mercy, that they may believe in the encounter with their Lord.","S.006:154"]
[null,null,1,1,"Then We gave you back your turn against them, and supplied you with wealth and children, and made you more numerous.","S.018:006"]
[null,null,1,1,"Then We inspired you: \"Follow the religion of Abraham, the Monotheist. He was not an idol-worshiper.\"","S.017:123"]
[null,null,1,1,"Then We made him a seed, in a secure repository.","S.024:013"]
[null,null,1,1,"Then We made you successors on earth after them, to see how you would behave.","S.010:014"]
[null,null,1,1,"Then We pardoned you after that, so that you might be grateful.","S.002:052"]
[1,null,2,3,"Then We passed the Book to those of Our servants whom We chose. Some of them wrong their souls, and some follow a middle course, and some are in the foremost in good deeds by God's leave; that is the greatest blessing.","S.036:032"]
[null,null,1,1,"Then We revived you after your death, so that you may be appreciative.","S.002:056"]
[1,1,1,3,"Then We save Our messengers and those who believe. It is binding on Us to save the believers.","S.010:103"]
[null,null,1,1,"Then We sealed their ears in the cave for a number of years.","S.019:011"]
[null,null,1,1,"Then We sent him to a hundred thousand, or more.","S.038:147"]
[1,null,4,5,"Then We sent in their wake Our messengers, and followed up with Jesus son of Mary, and We gave him the Gospel, and instilled in the hearts of those who followed him compassion and mercy. But as for the monasticism which they invented-We did not ordain it for them-only to seek God's approval. But they did not observe it with its due observance. So We gave those of them who believed their reward, but many of them are sinful.","S.058:027"]
[1,null,1,2,"Then We sent Moses and his brother Aaron, with Our signs and a clear authority.","S.024:045"]
[1,null,2,3,"Then We sent Our messengers in succession. Every time a messenger came to his community, they called him a liar. So We made them follow one another, and made them history. So away with a people who do not believe.","S.024:044"]
[null,null,1,1,"Then We set you upon a pathway of faith, so follow it, and do not follow the inclinations of those who do not know.","S.046:018"]
[null,null,2,2,"Then We substituted prosperity in place of hardship. Until they increased in number, and said, \"Adversity and prosperity has touched our ancestors.\" Then We seized them suddenly, while they were unaware.","S.007:095"]
[null,null,1,1,"Then We threw him into the wilderness, and he was sick.","S.038:145"]
[null,1,1,2,"Then We will inherit from him what he speaks of, and he will come to Us alone.","S.020:080"]
[null,null,1,1,"Then We will rescue those who were devout, and leave the wrongdoers in it, on their knees.","S.020:072"]
[null,1,1,2,"Then We withdraw it towards Us gradually.","S.026:046"]
[null,1,1,2,"Then We would have made you taste double in life, and double at death; then you would have found for yourself no helper against Us.","S.018:075"]
[null,null,2,2,"Then, after him, We sent messengers to their people. They came to them with the clear proofs, but they would not believe in anything they had already rejected. Thus We set a seal on the hearts of the hostile.","S.010:074"]
[null,null,1,1,"Then, after them, We established another generation.","S.024:031"]
[null,null,1,1,"Then, after them, We raised other generations.","S.024:042"]
[1,null,1,2,"Then, after them, We sent Moses and Aaron with Our proofs to Pharaoh and his dignitaries. But they acted arrogantly. They were sinful people.","S.010:075"]
[1,null,1,2,"Then, after them, We sent Moses with Our miracles to Pharaoh and his establishment, but they denounced them. So consider the end of the evildoers.","S.007:103"]
[null,null,1,1,"Then, out of every sect, We will snatch those most defiant to the Most Merciful.","S.020:069"]
[null,1,null,1,"Then, when he came to them with the truth from Us, they said, \"Kill the sons of those who have believed with him, and spare their daughters.\" But the scheming of the unbelievers can only go astray.","S.041:025"]
[1,1,1,3,"Then, when Our command came, We saved Saleh and those who believed with him, by a mercy from Us, from the disgrace of that day. Your Lord is the Strong, the Mighty.","S.012:066"]
[1,null,1,2,"Then, when Our envoys came to Lot, they were mistreated, and he was troubled and distressed on their account. They said, \"Do not fear, nor grieve. We will save you and your family, except for your wife, who will remain behind.\"","S.030:033"]
[null,null,2,2,"Then, when they disregarded what they were reminded of, We opened for them the gates of all things. Until, when they delighted in what they were given, We seized them suddenly; and at once, they were in despair.","S.006:044"]
[null,null,1,1,"Then, when they entered into his presence, they said, \"Mighty governor, adversity has befallen us, and our family. We have brought scant merchandise. But give us full measure, and be charitable towards us-God rewards the charitable.\"","S.013:088"]
[null,null,2,2,"Then, when they neglected what they were reminded of, We saved those who prohibited evil, and We seized those who did wrong with a terrible punishment, because of their sinfulness.","S.007:165"]
[null,null,1,1,"Then, when they rebelled against the commands to refrain, We said to them, \"Be despicable apes.\"","S.007:166"]
[1,null,null,1,"Then, when they sensed Our might, they started running away from it.","S.022:012"]
[1,null,1,2,"Then, when they witnessed Our might, they said, \"We believe in God alone, and we reject what we used to associate with Him.\"","S.041:084"]
[null,null,1,1,"Then, when We decreed death for him, nothing indicated his death to them except an earthworm eating at his staff. Then, when he fell down, it became clear to the sprites that, had they known the unseen, they would not have remained in the demeaning torment.","S.035:014"]
[null,null,1,1,"Then, when We have recited it, follow its recitation.","S.076:018"]
[null,null,1,1,"There is a ban on the town that We had destroyed-that they will not return.","S.022:095"]
[null,null,1,1,"There is no animal on land, nor a bird flying with its wings, but are communities like you. We neglected nothing in the Scripture. Then to their Lord they will be gathered.","S.006:038"]
[null,null,1,1,"There is no city but We will destroy before the Day of Resurrection, or punish it with a severe punishment. This is inscribed in the Book.","S.018:058"]
[null,null,1,1,"There is no good in much of their private counsels, except for him who advocates charity, or kindness, or reconciliation between people. Whoever does that, seeking God's approval, We will give him a great compensation.","S.004:114"]
[null,1,1,2,"There is not a thing but with Us are its stores, and We send it down only in precise measure.","S.016:021"]
[null,null,1,1,"There is nothing but our life in this world. We die, and we live, and we are not resurrected.","S.024:037"]
[null,null,1,1,"Therein they will have whatever they desire-and We have even more.","S.051:035"]
[null,null,1,1,"These are accounts from the Unseen, which We reveal to you. You were not with them when they cast their lots as to which of them would take charge of Mary; nor were you with them as they quarreled.","S.003:044"]
[null,null,1,1,"These are God's revelations, which We recite to you in truth. You are one of the messengers.","S.002:252"]
[null,null,1,1,"These are God's Verses which We recite to you in truth. In which message, after God and His revelations, will they believe?","S.046:006"]
[null,null,2,2,"These are some of the prophets God has blessed, from the descendants of Adam, and from those We carried with Noah, and from the descendants of Abraham and Israel, and from those We guided and selected. Whenever the revelations of the Most Gracious are recited to them, they would fall down, prostrating and weeping.","S.020:058"]
[null,null,1,{"$f":"SUM(A708:C708)","v":1},"These are the revelations of God. We recite them to you in truth. God desires no injustice for mankind.","S.003:108"]
[null,null,1,1,"These are the unbelievers, truly. We have prepared for the unbelievers a shameful punishment.","S.004:151"]
[null,null,3,3,"These messengers: We gave some advantage over others. To some of them God spoke directly, and some He raised in rank. We gave Jesus son of Mary the clear miracles, and We strengthened him with the Holy Spirit. Had God willed, those who succeeded them would not have fought one another, after the clear signs had come to them; but they disputed; some of them believed, and some of them disbelieved. Had God willed, they would not have fought one another; but God does whatever He desires.","S.002:253"]
[1,null,null,1,"These will be given their reward twice, because they persevered; and they counter evil with good; and from Our provisions to them, they give.","S.029:054"]
[1,null,1,2,"They almost lured you away from what We have revealed to you, so that you would invent something else in Our name. In that case, they would have taken you for a friend.","S.018:073"]
[1,null,null,1,"They believe in Our communications, those who, when reminded of them, fall down prostrate, and glorify their Lord with praise, and are not proud.","S.033:015"]
[null,null,1,1,"They even lusted for his guest, so We obliterated their eyes. \"So taste My punishment and My warnings.\"","S.055:037"]
[null,null,1,1,"They have denied you because of what you say; so you can neither avert, nor help. Whoever among you commits injustice, We will make him taste a grievous punishment.","S.026:019"]
[null,null,1,1,"They planned a plan, and We planned a plan, but they did not notice.","S.028:050"]
[null,null,1,1,"They planned to harm him, but We made them the worst losers.","S.022:070"]
[1,null,1,2,"They rejected Our signs, all of them, so We seized them-the seizure of an Almighty Omnipotent.","S.055:042"]
[null,null,1,1,"They said, \"Are we to follow one of us, a human being? We would then go astray, and end up in Hell.","S.055:024"]
[null,null,1,1,"They said, \"By God, God has preferred you over us. We were definitely in the wrong.\"","S.013:091"]
[null,null,1,1,"They said, \"Did you come to us to divert us from what we found our ancestors following, and so that you become prominent in the land? We will never believe in you.\"","S.010:078"]
[null,null,1,1,"They said, \"Glory be to You! We have no knowledge except what You have taught us. It is you who are the Knowledgeable, the Wise.\"","S.002:032"]
[1,null,null,1,"They said, \"In God we have put our trust. Our Lord, do not make us victims of the oppressive people.\"","S.010:085"]
[null,null,1,1,"They said, \"O Moses, we will not enter it, ever, as long as they are in it. So go ahead, you and your Lord, and fight. We are staying right here.\"","S.005:024"]
[null,null,1,1,"They said, \"O noble prince, he has a father, a very old man, so take one of us in his place. We see that you are a good person.\"","S.013:078"]
[null,null,1,1,"They said, \"O Saleh, we had hopes in you before this. Are you trying to prevent us from worshiping what our parents worship? We are in serious doubt regarding what you are calling us to.\"","S.012:062"]
[1,null,null,1,"They were of Our believing servants.","S.038:122"]
[null,1,2,3,"They will be presented before your Lord in a row. \"You have come to Us as We created you the first time. Although you claimed We would not set a meeting for you.\"","S.019:048"]
[null,null,1,1,"They wished him ill, but We made them the losers.","S.038:098"]
[1,null,1,2,"This Book of Ours speaks about you in truth. We have been transcribing what you have been doing.\"","S.046:029"]
[null,null,1,1,"This continued to be their cry, until We made them silent ashes.","S.022:015"]
[null,null,1,1,"This is how We deal with the guilty.","S.078:018"]
[null,null,1,1,"This is how We reward the doers of good.","S.078:044"]
[null,null,1,1,"This is news from the past that We reveal to you. You were not present with them when they plotted and agreed on a plan.","S.013:102"]
[1,null,null,1,"This is Our gift; so give generously, or withhold; without account.","S.039:039"]
[null,null,1,1,"This is the Day of Separation; We have gathered you, together with the ancients.","S.078:038"]
[null,null,1,1,"This is the straight path of your Lord. We have explained the revelations in detail for people who recollect.","S.006:126"]
[1,null,null,1,"This is their repayment for having blasphemed against Our revelations, and having said, \"Shall we, when we have become bones and fragments, be resurrected as a new creation?\"","S.018:098"]
[null,null,1,1,"This is what We recite to you of the Verses and the Wise Reminder.","S.003:058"]
[null,null,1,1,"This too is a blessed message that We revealed. Are you going to deny it?","S.022:050"]
[null,null,1,1,"This too is a blessed Scripture that We revealed; so follow it, and be righteous, that you may receive mercy.","S.006:155"]
[null,null,1,1,"This too is a Scripture that We revealed-blessed-verifying what preceded it, that you may warn the Mother of Cities and all around it. Those who believe in the Hereafter believe in it, and are dedicated to their prayers.","S.006:092"]
[1,null,2,3,"Those against whom the sentence is justified will say, \"Our Lord, these are they whom we misled. We misled them, as we were misled. We beg Your forgiveness; it was not us they used to worship.\"","S.029:063"]
[null,null,2,2,"Those are they from whom We accept the best of their deeds, and We overlook their misdeeds, among the dwellers of Paradise-the promise of truth which they are promised.","S.047:016"]
[null,null,2,2,"Those are they to whom We gave the Book, and wisdom, and prophethood. If these reject them, We have entrusted them to others who do not reject them.","S.006:089"]
[null,null,1,1,"Those before them also denied the Truth, yet they have not attained one-tenth of what We had given them. They rejected My messengers, so how was My disapproval?","S.035:045"]
[null,null,1,1,"Those to whom We gave the Scripture before it believe in it.","S.029:052"]
[null,null,1,1,"Those to whom We gave the Scripture rejoice in what was revealed to you, while some factions reject parts of it. Say, \"I am commanded to worship God, and to never associate anything with Him. To Him I invite, and to Him is my return.\"","S.014:036"]
[null,null,1,1,"Those to whom We have given the Book recognize it as they recognize their own children. But some of them conceal the truth while they know.","S.002:146"]
[null,null,1,1,"Those to whom We have given the Book recognize it as they recognize their own children; but those who have lost their souls do not believe.","S.006:020"]
[null,null,1,1,"Those to whom We have given the Scripture follow it, as it ought to be followed-these believe in it. But as for those who reject it-these are the losers.","S.002:121"]
[null,null,1,1,"Those who are stingy, and exhort people to stinginess, and conceal what God has given them from His bounty. We have prepared for the disbelievers a disgraceful punishment.","S.004:037"]
[null,null,2,2,"Those who believe and do righteous deeds-We will remit their sins, and We will reward them according to the best of what they used to do.","S.030:007"]
[1,null,null,1,"Those who believe in God and His messengers-these are the sincere and the witnesses with their Lord; they will have their reward and their light. But as for those who disbelieve and deny Our revelations-these are the inmates of the Blaze.","S.058:019"]
[null,null,1,1,"Those who believe in the unseen, and perform the prayers, and give from what We have provided for them.","S.002:003"]
[null,null,2,2,"Those who believed and their offspring followed them in faith-We will unite them with their offspring, and We will not deprive them of any of their works. Every person is hostage to what he has earned.","S.053:021"]
[1,null,null,1,"Those who believed in Our revelations, and were submissive.","S.044:069"]
[1,null,1,2,"Those who call the Book a lie, and what We sent Our messengers with-they will surely know.","S.041:070"]
[1,null,null,1,"Those who deny Our revelations and the meeting of the Hereafter-their deeds will come to nothing. Will they be repaid except according to what they used to do?","S.007:147"]
[1,1,null,2,"Those who despise Our revelations are not hidden from Us. Is he who is hurled into the Fire better? Or he who arrives safely on the Day of Resurrection? Do as you please; He is Seeing of everything you do.","S.042:040"]
[null,null,2,2,"Those who disbelieve should not assume that We respite them for their own good. In fact, We only respite them so that they may increase in sinfulness. A humiliating torment awaits them.","S.003:178"]
[1,null,null,1,"Those who dispute Our signs know that there is no asylum for them.","S.043:035"]
[null,1,null,1,"Those who do not expect to meet Us say, \"If only the angels were sent down to us, or we could see our Lord.\" They have grown arrogant within themselves, and have become excessively defiant.","S.026:021"]
[1,1,null,2,"Those who do not hope to meet Us, and are content with the worldly life, and are at ease in it, and those who pay no heed to Our signs.","S.010:007"]
[null,null,1,1,"Those who do not know say, \"If only God would speak to us, or a sign would come to us.\" Thus said those who were before them. Their hearts are alike. We have made the signs clear for people who are certain.","S.002:118"]
[null,null,1,1,"Those who emigrate for God's sake after being persecuted, We will settle them in a good place in this world; but the reward of the Hereafter is greater, if they only knew.","S.017:041"]
[null,null,1,1,"Those who idolized the calf have incurred wrath from their Lord, and humiliation in this life. We thus requite the innovators.","S.007:152"]
[null,null,1,1,"Those who oppose God and His Messenger will be subdued, as those before them were subdued. We have revealed clear messages. The unbelievers will have a demeaning punishment.","S.059:005"]
[1,null,null,1,"Those who perform the prayer; and from Our provisions to them, they spend.","S.008:003"]
[null,null,1,1,"Those who recite the Book of God, and perform the prayer, and spend of what We have provided for them, secretly and publicly, expect a trade that will not fail.","S.036:029"]
[1,null,1,2,"Those who reject Our revelations and are too arrogant to uphold them-the doors of Heaven will not be opened for them, nor will they enter Paradise, until the camel passes through the eye of the needle. Thus We repay the guilty.","S.007:040"]
[1,null,null,{"$f":"SUM(A772:C772)","v":1},"Those who reject Our revelations are deaf and dumb, in total darkness. Whomever God wills, He leaves astray; and whomever He wills, He sets on a straight path.","S.006:039"]
[1,null,2,3,"Those who reject Our revelations-We will scorch them in a Fire. Every time their skins are cooked, We will replace them with other skins, so they will experience the suffering. God is Most Powerful, Most Wise.","S.004:056"]
[null,null,2,2,"Those who suppress the proofs and the guidance We have revealed, after We have clarified them to humanity in the Scripture-those-God curses them, and the cursers curse them.","S.002:159"]
[1,null,1,2,"Those who took their religion lightly, and in jest, and whom the worldly life deceived. Today We will ignore them, as they ignored the meeting on this Day of theirs, and they used to deny Our revelations.","S.007:051"]
[1,null,1,2,"Those who were unjustly evicted from their homes, merely for saying, \"Our Lord is God.\" Were it not that God repels people by means of others: monasteries, churches, synagogues, and mosques-where the name of God is mentioned much-would have been demolished. God supports whoever supports Him. God is Strong and Mighty.","S.023:040"]
[null,null,1,1,"Those who, when We empower them in the land, observe the prayer, and give regular charity, and command what is right, and forbid what is wrong. To God belongs the outcome of events.","S.023:041"]
[null,null,1,1,"Those whose hearts tremble when God is mentioned, and those who endure what has befallen them, and those who perform the prayer and spend from what We have provided for them.","S.023:035"]
[null,null,1,1,"Thus We deal with the sinners.","S.038:034"]
[null,null,1,1,"Thus We explain the revelations, and expose the path of the unrighteous.","S.006:055"]
[null,null,1,1,"Thus We made it a deterrent for their generation, and for subsequent generations, and a lesson for the righteous.","S.002:066"]
[null,null,1,1,"Thus We made them a precedent and an example for the others.","S.044:056"]
[null,null,3,3,"Thus We made you a moderate community, that you may be witnesses to humanity, and that the Messenger may be a witness to you. We only established the direction of prayer, which you once followed, that We may distinguish those who follow the Messenger from those who turn on their heels. It is indeed difficult, except for those whom God has guided. But God would never let your faith go to waste. God is Kind towards the people, Merciful.","S.002:143"]
[null,null,1,1,"Thus We make it pass through the hearts of the guilty.","S.027:200"]
[null,null,1,1,"Thus We make some of the wrongdoers befriend one another, because of what they used to do.","S.006:129"]
[1,null,2,3,"Thus We narrate to you reports of times gone by; and We have given you a message from Our Presence.","S.021:099"]
[null,null,1,1,"Thus We recompense him who transgresses and does not believe in the revelations of his Lord. The punishment of the Hereafter is more severe, and more lasting.","S.021:127"]
[null,null,1,1,"Thus We returned him to his mother, that she may be comforted, and not grieve, and know that God's promise is true. But most of them do not know.","S.029:013"]
[null,null,2,2,"Thus We revealed it an Arabic code of law. Were you to follow their desires, after the knowledge that has come to you, you would have neither ally nor defender against God.","S.014:037"]
[null,null,1,1,"Thus We revealed it as clarifying signs, and God guides whomever He wills.","S.023:016"]
[null,null,1,1,"Thus We reward the doers of good.","S.038:110"]
[null,null,1,1,"Thus We reward the righteous.","S.038:121"]
[null,null,1,1,"Thus We reward the virtuous.","S.038:131"]
[null,null,2,2,"Thus We sent you among a community before which other communities have passed away, that you may recite to them what We revealed to you. Yet they deny the Benevolent One. Say, \"He is my Lord; there is no god but He; in Him I trust, and to Him is my repentance.\"","S.014:030"]
[null,null,1,1,"Thus We showed Abraham the empire of the heavens and the earth, that he might be one of those with certainty.","S.006:075"]
[null,null,1,1,"Thus We slip it into the hearts of the guilty.","S.016:012"]
[null,null,1,1,"Thus We try some of them by means of others, that they may say, \"Are these the ones whom God has favored from among us?\" Is God not aware of the appreciative?","S.006:053"]
[null,null,1,1,"To be ungrateful for what We have given them, and to enjoy themselves. They will surely come to know.","S.030:066"]
[null,null,2,2,"To each We presented the parables; and each We devastated utterly.","S.026:039"]
[null,null,1,1,"To every community We sent a messenger: \"Worship God, and avoid idolatry.\" Some of them God guided, while others deserved misguidance. So travel through the earth, and see what the fate of the deniers was.","S.017:036"]
[null,null,1,1,"To everyone We have assigned beneficiaries in what is left by parents and relatives. Those with whom you have made an agreement, give them their share. God is Witness over all things.","S.004:033"]
[null,null,1,1,"To God belongs everything in the heavens and everything on earth. We have instructed those who were given the Book before you, and you, to be conscious of God. But if you refuse-to God belongs everything in the heavens and everything on earth. God is in no need, Praiseworthy.","S.004:131"]
[null,null,1,1,"To replace them with better than they, and We are not to be outdone.","S.071:041"]
[null,null,1,1,"To revive dead lands thereby, and to provide drink for the multitude of animals and humans We created.","S.026:049"]
[null,null,1,1,"To show ingratitude for what We have given them. Enjoy yourselves. You will soon know.","S.017:055"]
[null,null,1,1,"To show ingratitude for what We have given them. Indulge yourselves-you will surely know.","S.031:034"]
[null,null,1,1,"To this go on inviting, and be upright as you were commanded, and do not follow their inclinations, and say, \"I believe in whatever Book God has sent down, and I was commanded to judge between you equitably. God is our Lord and your Lord. We have our deeds, and you have your deeds. Let there be no quarrel between us and you. God will bring us together, and to Him is the ultimate return.\"","S.043:015"]
[null,1,null,1,"To Us is their return.","S.089:025"]
[null,1,null,1,"To Us they are among the chosen, the outstanding.","S.039:047"]
[1,null,1,2,"Today We will preserve your body, so that you become a sign for those after you. But most people are heedless of Our signs.","S.010:092"]
[null,null,1,1,"Today, none of you has the power to profit or harm the other. And We will say to those who did wrong, \"Taste the agony of the Fire which you used to deny.\"","S.035:042"]
[null,null,1,1,"Turning aside in contempt, to lead away from the path of God. He will have humiliation in this world, and on the Day of Resurrection We will make him taste the agony of burning.","S.023:009"]
[null,1,null,1,"Until, when He comes to Us, he will say, \"If only there were between me and you the distance of the two Easts.\" What an evil companion!","S.044:038"]
[null,null,1,1,"Until, when he reached the rising of the sun, he found it rising on a people for whom We had provided no shelter from it.","S.019:090"]
[null,null,1,1,"Until, when he reached the setting of the sun, he found it setting in a murky spring, and found a people in its vicinity. We said, \"O Zul-Qarnain, you may either inflict a penalty, or else treat them kindly.\"","S.019:086"]
[1,null,1,2,"Until, when Our command came, and the volcano erupted, We said, \"Board into it a pair of every kind, and your family-except those against whom the sentence has already been passed-and those who have believed.\" But those who believed with him were only a few.","S.011:040"]
[2,null,2,4,"Until, when the messengers have despaired, and thought that they were rejected, Our help came to them. We save whomever We will, and Our severity is not averted from the guilty people.","S.013:110"]
[null,null,1,1,"Until, when We have opened before them a gate of intense agony, at once they will despair.","S.024:077"]
[null,null,1,1,"Until, when We seize the decadent among them with torment, they begin to groan.","S.024:064"]
[null,1,null,1,"Upon Us is its collection and its recitation.","S.076:017"]
[null,null,2,2,"We are surely Able to show you what We promise them.","S.024:095"]
[null,1,2,3,"We bestowed upon David favor from Us: \"O mountains, and birds: echo with him.\" And We softened iron for him.","S.035:010"]
[null,null,2,2,"We constructed the universe with power, and We are expanding it.","S.052:047"]
[null,null,2,2,"We created above you seven pathways, and We are never heedless of the creation.","S.024:017"]
[null,null,2,2,"We created man from a liquid mixture, to test him; and We made him hearing and seeing.","S.077:002"]
[null,1,1,2,"We created the heavens and the earth and what is between them in six days, and no fatigue touched Us.","S.051:038"]
[null,null,3,3,"We created the human being, and We know what his soul whispers to him. We are nearer to him than his jugular vein.","S.051:016"]
[null,null,3,3,"We created them, and strengthened their frame; and whenever We will, We can replace them with others like them.","S.077:028"]
[null,null,3,3,"We created you, then We shaped you, then We said to the angels, \"Bow down before Adam;\" so they bowed down, except for Satan; he was not of those who bowed down.","S.007:011"]
[null,null,2,2,"We destroyed generations before you when they did wrong. Their messengers came to them with clear signs, but they would not believe. Thus We requite the sinful people.","S.010:013"]
[null,null,2,2,"We did not send any prophet to any town but We afflicted its people with misery and adversity, so that they may humble themselves.","S.007:094"]
[null,null,2,2,"We did not send before you except men whom We inspired. So ask the people of knowledge, if you do not know.","S.017:043"]
[null,null,2,2,"We did not send before you except men, whom We inspired, from the people of the towns. Have they not roamed the earth and seen the consequences for those before them? The Home of the Hereafter is better for those who are righteous. Do you not understand?","S.013:109"]
[null,null,2,2,"We did not send before you except men, whom We inspired. Ask the people of knowledge, if you do not know.","S.022:007"]
[null,1,5,6,"We divided them into twelve tribal communities. And We inspired Moses, when his people asked him for something to drink: \"Strike the rock with your staff.\" Whereupon twelve springs gushed from it. Each group recognized its drinking-place. And We shaded them with clouds, and We sent down upon them manna and quails: \"Eat of the good things We have provided for you.\" They did not wrong Us, but they used to wrong their own selves.","S.007:160"]
[null,null,2,{"$f":"SUM(A836:C836)","v":2},"We found most of them untrue to their covenants; We found most of them corrupt.","S.007:102"]
[null,null,2,2,"We gave Abraham his integrity formerly, and We knew him well.","S.022:051"]
[null,null,2,2,"We gave Moses the Book, but disputes arose concerning it. Were it not for a prior decree from your Lord, judgment would have been pronounced between them. But they are in perplexing doubt concerning it.","S.042:045"]
[null,null,2,2,"We gave Moses the Book; so do not be in doubt regarding His encounter; and We made it a guidance for the Children of Israel.","S.033:023"]
[null,null,2,2,"We gave Moses the Scripture after We had annihilated the previous generations; as an illumination for mankind, and guidance, and mercy, so that they may remember.","S.029:043"]
[null,null,3,3,"We gave Moses the Scripture, and sent a succession of messengers after him. And We gave Jesus son of Mary the clear proofs, and We supported him with the Holy Spirit. Is it that whenever a messenger comes to you with anything your souls do not desire, you grew arrogant, calling some impostors, and killing others?","S.002:087"]
[null,null,2,2,"We gave Moses the Scripture, but it was disputed. Were it not for a prior word from your Lord, it would have been settled between them. They are in serious doubt concerning it.","S.012:110"]
[null,null,3,3,"We gave the Children of Israel the Book, and wisdom, and prophecy; and We provided them with the good things; and We gave them advantage over all other people.","S.046:016"]
[1,null,1,2,"We gave them Our revelations, but they turned away from them.","S.016:081"]
[null,null,2,2,"We give them a little comfort; then We compel them to a harsh torment.","S.032:024"]
[null,null,3,3,"We had empowered them in the same way as We empowered you; and We gave them the hearing, and the sight, and the minds. But neither their hearing, nor their sight, nor their minds availed them in any way. That is because they disregarded the revelations of God; and so they became surrounded by what they used to ridicule.","S.047:026"]
[null,null,2,2,"We have adorned the lower heaven with lanterns, and made them missiles against the devils; and We have prepared for them the punishment of the Blaze.","S.068:005"]
[null,null,2,2,"We have decreed death among you, and We will not be outstripped.","S.057:060"]
[null,null,2,2,"We have given them a Scripture, which We detailed with knowledge-guidance and mercy for people who believe.","S.007:052"]
[null,null,2,2,"We have given these enjoyments, and their ancestors, until time grew long upon them. Do they not see how We gradually reduce the land from its extremities? Are they then the victors?","S.022:044"]
[null,null,2,2,"We have honored the Children of Adam, and carried them on land and sea, and provided them with good things, and greatly favored them over many of those We created.","S.018:070"]
[null,null,4,4,"We have inspired you, as We had inspired Noah and the prophets after him. And We inspired Abraham, and Ishmael, and Isaac, and Jacob, and the Patriarchs, and Jesus, and Job, and Jonah, and Aaron, and Solomon. And We gave David the Psalms.","S.004:163"]
[null,null,2,2,"We have made the animal offerings emblems of God for you. In them is goodness for you. So pronounce God's name upon them as they line up. Then, when they have fallen on their sides, eat of them and feed the contented and the beggar. Thus We have subjected them to you, that you may be thankful.","S.023:036"]
[null,null,3,3,"We have made the night and the day two wonders. We erased the wonder of the night, and made the wonder of the day revealing, that you may seek bounty from your Lord, and know the number of years, and the calculation. We have explained all things in detail.","S.018:012"]
[null,null,2,2,"We have seen your face turned towards the heaven. So We will turn you towards a direction that will satisfy you. So turn your face towards the Sacred Mosque. And wherever you may be, turn your faces towards it. Those who were given the Book know that it is the Truth from their Lord; and God is not unaware of what they do.","S.002:144"]
[null,null,2,2,"We have sent to you a messenger, a witness over you, as We sent to Pharaoh a messenger.","S.074:015"]
[null,null,2,2,"We inspired the mother of Moses: \"Nurse him; then, when you fear for him, cast him into the river, and do not fear, nor grieve; We will return him to you, and make him one of the messengers.\"","S.029:007"]
[null,1,1,2,"We know what the earth consumes of them, and with Us is a comprehensive book.","S.051:004"]
[null,null,2,2,"We made a covenant with the Children of Israel, and We sent to them messengers. Whenever a messenger came to them with what their souls did not desire, some of them they accused of lying, and others they put to death.","S.005:070"]
[null,null,2,2,"We measured precisely. We are the best to measure.","S.078:023"]
[null,1,1,2,"We never burden any soul beyond its capacity. And with Us is a record that tells the truth, and they will not be wronged.","S.024:062"]
[null,null,2,2,"We never nullify a verse, nor cause it to be forgotten, unless We bring one better than it, or similar to it. Do you not know that God is capable of all things?","S.002:106"]
[null,null,2,2,"We never sent any messengers before you, but they ate food and walked in the marketplaces. And We made some of you tempters for one another-will you be patient? Your Lord is always Observing.","S.026:020"]
[null,null,2,2,"We only feed you for the sake of God. We want from you neither compensation, nor gratitude.","S.077:009"]
[null,null,2,2,"We relate to you their story in truth. They were youths who believed in their Lord, and We increased them in guidance.","S.019:013"]
[1,null,2,3,"We said, \"Go to the people who rejected Our signs,\" and We destroyed them completely.","S.026:036"]
[null,null,2,2,"We seduced you. We were seducers.\"","S.038:032"]
[null,null,2,2,"We sent messengers before you, and We assigned for them wives and offspring. No messenger could bring a sign except with the permission of God. For every era is a scripture.","S.014:038"]
[null,null,3,3,"We sent messengers before you. Some of them We told you about, and some We did not tell you about. No messenger can bring a miracle except by leave of God. Then, when the command of God is issued, fair judgment will be passed, and there and then the seekers of vanity will lose.","S.041:078"]
[null,null,2,2,"We sent messengers to communities before you, and We afflicted them with suffering and hardship, that they may humble themselves.","S.006:042"]
[1,null,1,2,"We sent Moses with Our revelations to Pharaoh and his dignitaries. He said, \"I am the Messenger of the Lord of the Worlds.\"","S.044:046"]
[1,null,1,2,"We sent Moses with Our signs, and a clear authority.","S.041:023"]
[1,null,1,2,"We sent Moses with Our signs: \"Bring your people out of darkness into light, and remind them of the Days of God.\" In that are signs for every patient and thankful person.\"","S.015:005"]
[1,null,3,4,"We sent Our messengers with the clear proofs, and We sent down with them the Book and the Balance, that humanity may uphold justice. And We sent down iron, in which is violent force, and benefits for humanity. That God may know who supports Him and His messengers invisibly. God is Strong and Powerful.","S.058:025"]
[null,null,3,3,"We sent them two messengers, but they denied them both, so We reinforced them with a third. They said, \"We are messengers to you.\"","S.037:014"]
[1,null,1,2,"We showed him Our signs, all of them, but he denied and refused.","S.021:056"]
[null,null,2,2,"We spread the earth, and placed stabilizers in it, and in it We grew all things in proper measure.","S.016:019"]
[null,null,2,2,"We tested them, as We tested the owners of the garden, when they vowed to harvest it in the morning.","S.069:017"]
[2,null,4,6,"We thus inspired you spiritually, by Our command. You did not know what the Scripture is, nor what faith is, but We made it a light, with which We guide whomever We will of Our servants. You surely guide to a straight path.","S.043:052"]
[null,null,2,2,"We thus penalized them for their ingratitude. Would We penalize any but the ungrateful?","S.035:017"]
[null,null,2,2,"We unleashed upon them a shower of stones, except for the family of Lot; We rescued them at dawn.","S.055:034"]
[null,null,3,3,"We will certainly test you, until We know those among you who strive, and those who are steadfast, and We will test your reactions.","S.048:031"]
[null,null,2,2,"We will make those who disbelieve taste an intense agony, and We will recompense them according to the worst of what they used to do.","S.042:027"]
[null,null,2,2,"We will narrate to them with knowledge, for We were never absent.","S.007:007"]
[null,null,2,2,"We will question those to whom messengers were sent, and We will question the messengers.","S.007:006"]
[null,null,3,3,"We will set up the scales of justice for the Day of Resurrection, so that no soul will suffer the least injustice. And even if it be the weight of a mustard-seed, We will bring it up. Sufficient are We as Reckoners.","S.022:047"]
[1,null,1,2,"We will show them Our proofs on the horizons, and in their very souls, until it becomes clear to them that it is the truth. Is it not sufficient that your Lord is witness over everything?","S.042:053"]
[2,null,1,3,"We would be fabricating falsehood against God, if we were to return to your religion, after God has saved us from it. It is not for us to return to it, unless God, our Lord, wills. Our Lord embraces all things in knowledge. In God we place our trust. Our Lord, decide between us and our people in truth, for You are the Best of Deciders.","S.007:089"]
[null,null,2,2,"Were it not that humanity would become a single community, We would have provided those who disbelieve in the Most Gracious with roofs of silver to their houses, and stairways by which they ascend.","S.044:033"]
[null,null,2,2,"Were We fatigued by the first creation? But they are in doubt of a new creation.","S.051:015"]
[null,null,2,2,"What We inspired in you, of the Book, is the truth, confirming what preceded it. God is Well-Informed of His servants, All-Seeing.","S.036:031"]
[null,null,1,1,"What you have runs out, but what is with God remains. We will reward those who are patient according to the best of their deeds.","S.017:096"]
[null,null,1,1,"Whatever argument they come to you with, We provide you with the truth, and a better exposition.","S.026:033"]
[null,null,1,1,"Whatever good happens to you is from God, and whatever bad happens to you is from your own self. We sent you to humanity as a messenger, and God is Witness enough.","S.004:079"]
[null,1,null,1,"When Abraham's fear subsided, and the good news had reached him, he started pleading with Us concerning the people of Lot.","S.012:074"]
[null,2,1,3,"When adversity touches the human being, he calls on Us. But then, when We favor him with a blessing from Us, he says, \"I have attained this by virtue of my knowledge.\" However, it is a test, but most of them do not know.","S.040:049"]
[null,null,2,2,"When he reached his maturity, We gave him wisdom and knowledge. We thus reward the righteous.","S.013:022"]
[null,null,2,2,"When he withdrew from them, and from what they worship besides God, We granted him Isaac and Jacob. And each We made a prophet.","S.020:049"]
[1,null,null,1,"When Our clarifying Verses are recited to them, their only argument is to say, \"Bring back our ancestors, if you are truthful.\"","S.046:025"]
[1,null,null,{"$f":"SUM(A900:C900)","v":1},"When Our clear revelations are recited to them, those who disbelieve say to those who believe, \"Which of the two parties is better in position, and superior in influence?\"","S.020:073"]
[1,null,1,2,"When Our might came upon them, their only cry was, \"We were indeed wrongdoers.\"","S.007:005"]
[1,null,null,1,"When Our revelations are recited to him, he says, \"Legends of the ancients.\"","S.084:013"]
[1,null,null,1,"When Our revelations are recited to them, plain and clear, those who disbelieve say of the truth when it has come to them, \"This is obviously magic.\"","S.047:007"]
[1,null,null,1,"When Our Verses are recited to him, he says, \"Myths of the ancients!\"","S.069:015"]
[1,null,1,2,"When the first of the two promises came true, We sent against you servants of Ours, possessing great might, and they ransacked your homes. It was a promise fulfilled.","S.018:005"]
[null,null,1,1,"When the waters overflowed, We carried you in the cruising ship.","S.070:011"]
[1,null,null,1,"When they said, \"Joseph and his brother are dearer to our father than we are, although we are a whole group. Our father is obviously in the wrong.","S.013:008"]
[1,null,null,1,"When those who believe in Our revelations come to you, say, \"Peace be upon you, your Lord has prescribed mercy for Himself. Whoever among you does wrong out of ignorance, and then repents afterwards and reforms-He is FORGIVING AND MERCIFUL.\"","S.006:054"]
[1,null,null,1,"When waves, like canopies, cover them, they call upon God, devoting their religion to Him. But when He has delivered them to dry land, some of them waver. No one renounces Our revelations except the treacherous blasphemer.","S.032:032"]
[null,null,1,1,"When We bless the human being, he turns away and distances himself. But when adversity touches him, he is in despair.","S.018:083"]
[null,null,3,3,"When We decide to destroy a town, We command its affluent ones, they transgress in it, so the word becomes justified against it, and We destroy it completely.","S.018:016"]
[null,null,1,1,"When We give people a taste of mercy, they rejoice in it. But when adversity befalls them, because of what their hands have perpetrated, they begin to despair.","S.031:036"]
[null,null,1,1,"When We inspired your mother with the inspiration.","S.021:038"]
[null,null,2,2,"When We intend for something to happen, We say to it, \"Be,\" and it becomes.","S.017:040"]
[2,null,1,3,"When We make the people taste mercy after some adversity has touched them, they begin to scheme against Our revelations. Say, \"God is swifter in scheming.\" Our envoys are writing down what you scheme.","S.010:021"]
[null,null,1,1,"When We provide comfort for the human being, he withdraws and distances himself; but when adversity befalls him, he starts lengthy prayers.","S.042:051"]
[null,null,1,1,"When We said to the angels, \"Bow down before Adam,\" they bowed down, except for Satan. He said, \"Shall I bow down before someone You created from mud?\"","S.018:061"]
[null,null,1,1,"When We substitute a verse in place of another verse-and God knows best what He reveals-they say, \"You are an impostor.\" But most of them do not know.","S.017:101"]
[1,null,null,1,"When you encounter those who gossip about Our revelations, turn away from them, until they engage in another topic. But should Satan make you forget, do not sit after the recollection with the wicked people.","S.006:068"]
[null,null,1,1,"When you said to him whom God had blessed, and you had favored, \"Keep your wife to yourself, and fear God.\" But you hid within yourself what God was to reveal. And you feared the people, but it was God you were supposed to fear. Then, when Zaid ended his relationship with her, We gave her to you in marriage, that there may be no restriction for believers regarding the wives of their adopted sons, when their relationship has ended. The command of God was fulfilled.","S.034:037"]
[null,null,3,3,"When your sister walked along, and said, 'Shall I tell you about someone who will take care of him?' So We returned you to your mother, that she may be comforted, and not sorrow. And you killed a person, but We saved you from stress; and We tested you thoroughly. And you stayed years among the people of Median. Then you came back, as ordained, O Moses.","S.021:040"]
[null,2,1,3,"Whenever adversity touches the human being, he prays to Us-reclining on his side, or sitting, or standing. But when We have relieved his adversity from him, he goes away, as though he had never called on Us for trouble that had afflicted him. Thus the deeds of the transgressors appear good to them.","S.010:012"]
[1,null,3,4,"Whether We show you some of what We have promised them, or We cause you to die-your duty is to inform, and Ours is the reckoning.","S.014:040"]
[null,1,2,3,"Whether We show you some of what We promise them, or take you, to Us is their return. God is witness to everything they do.","S.010:046"]
[1,null,null,1,"Who does greater wrong than he who invents lies about God, or denies His revelations? These-their share of the decree will reach them. Until, when Our envoys come to them, to take their souls away, they will say, \"Where are they whom you used to pray to besides God?\" They will say, \"They have abandoned us,\" and they will testify against themselves that they were faithless.","S.007:037"]
[null,null,1,1,"Who does greater wrong than he, who, when reminded of his Lord's revelations, turns away from them, and forgets what his hands have put forward? We have placed coverings over their hearts, lest they understand it, and heaviness in their ears. And if you call them to guidance, they will not be guided, ever.","S.019:057"]
[null,null,1,1,"Who is more wrong than he, who, when reminded of his Lord's revelations, turns away from them? We will certainly wreak vengeance upon the criminals.","S.033:022"]
[null,null,1,1,"Who would forsake the religion of Abraham, except he who fools himself? We chose him in this world, and in the Hereafter he will be among the righteous.","S.002:130"]
[null,null,4,4,"Whoever desires the fleeting life, We expedite for him what We decide to give him, to whomever We desire. Then We consign him to Hell, where he will roast, condemned and defeated.","S.018:018"]
[null,null,2,2,"Whoever desires the harvest of the Hereafter, We increase for him his harvest; and whoever desires the harvest of this world, We give him thereof, and he has no share of the Hereafter.","S.043:020"]
[null,1,1,2,"Whoever disbelieves-let not his disbelief sadden you. To Us is their return. Then We will inform them of what they did. God knows what lies within the hearts.","S.032:023"]
[null,null,1,1,"Whoever does righteous deeds, and is a believer, his effort will not be denied. We are writing it down for him.","S.022:094"]
[null,null,1,1,"Whoever does that, out of hostility and wrongdoing, We will cast him into a Fire. And that would be easy for God.","S.004:030"]
[null,null,2,2,"Whoever is guided-is guided for his own good. And whoever goes astray-goes astray to his detriment. No burdened soul carries the burdens of another, nor do We ever punish until We have sent a messenger.","S.018:015"]
[null,null,1,1,"Whoever makes a breach with the Messenger, after the guidance has become clear to him, and follows other than the path of the believers, We will direct him in the direction he has chosen, and commit him to Hell-what a terrible destination!","S.004:115"]
[null,null,1,1,"Whoever shuns the remembrance of the Most Gracious, We assign for him a devil, to be his companion.","S.044:036"]
[null,null,2,2,"Whoever works righteousness, whether male or female, while being a believer, We will grant him a good life-and We will reward them according to the best of what they used to do.","S.017:097"]
[null,null,2,2,"Whomever God guides is the guided one. And whomever He leaves astray-for them you will find no protectors apart from Him. And We will gather them on the Day of Resurrection, on their faces, blind, dumb, and deaf. Their abode is Hell; whenever it abates, We intensify the blaze for them.","S.018:097"]
[null,null,2,2,"Whomever We grant old age, We reverse his development. Do they not understand?","S.037:068"]
[null,null,1,1,"With it We produce for you gardens of palms and vines, yielding abundant fruit for you to eat.","S.024:019"]
[null,null,1,1,"With the clarifications and the scriptures. And We revealed to you the Reminder, that you may clarify to the people what was revealed to them, and that they may reflect.","S.017:044"]
[null,null,2,2,"With the truth We sent it down, and with the truth it descended. We sent you only as a bearer of good news and a warner.","S.018:105"]
[null,1,null,1,"With Us are shackles, and a Fierce Fire.","S.074:012"]
[null,null,1,1,"Yes indeed; We are Able to reconstruct his fingertips.","S.076:004"]
[1,null,null,1,"Yet when Our enlightening signs came to them, they said, \"This is obvious witchcraft.\"","S.028:013"]
[null,1,3,4,"You have come to Us individually, just as We created you the first time, leaving behind you everything We gave you. We do not see with you your intercessors-those you claimed were your partners. The link between you is cut, and what you had asserted has failed you.","S.006:094"]
[null,null,1,1,"You have fulfilled the vision.\" Thus We reward the doers of good.","S.038:105"]
[1,null,2,3,"You have had an excellent example in Abraham and those with him; when they said to their people, \"We are quit of you, and what you worship apart from God. We denounce you. Enmity and hatred has surfaced between us and you, forever, until you believe in God alone.\" Except for the words of Abraham to his father, \"I will ask forgiveness for you, though I have no power from God to do anything for you.\" \"Our Lord, in You we trust, and to You we repent, and to You is the ultimate resort.","S.061:004"]
[null,null,1,1,"You were in neglect of this, so We lifted your screen from you, and your vision today is keen.","S.051:022"]
[null,null,2,2,"You were not on the Western Side when We decreed the command to Moses, nor were you among the witnesses.","S.029:044"]
[null,null,1,1,"You will find others who want security from you, and security from their own people. But whenever they are tempted into civil discord, they plunge into it. So if they do not withdraw from you, nor offer you peace, nor restrain their hands, seize them and execute them wherever you find them. Against these, We have given you clear authorization.","S.004:091"]
[null,null,1,1,"You would think them awake, although they were asleep. And We turned them over to the right, and to the left, with their dog stretching its paws across the threshold. Had you looked at them, you would have turned away from them in flight, and been filled with fear of them.","S.019:018"]
[null,null,2,2,"Your Lord knows well everyone in the heavens and the earth. We have given some prophets advantage over others; and to David We gave the Psalms.","S.018:055"]
[null,null,1,1,"Your Lord knows you best. If He wills, He will have mercy on you; and if He wills, He will punish you. We did not send you as their advocate.","S.018:054"]
[1,null,1,2,"Your Lord never destroys cities without first sending a messenger in their midst, reciting to them Our revelations. And We never destroy the cities, unless their people are wrongdoers.","S.029:059"]
[{"$f":"SUM(A3:A955)","v":217},92,1156,{"$f":"SUM(D3:D955)","v":1465}]

{"sheet":"OUR","index":1,"n_rows":202,"n_cols":2,"rows_kept":202,"cut":false,"hidden":false,"merged":[]}
["And build the Ark, under Our eyes, and with Our inspiration, and do not address Me regarding those who did wrong; they are to be drowned.","S.011:037"]
["And if you are in doubt about what We have revealed to Our servant, then produce a chapter like these, and call your witnesses apart from God, if you are truthful.","S.002:023"]
["But as for those who disbelieve and reject Our signs-these are the inmates of the Fire-wherein they will remain forever.\"","S.002:039"]
["Just as We sent to you a messenger from among you, who recites Our revelations to you, and purifies you, and teaches you the Book and wisdom, and teaches you what you did not know.","S.002:151"]
["God does not burden any soul beyond its capacity. To its credit is what it earns, and against it is what it commits. \"Our Lord, do not condemn us if we forget or make a mistake. Our Lord, do not burden us as You have burdened those before us. Our Lord, do not burden us with more than we have strength to bear; and pardon us, and forgive us, and have mercy on us. You are our Lord and Master, so help us against the disbelieving people.\"","S.002:286"]
["Like the behavior of Pharaoh's people and those before them. They rejected Our signs, so God seized them for their sins. God is Strict in retribution.","S.003:011"]
["Our Lord, we have heard a caller calling to the faith: 'Believe in your Lord,' and we have believed. Our Lord! Forgive us our sins, and remit our misdeeds, and make us die in the company of the virtuous.","S.003:193"]
["Those who reject Our revelations-We will scorch them in a Fire. Every time their skins are cooked, We will replace them with other skins, so they will experience the suffering. God is Most Powerful, Most Wise.","S.004:056"]
["And We would have given them from Our presence a rich compensation.","S.004:067"]
["As for those who disbelieve and reject Our revelations-these are the inmates of Hell.","S.005:010"]
["O People of the Book! Our Messenger has come to you, clarifying for you much of what you kept hidden of the Book, and overlooking much. A light from God has come to you, and a clear Book.","S.005:015"]
["O People of the Book! Our Messenger has come to you, making things clear to you-after a cessation of messengers-so that you cannot say, \"No preacher has come to us, and no warner.\" In fact, a preacher has come to you, and a warner; and God is Capable of everything.","S.005:019"]
["Because of that We ordained for the Children of Israel: that whoever kills a person-unless it is for murder or corruption on earth-it is as if he killed the whole of mankind; and whoever saves it, it is as if he saved the whole of mankind. Our messengers came to them with clarifications, but even after that, many of them continue to commit excesses in the land.","S.005:032"]
["But as for those who disbelieve and deny Our signs-these are the inmates of the Fire.","S.005:086"]
["Obey God and obey the Messenger, and be cautious. If you turn away-know that the duty of Our Messenger is clear communication.","S.005:092"]
["Other messengers before you were rejected, but they endured rejection and persecution until Our help came to them. There can be no change to God's words. News of the Messengers has already reached you.","S.006:034"]
["Those who reject Our revelations are deaf and dumb, in total darkness. Whomever God wills, He leaves astray; and whomever He wills, He sets on a straight path.","S.006:039"]
["If only, when Our calamity came upon them, they humbled themselves. But their hearts hardened, and Satan made their deeds appear good to them.","S.006:043"]
["But as for those who reject Our revelations, torment will afflict them because of their defiance.","S.006:049"]
["When those who believe in Our revelations come to you, say, \"Peace be upon you, your Lord has prescribed mercy for Himself. Whoever among you does wrong out of ignorance, and then repents afterwards and reforms-He is FORGIVING AND MERCIFUL.\"","S.006:054"]
["He is the Conqueror over His servants, and He sends guardians over you, until, when death overtakes one of you, Our envoys take him away, and they never fail.","S.006:061"]
["When you encounter those who gossip about Our revelations, turn away from them, until they engage in another topic. But should Satan make you forget, do not sit after the recollection with the wicked people.","S.006:068"]
["That was Our argument which We gave to Abraham against his people. We elevate by degrees whomever We will. Your Lord is Wise and Informed.","S.006:083"]
["The polytheists will say, \"Had God willed, we would not have practiced idolatry, nor would have our forefathers, nor would we have prohibited anything.\" Likewise those before them lied, until they tasted Our might. Say, \"Do you have any knowledge that you can produce for us? You follow nothing but conjecture, and you only guess.\"","S.006:148"]
["Say, \"Produce your witnesses who would testify that God has prohibited this.\" If they testify, do not testify with them. And do not follow the whims of those who deny Our revelation, and those who do not believe in the Hereafter, and those who equate others with their Lord.","S.006:150"]
["Or lest you say, \"Had the Scripture been revealed to us, we would have been better guided than they.\" Clarification has come to you from your Lord, and guidance, and mercy. Who then does greater wrong than he who gives the lie to God's messages, and turns away from them? We will repay those who turn away from Our messages with the worst kind of punishment, because of their turning away.","S.006:157"]
["How many a town have We destroyed? Our might came upon them by night, or while they were napping.","S.007:004"]
["When Our might came upon them, their only cry was, \"We were indeed wrongdoers.\"","S.007:005"]
["But as for those whose weights are light-it is they who have lost their souls, because they used to mistreat Our revelations.","S.007:009"]
["But as for those who reject Our revelations, and are too proud to accept them-these are the inmates of the Fire, where they will remain forever.","S.007:036"]
["Who does greater wrong than he who invents lies about God, or denies His revelations? These-their share of the decree will reach them. Until, when Our envoys come to them, to take their souls away, they will say, \"Where are they whom you used to pray to besides God?\" They will say, \"They have abandoned us,\" and they will testify against themselves that they were faithless.","S.007:037"]
["Those who reject Our revelations and are too arrogant to uphold them-the doors of Heaven will not be opened for them, nor will they enter Paradise, until the camel passes through the eye of the needle. Thus We repay the guilty.","S.007:040"]
["Those who took their religion lightly, and in jest, and whom the worldly life deceived. Today We will ignore them, as they ignored the meeting on this Day of theirs, and they used to deny Our revelations.","S.007:051"]
["But they called him a liar. So We saved him and those with him in the Ark, and We drowned those who rejected Our revelations. They were blind people.","S.007:064"]
["So We saved him and those with him, by mercy from Us, and We cut off the roots of those who rejected Our revelations and were not believers.","S.007:072"]
["We would be fabricating falsehood against God, if we were to return to your religion, after God has saved us from it. It is not for us to return to it, unless God, our Lord, wills. Our Lord embraces all things in knowledge. In God we place our trust. Our Lord, decide between us and our people in truth, for You are the Best of Deciders.","S.007:089"]
["Do the people of the towns feel secure that Our might will not come upon them by night, while they sleep?","S.007:097"]
["Do the people of the towns feel secure that Our might will not come upon them by day, while they play?","S.007:098"]
["Then, after them, We sent Moses with Our miracles to Pharaoh and his establishment, but they denounced them. So consider the end of the evildoers.","S.007:103"]
["So We took vengeance on them, and drowned them in the sea-because they rejected Our signs, and paid no heed to them.","S.007:136"]
["And when Moses came to Our appointment, and his Lord spoke to him, he said, \"My Lord, allow me to look and see You.\" He said, \"You will not see Me, but look at the mountain; if it stays in its place, you will see Me.\" But when his Lord manifested Himself to the mountain, He turned it into dust, and Moses fell down unconscious. Then, when he recovered, he said, \"Glory be to you, I repent to you, and I am the first of the believers.\"","S.007:143"]
["I will turn away from My revelations those who behave proudly on earth without justification. Even if they see every sign, they will not believe in it; and if they see the path of rectitude, they will not adopt it for a path; and if they see the path of error, they will adopt it for a path. That is because they denied Our revelations, and paid no attention to them.","S.007:146"]
["Those who deny Our revelations and the meeting of the Hereafter-their deeds will come to nothing. Will they be repaid except according to what they used to do?","S.007:147"]
["And Moses chose from his people seventy men for Our appointment. When the tremor shook them, he said, \"My Lord, had You willed, You could have destroyed them before, and me too. Will you destroy us for what the fools among us have done? This is but Your test-with it You misguide whomever You will, and guide whomever You will. You are our Protector, so forgive us, and have mercy on us. You are the Best of Forgivers.\"","S.007:155"]
["And inscribe for us goodness in this world, and in the Hereafter. We have turned to You. He said, \"My punishment-I inflict it upon whomever I will, but My mercy encompasses all things. I will specify it for those who act righteously and practice regular charity, and those who believe in Our signs.\"","S.007:156"]
["And relate to them the story of him to whom We delivered Our signs, but he detached himself from them, so Satan went after him, and he became one of the perverts.","S.007:175"]
["Had We willed, We could have elevated him through them; but he clung to the ground, and followed his desires. His metaphor is that of a dog: if you chase it, it pants; and if you leave it alone, it pants. Such is the metaphor of the people who deny Our signs. So tell the tale, so that they may ponder.","S.007:176"]
["Evil is the metaphor of the people who reject Our signs and wrong themselves.","S.007:177"]
["As for those who reject Our messages, We will gradually lead them from where they do not know.","S.007:182"]
["Those who perform the prayer; and from Our provisions to them, they spend.","S.008:003"]
["And when Our revelations are recited to them, they say, \"We have heard. Had we wanted, we could have said the like of this; these are nothing but myths of the ancients.\"","S.008:031"]
["And know that whatever spoils you gain, to God belongs its fifth, and to the Messenger, and the relatives, and the orphans, and the poor, and to the wayfarer, provided you believe in God and in what We revealed to Our servant on the Day of Distinction, the day when the two armies met. God is Capable of everything.","S.008:041"]
["Those who do not hope to meet Us, and are content with the worldly life, and are at ease in it, and those who pay no heed to Our signs.","S.010:007"]
["If God were to accelerate the ill for the people, as they wish to accelerate the good, their term would have been fulfilled. But We leave those who do not expect Our encounter to blunder in their excesses.","S.010:011"]
["When We make the people taste mercy after some adversity has touched them, they begin to scheme against Our revelations. Say, \"God is swifter in scheming.\" Our envoys are writing down what you scheme.","S.010:021"]
["The likeness of the present life is this: water that We send down from the sky is absorbed by the plants of the earth, from which the people and the animals eat. Until, when the earth puts on its fine appearance, and is beautified, and its inhabitants think that they have mastered it, Our command descends upon it by night or by day, and We turn it into stubble, as if it had not flourished the day before. We thus clarify the revelations for people who reflect.","S.010:024"]
["But they denounced him, so We saved him and those with him in the Ark, and We made them successors, and We drowned those who rejected Our signs. So consider the fate of those who were warned.","S.010:073"]
["Then, after them, We sent Moses and Aaron with Our proofs to Pharaoh and his dignitaries. But they acted arrogantly. They were sinful people.","S.010:075"]
["They said, \"In God we have put our trust. Our Lord, do not make us victims of the oppressive people.\"","S.010:085"]
["Moses said, \"Our Lord, you have given Pharaoh and his chiefs splendor and wealth in the worldly life. Our Lord, for them to lead away from Your path. Our Lord, obliterate their wealth, and harden their hearts, they will not believe until they see the painful torment.\"","S.010:088"]
["Today We will preserve your body, so that you become a sign for those after you. But most people are heedless of Our signs.","S.010:092"]
["Then We save Our messengers and those who believe. It is binding on Us to save the believers.","S.010:103"]
["Until, when Our command came, and the volcano erupted, We said, \"Board into it a pair of every kind, and your family-except those against whom the sentence has already been passed-and those who have believed.\" But those who believed with him were only a few.","S.011:040"]
["And when Our decree came, We saved Hud and those who believed with him, by a mercy from Us, and We delivered them from a harsh punishment.","S.012:058"]
["Then, when Our command came, We saved Saleh and those who believed with him, by a mercy from Us, from the disgrace of that day. Your Lord is the Strong, the Mighty.","S.012:066"]
["And when Our envoys came to Lot, he was anxious for them, and concerned for them. He said, \"This is a dreadful day.\"","S.012:077"]
["And when Our command came about, We turned it upside down, and We rained down on it stones of baked clay.","S.012:082"]
["And when Our command came, We saved Shuaib and those who believed with him, by mercy from Us, and the Blast struck the wrongdoers, and they became motionless bodies in their homes.","S.012:094"]
["And We sent Moses with Our signs and a clear mandate.","S.012:096"]
["When they said, \"Joseph and his brother are dearer to our father than we are, although we are a whole group. Our father is obviously in the wrong.","S.013:008"]
["She desired him, and he desired her, had he not seen the proof of his Lord. It was thus that We diverted evil and indecency away from him. He was one of Our loyal servants.","S.013:024"]
["And thus We established Joseph in the land, to live therein wherever he wished. We touch with Our mercy whomever We will, and We never waste the reward of the righteous.","S.013:056"]
["Go back to your father, and say, 'Our father, your son has stolen. We testify only to what we know, and we could not have prevented the unforeseen.'","S.013:081"]
["Until, when the messengers have despaired, and thought that they were rejected, Our help came to them. We save whomever We will, and Our severity is not averted from the guilty people.","S.013:110"]
["And those who patiently seek the presence of their Lord, and pray regularly, and spend from Our provisions to them, secretly and openly, and repel evil with good. These will have the Ultimate Home.","S.014:022"]
["Whether We show you some of what We have promised them, or We cause you to die-your duty is to inform, and Ours is the reckoning.","S.014:040"]
["We sent Moses with Our signs: \"Bring your people out of darkness into light, and remind them of the Days of God.\" In that are signs for every patient and thankful person.\"","S.015:005"]
["My Lord, make me one who performs the prayer, and from my offspring. Our Lord, accept my supplication.","S.015:040"]
["And We informed him of Our decree: the last remnant of these will be uprooted by early morning.","S.016:066"]
["We gave them Our revelations, but they turned away from them.","S.016:081"]
["Glory to Him who journeyed His servant by night, from the Sacred Mosque, to the Farthest Mosque, whose precincts We have blessed, in order to show him of Our wonders. He is the Listener, the Beholder.","S.018:001"]
["When the first of the two promises came true, We sent against you servants of Ours, possessing great might, and they ransacked your homes. It was a promise fulfilled.","S.018:005"]
["They almost lured you away from what We have revealed to you, so that you would invent something else in Our name. In that case, they would have taken you for a friend.","S.018:073"]
["The tradition of the messengers We sent before you-you will find no change in Our rules.","S.018:077"]
["This is their repayment for having blasphemed against Our revelations, and having said, \"Shall we, when we have become bones and fragments, be resurrected as a new creation?\"","S.018:098"]
["Did you know that the People of the Cave and the Inscription were of Our wondrous signs?","S.019:009"]
["And We strengthened their hearts, when they stood up and said, \"Our Lord is the Lord of the heavens and the earth; we will not call on any god besides Him, for then we would have spoken an outrage.\"","S.019:014"]
["And content yourself with those who pray to their Lord morning and evening, desiring His Presence. And do not turn your eyes away from them, desiring the glitter of this world. And do not obey him whose heart We have made heedless of Our remembrance-so he follows his own desires-and his priorities are confused.","S.019:028"]
["Then they came upon a servant of Ours, whom We had blessed with mercy from Us, and had taught him knowledge from Our Own.","S.019:065"]
["But as for him who believes and acts righteously, he will have the finest reward, and We will speak to him of Our command with ease.","S.019:088"]
["She screened herself away from them, and We sent to her Our spirit, and He appeared to her as an immaculate human.","S.020:017"]
["And We gave them freely of Our mercy, and gave them a noble reputation of truth.","S.020:050"]
["And We granted him, out of Our mercy, his brother Aaron, a prophet.","S.020:053"]
["Such is Paradise which We will give as inheritance to those of Our servants who are devout.","S.020:063"]
["When Our clear revelations are recited to them, those who disbelieve say to those who believe, \"Which of the two parties is better in position, and superior in influence?\"","S.020:073"]
["Have you seen him who denied Our revelations, and said, \"I will be given wealth and children\"?","S.020:077"]
["That We may show you some of Our greatest signs.","S.021:023"]
["We showed him Our signs, all of them, but he denied and refused.","S.021:056"]
["Thus We narrate to you reports of times gone by; and We have given you a message from Our Presence.","S.021:099"]
["He will say, \"Just as Our revelations came to you, and you forgot them, today you will be forgotten.\"","S.021:126"]
["Had We destroyed them with a punishment before him, they would have said, \"Our Lord, if only You had sent us a messenger, we would have followed Your revelations before we were humiliated and disgraced.\"","S.021:134"]
["Then We fulfilled Our promise to them, and We saved them together with whomever We willed, and We destroyed the extravagant.","S.022:009"]
["Then, when they sensed Our might, they started running away from it.","S.022:012"]
["And We made them leaders, guiding by Our command; and We inspired them to do good works, and to observe the prayer, and to give out charity. They were devoted servants to Us.","S.022:073"]
["And We admitted him into Our mercy; for He was one of the righteous.","S.022:075"]
["And We supported him against the people who rejected Our signs. They were an evil people, so We drowned them all.","S.022:077"]
["And so We made Solomon understand it, and to each We gave wisdom and knowledge. And We subjected the mountains along with David to sing Our praises, and the birds as well-surely We did.","S.022:079"]
["And We admitted them into Our mercy. They were among the righteous.","S.022:086"]
["And she who guarded her virginity. We breathed into her of Our spirit, and made her and her son a sign to the world.","S.022:091"]
["Those who were unjustly evicted from their homes, merely for saying, \"Our Lord is God.\" Were it not that God repels people by means of others: monasteries, churches, synagogues, and mosques-where the name of God is mentioned much-would have been demolished. God supports whoever supports Him. God is Strong and Mighty.","S.023:040"]
["But those who strive against Our revelations-these are the inmates of Hell.","S.023:051"]
["But those who disbelieve and reject Our revelations-these will have a humiliating punishment.","S.023:057"]
["And when Our Clear Verses are recited to them, you will recognize disgust on the faces of those who disbelieve. They nearly assault those who recite to them Our Verses. Say, \"Shall I inform you of something worse than that? The Fire! God has promised it to those who disbelieve. And what a wretched outcome!\"","S.023:072"]
["So We inspired him: \"Build the Ark under Our observation and by Our inspiration. And when Our decree comes to pass, and the oven boils over, load into it two pairs of every kind, together with your family, except those of them against whom the word has already been pronounced. And do not speak to me concerning those who did wrong; for they are to be drowned.\"","S.024:027"]
["Then We sent Our messengers in succession. Every time a messenger came to his community, they called him a liar. So We made them follow one another, and made them history. So away with a people who do not believe.","S.024:044"]
["Then We sent Moses and his brother Aaron, with Our signs and a clear authority.","S.024:045"]
["We said, \"Go to the people who rejected Our signs,\" and We destroyed them completely.","S.026:036"]
["He said, \"No. Go, both of you, with Our proofs. We will be with you, listening.","S.027:015"]
["Do they seek to hasten Our punishment?","S.027:204"]
["Yet when Our enlightening signs came to them, they said, \"This is obvious witchcraft.\"","S.028:013"]
["Nor can you guide the blind out of their straying. You can make no one listen, except those who believe in Our verses; for they are Muslims.","S.028:081"]
["And when the Word has fallen on them, We will bring out for them from the earth a creature which will say to them that the people are uncertain of Our revelations.","S.028:082"]
["On the Day when We gather from every community a group of those who rejected Our revelations; and they will be restrained.","S.028:083"]
["He said, \"We will strengthen your arm with your brother, and We will give you authority, so they will not touch you. By virtue of Our signs, you and those who follow you will be the triumphant.\"","S.029:035"]
["But when Moses came to them with Our signs, clear and manifest, they said, \"This is nothing but fabricated magic, and We never heard of this from our ancestors of old.\"","S.029:036"]
["But We established many generations, and time took its toll on them. Nor were you among the people of Median, reciting Our revelations to them. But We kept sending messengers.","S.029:045"]
["These will be given their reward twice, because they persevered; and they counter evil with good; and from Our provisions to them, they give.","S.029:054"]
["And they say, \"If we follow the guidance with you, we will be snatched from our land.\" Did We not establish for them a Safe Sanctuary, to which are brought all kinds of fruits, as provision from Ourselves? But most of them do not know.","S.029:057"]
["Your Lord never destroys cities without first sending a messenger in their midst, reciting to them Our revelations. And We never destroy the cities, unless their people are wrongdoers.","S.029:059"]
["Those against whom the sentence is justified will say, \"Our Lord, these are they whom we misled. We misled them, as we were misled. We beg Your forgiveness; it was not us they used to worship.\"","S.029:063"]
["And when Our envoys brought Abraham the good news, they said, \"We are going to destroy the people of this town; its people are wrongdoers.\"","S.030:031"]
["Then, when Our envoys came to Lot, they were mistreated, and he was troubled and distressed on their account. They said, \"Do not fear, nor grieve. We will save you and your family, except for your wife, who will remain behind.\"","S.030:033"]
["Likewise, We revealed to you the Scripture. Those to whom We gave the Scripture believe in it, and some of these believe in it. None renounce Our communications except the disbelievers.","S.030:047"]
["In fact, it is clear signs in the hearts of those given knowledge. No one renounce Our signs except the unjust.","S.030:049"]
["As for those who strive for Us-We will guide them in Our ways. God is with the doers of good.","S.030:069"]
["But as for those who disbelieved, and rejected Our signs and the encounter of the Hereafter-those will be hauled into the torment.","S.031:016"]
["Nor can you guide the blind out of their error. You can make hear only those who believe in Our signs, and so have submitted.","S.031:053"]
["And when Our Verses are recited to him, he turns away in pride, as though he did not hear them, as though there is deafness in his ears. So inform him of a painful punishment.","S.032:007"]
["When waves, like canopies, cover them, they call upon God, devoting their religion to Him. But when He has delivered them to dry land, some of them waver. No one renounces Our revelations except the treacherous blasphemer.","S.032:032"]
["They believe in Our communications, those who, when reminded of them, fall down prostrate, and glorify their Lord with praise, and are not proud.","S.033:015"]
["Their sides shun their beds, as they pray to their Lord, out of reverence and hope; and from Our provisions to them, they give.","S.033:016"]
["And We appointed leaders from among them, guiding by Our command, as long as they persevered and were certain of Our communications.","S.033:024"]
["As for those who strive against Our revelations, seeking to undermine them-for them is a punishment of a painful plague.","S.035:005"]
["And for Solomon the wind-its outward journey was one month, and its return journey was one month. And We made a spring of tar flow for him. And there were sprites that worked under him, by the leave of his Lord. But whoever of them swerved from Our command, We make him taste of the punishment of the Inferno.","S.035:012"]
["But they said, \"Our Lord, lengthen the distances of our journeys.\" They wronged themselves; so We made them history, and We scattered them in every direction. In this are lessons for every steadfast and appreciative person.","S.035:019"]
["But those who work against Our revelations, seeking to undermine them-those will be summoned to the punishment.","S.035:038"]
["And when Our enlightening Verses are recited to them, they say, \"This is nothing but a man who wants to divert you from what your ancestors used to worship.\" And they say, \"This is nothing but a fabricated lie.\" And when the Truth comes to them, the blasphemers say of the Truth, \"This is nothing but plain magic.\"","S.035:043"]
["Then We passed the Book to those of Our servants whom We chose. Some of them wrong their souls, and some follow a middle course, and some are in the foremost in good deeds by God's leave; that is the greatest blessing.","S.036:032"]
["And they will scream therein, \"Our Lord, let us out, and we will act righteously, differently from the way we used to act.\" Did We not give you a life long enough, in which anyone who wanted to understand would have understood? And the warner did come to you. So taste. The evildoers will have no helper.","S.036:037"]
["Have they not seen that We created for them, of Our Handiwork, livestock that they own?","S.037:071"]
["He was one of Our believing servants.","S.038:081"]
["He was one of Our believing servants.","S.038:111"]
["They were of Our believing servants.","S.038:122"]
["He was one of Our believing servants.","S.038:132"]
["And Our troops will be the victors.","S.038:173"]
["Are they seeking to hasten Our punishment?","S.038:176"]
["Be patient in the face of what they say, and mention Our servant David, the resourceful. He was obedient.","S.039:017"]
["This is Our gift; so give generously, or withhold; without account.","S.039:039"]
["And mention Our servant Job, when he called out to his Lord, \"Satan has afflicted me with hardship and pain.\"","S.039:041"]
["And mention Our servants Abraham, Isaac, and Jacob-endowed with ability and vision.","S.039:045"]
["Such is Our bounty, inexhaustible.","S.039:054"]
["We sent Moses with Our signs, and a clear authority.","S.041:023"]
["Most surely We will support Our messengers and those who believe, in this life, and on the Day the witnesses arise.","S.041:051"]
["Those who call the Book a lie, and what We sent Our messengers with-they will surely know.","S.041:070"]
["Then, when they witnessed Our might, they said, \"We believe in God alone, and we reject what we used to associate with Him.\"","S.041:084"]
["But their faith could not help them once they witnessed Our might. This has been God's way of dealing with His servants. And there and then the disbelievers lost.","S.041:085"]
["As for Aad, they turned arrogant on earth, and opposed justice, and said, \"Who is more powerful than us?\" Have they not considered that God, who created them, is more powerful than they? And they went on denying Our revelations.","S.042:015"]
["Such is the recompense of God's enemies-the Fire-where they will have their permanent home, in recompense for having disregarded Our revelations.","S.042:028"]
["Those who despise Our revelations are not hidden from Us. Is he who is hurled into the Fire better? Or he who arrives safely on the Day of Resurrection? Do as you please; He is Seeing of everything you do.","S.042:040"]
["We will show them Our proofs on the horizons, and in their very souls, until it becomes clear to them that it is the truth. Is it not sufficient that your Lord is witness over everything?","S.042:053"]
["Those who dispute Our signs know that there is no asylum for them.","S.043:035"]
["We thus inspired you spiritually, by Our command. You did not know what the Scripture is, nor what faith is, but We made it a light, with which We guide whomever We will of Our servants. You surely guide to a straight path.","S.043:052"]
["Ask those of Our messengers We sent before you: \"Did We appoint gods besides the Most Gracious to be worshiped?\"","S.044:045"]
["We sent Moses with Our revelations to Pharaoh and his dignitaries. He said, \"I am the Messenger of the Lord of the Worlds.\"","S.044:046"]
["But when he showed them Our signs, they started laughing at them.","S.044:047"]
["And when they provoked Our wrath, We took retribution from them, and We drowned them all.","S.044:055"]
["Those who believed in Our revelations, and were submissive.","S.044:069"]
["Or do they think that We cannot hear their secrets and their conspiracies? Yes indeed, Our messengers are by them, writing down.","S.044:080"]
["And when he learns something of Our revelations, he takes them in mockery. For such there is a shameful punishment.","S.046:009"]
["When Our clarifying Verses are recited to them, their only argument is to say, \"Bring back our ancestors, if you are truthful.\"","S.046:025"]
["This Book of Ours speaks about you in truth. We have been transcribing what you have been doing.\"","S.046:029"]
["When Our revelations are recited to them, plain and clear, those who disbelieve say of the truth when it has come to them, \"This is obviously magic.\"","S.047:007"]
["So patiently await the decision of your Lord, for you are before Our Eyes; and proclaim the praises of your Lord when you arise.","S.053:048"]
["So avoid him who has turned away from Our remembrance, and desires nothing but the present life.","S.054:029"]
["Before them the people of Noah disbelieved. They rejected Our servant, and said, \"Crazy,\" and he was rebuked.","S.055:009"]
["Sailing before Our eyes; a reward for him who was rejected.","S.055:014"]
["He had warned them of Our onslaught, but they dismissed the warnings.","S.055:036"]
["They rejected Our signs, all of them, so We seized them-the seizure of an Almighty Omnipotent.","S.055:042"]
["And Our command is but once, like the twinkling of an eye.","S.055:050"]
["Those who believe in God and His messengers-these are the sincere and the witnesses with their Lord; they will have their reward and their light. But as for those who disbelieve and deny Our revelations-these are the inmates of the Blaze.","S.058:019"]
["We sent Our messengers with the clear proofs, and We sent down with them the Book and the Balance, that humanity may uphold justice. And We sent down iron, in which is violent force, and benefits for humanity. That God may know who supports Him and His messengers invisibly. God is Strong and Powerful.","S.058:025"]
["Then We sent in their wake Our messengers, and followed up with Jesus son of Mary, and We gave him the Gospel, and instilled in the hearts of those who followed him compassion and mercy. But as for the monasticism which they invented-We did not ordain it for them-only to seek God's approval. But they did not observe it with its due observance. So We gave those of them who believed their reward, but many of them are sinful.","S.058:027"]
["You have had an excellent example in Abraham and those with him; when they said to their people, \"We are quit of you, and what you worship apart from God. We denounce you. Enmity and hatred has surfaced between us and you, forever, until you believe in God alone.\" Except for the words of Abraham to his father, \"I will ask forgiveness for you, though I have no power from God to do anything for you.\" \"Our Lord, in You we trust, and to You we repent, and to You is the ultimate resort.","S.061:004"]
["But as for those who disbelieve and denounce Our revelations-these are the inmates of the Fire, dwelling therein forever; and what a miserable fate!","S.065:010"]
["So obey God, and obey the Messenger. But if you turn away-it is only incumbent on Our Messenger to deliver the clear message.","S.065:012"]
["God illustrates an example of those who disbelieve: the wife of Noah and the wife of Lot. They were under two of Our righteous servants, but they betrayed them. They availed them nothing against God, and it was said, \"Enter the Fire with those who are entering.\"","S.067:010"]
["And Mary, the daughter of Imran, who guarded her womb, and so We breathed into her of Our Spirit; and she believed in the truth of her Lord's Words and His Books, and was one of the devout.","S.067:012"]
["When Our Verses are recited to him, he says, \"Myths of the ancients!\"","S.069:015"]
["By no means! He was stubborn towards Our revelations.","S.075:016"]
["And they denied Our signs utterly.","S.079:028"]
["When Our revelations are recited to him, he says, \"Legends of the ancients.\"","S.084:013"]
["But as for those who defy Our revelations-these are the people of misery.","S.091:019"]

{"sheet":"US","index":2,"n_rows":87,"n_cols":2,"rows_kept":87,"cut":false,"hidden":false,"merged":[]}
["And We shaded you with clouds, and We sent down to you manna and quails: \"Eat of the good things We have provided for you.\" They did not wrong Us, but they used to wrong their own souls.","S.002:057"]
["And We made the House a focal point for the people, and a sanctuary. Use the shrine of Abraham as a place of prayer. And We commissioned Abraham and Ishmael, \"Sanctify My House for those who circle around it, and those who seclude themselves in it, and those who kneel and prostrate.\"","S.002:125"]
["You have come to Us individually, just as We created you the first time, leaving behind you everything We gave you. We do not see with you your intercessors-those you claimed were your partners. The link between you is cut, and what you had asserted has failed you.","S.006:094"]
["So We saved him and those with him, by mercy from Us, and We cut off the roots of those who rejected Our revelations and were not believers.","S.007:072"]
["We divided them into twelve tribal communities. And We inspired Moses, when his people asked him for something to drink: \"Strike the rock with your staff.\" Whereupon twelve springs gushed from it. Each group recognized its drinking-place. And We shaded them with clouds, and We sent down upon them manna and quails: \"Eat of the good things We have provided for you.\" They did not wrong Us, but they used to wrong their own selves.","S.007:160"]
["Those who do not hope to meet Us, and are content with the worldly life, and are at ease in it, and those who pay no heed to Our signs.","S.010:007"]
["Whenever adversity touches the human being, he prays to Us-reclining on his side, or sitting, or standing. But when We have relieved his adversity from him, he goes away, as though he had never called on Us for trouble that had afflicted him. Thus the deeds of the transgressors appear good to them.","S.010:012"]
["But then, when He has saved them, they commit violations on earth, and oppose justice. O people! Your violations are against your own souls. It is the enjoyment of the present life. Then to Us is your return, and We will inform you of what you used to do.","S.010:023"]
["Whether We show you some of what We promise them, or take you, to Us is their return. God is witness to everything they do.","S.010:046"]
["Some enjoyment in this world; then to Us is their return; then We will make them taste the severe punishment on account of their disbelief.","S.010:070"]
["And when the truth came to them from Us, they said, \"This is clearly sorcery.\"","S.010:076"]
["Then We save Our messengers and those who believe. It is binding on Us to save the believers.","S.010:103"]
["If We give the human being a taste of mercy from Us, and then withdraw it from him, he becomes despairing and ungrateful.","S.011:009"]
["It was said, \"O Noah, disembark with peace from Us; and with blessings upon you, and upon communities from those with you.","S.011:048"]
["And when Our decree came, We saved Hud and those who believed with him, by a mercy from Us, and We delivered them from a harsh punishment.","S.012:058"]
["Then, when Our command came, We saved Saleh and those who believed with him, by a mercy from Us, from the disgrace of that day. Your Lord is the Strong, the Mighty.","S.012:066"]
["When Abraham's fear subsided, and the good news had reached him, he started pleading with Us concerning the people of Lot.","S.012:074"]
["And when Our command came, We saved Shuaib and those who believed with him, by mercy from Us, and the Blast struck the wrongdoers, and they became motionless bodies in their homes.","S.012:094"]
["There is not a thing but with Us are its stores, and We send it down only in precise measure.","S.016:021"]
["Nothing prevents Us from sending miraculous signs, except that the ancients called them lies. We gave Thamood the she-camel, a visible sign, but they mistreated her. We do not send the signs except to instill reverence.","S.018:059"]
["Or are you confident that He will not return you to it once again, and unleash a hurricane against you, and drown you for your ingratitude? Then you will find no helper against Us.","S.018:069"]
["Then We would have made you taste double in life, and double at death; then you would have found for yourself no helper against Us.","S.018:075"]
["If We willed, We could take away what We revealed to you. Then you will find for yourself no protecting guardian against Us.","S.018:086"]
["They will be presented before your Lord in a row. \"You have come to Us as We created you the first time. Although you claimed We would not set a meeting for you.\"","S.019:048"]
["Then they came upon a servant of Ours, whom We had blessed with mercy from Us, and had taught him knowledge from Our Own.","S.019:065"]
["And tenderness from Us, and innocence. He was devout.","S.020:013"]
["He said, \"Thus said your Lord, 'It is easy for Me, and We will make him a sign for humanity, and a mercy from Us. It is a matter already decided.'\"","S.020:021"]
["Listen to them and watch for them the Day they come to Us. But the wrongdoers today are completely lost.","S.020:038"]
["It is We who will inherit the earth and everyone on it, and to Us they will be returned.","S.020:040"]
["Then We will inherit from him what he speaks of, and he will come to Us alone.","S.020:080"]
["If We wanted amusement, We could have found it within Us, were We to do so.","S.022:017"]
["Every soul will taste death. We burden you with adversity and prosperity-a test. And to Us you will be returned.","S.022:035"]
["Or do they have gods who can defend them against Us? They cannot help themselves, nor will they be protected from Us.","S.022:043"]
["And We made them leaders, guiding by Our command; and We inspired them to do good works, and to observe the prayer, and to give out charity. They were devoted servants to Us.","S.022:073"]
["So We answered him, lifted his suffering, and restored his family to him, and their like with them-a mercy from Us, and a reminder for the worshipers.","S.022:084"]
["So We answered him, and gave him John. And We cured his wife for him. They used to vie in doing righteous deeds, and used to call on Us in love and awe, and they used to humble themselves to Us.","S.022:090"]
["But they splintered themselves into factions. They will all return to Us.","S.022:093"]
["As for those who deserved goodness from Us-these will be kept away from it.","S.022:101"]
["On the Day when We fold the heaven, like the folding of a book. Just as We began the first creation, We will repeat it-a promise binding on Us. We will act.","S.022:104"]
["We never burden any soul beyond its capacity. And with Us is a record that tells the truth, and they will not be wronged.","S.024:062"]
["Do not groan today. You will receive no help from Us.","S.024:065"]
["Did you think that We created you in vain, and that to Us you will not be returned?\"","S.024:115"]
["Those who do not expect to meet Us say, \"If only the angels were sent down to us, or we could see our Lord.\" They have grown arrogant within themselves, and have become excessively defiant.","S.026:021"]
["Then We withdraw it towards Us gradually.","S.026:046"]
["He and his troops acted arrogantly in the land, with no justification. They thought they would not be returned to Us.","S.029:039"]
["But when the truth came to them from Us, they said, \"If only he was given the like of what was given to Moses.\" Did they not disbelieve in what was given to Moses in the past? They said, \"Two works of magic backing one another.\" And they said, \"We are disbelieving in both.\"","S.029:048"]
["Or do those who commit sins think they can fool Us? Terrible is their opinion!","S.030:004"]
["Every soul will taste death. Then to Us you will be returned.","S.030:057"]
["As for those who strive for Us-We will guide them in Our ways. God is with the doers of good.","S.030:069"]
["Before you, We sent messengers to their people. They came to them with clear proofs. Then We took revenge on those who sinned. It is incumbent on Us to help the believers.","S.031:047"]
["Whoever disbelieves-let not his disbelief sadden you. To Us is their return. Then We will inform them of what they did. God knows what lies within the hearts.","S.032:023"]
["We bestowed upon David favor from Us: \"O mountains, and birds: echo with him.\" And We softened iron for him.","S.035:010"]
["It is neither your wealth nor your children that bring you closer to Us, but it is he who believes and does good deeds. These will have a double reward for what they did; and they will reside in the Chambers, in peace and security.","S.035:037"]
["All of them, every single one of them, will be arraigned before Us.","S.037:032"]
["Except by a mercy from Us, and enjoyment for a while.","S.037:044"]
["It will be but a single scream; and behold, they will all be brought before Us.","S.037:053"]
["On this Day, We will seal their mouths, and their hands will speak to Us, and their feet will testify to everything they had done.","S.037:065"]
["And he produces arguments against Us, and he forgets his own creation. He says, \"Who will revive the bones when they have decayed?\"","S.037:078"]
["And Noah called out to Us, and We are the Best of responders.","S.038:075"]
["So We forgave him that. And for him is nearness to Us, and a good place of return.","S.039:025"]
["For him is nearness to Us, and a beautiful resort.","S.039:040"]
["And We restored his family for him, and their like with them; as a mercy from Us, and a lesson for those who possess insight.","S.039:043"]
["To Us they are among the chosen, the outstanding.","S.039:047"]
["When adversity touches the human being, he calls on Us. But then, when We favor him with a blessing from Us, he says, \"I have attained this by virtue of my knowledge.\" However, it is a test, but most of them do not know.","S.040:049"]
["Then, when he came to them with the truth from Us, they said, \"Kill the sons of those who have believed with him, and spare their daughters.\" But the scheming of the unbelievers can only go astray.","S.041:025"]
["So be patient. The promise of God is true. Whether We show you some of what We have promised them, or take you to Us, to Us they will be returned.","S.041:077"]
["Those who despise Our revelations are not hidden from Us. Is he who is hurled into the Fire better? Or he who arrives safely on the Day of Resurrection? Do as you please; He is Seeing of everything you do.","S.042:040"]
["And when We let him taste a mercy from Us, after the adversity that had afflicted him, he will say, \"This is mine, and I do not think that the Hour is coming; and even if I am returned to my Lord, I will have the very best with Him.\" We will inform those who disbelieve of what they did, and We will make them taste an awful punishment.","S.042:050"]
["But if they turn away-We did not send you as a guardian over them. Your only duty is communication. Whenever We let man taste mercy from Us, he rejoices in it; but when misfortune befalls them, as a consequence of what their hands have perpetrated, man turns blasphemous.","S.043:048"]
["And it is with Us, in the Source Book, sublime and wise.","S.044:004"]
["Until, when He comes to Us, he will say, \"If only there were between me and you the distance of the two Easts.\" What an evil companion!","S.044:038"]
["A decree from Us. We have been sending messages.","S.045:005"]
["We know what the earth consumes of them, and with Us is a comprehensive book.","S.051:004"]
["We created the heavens and the earth and what is between them in six days, and no fatigue touched Us.","S.051:038"]
["It is We who control life and death, and to Us is the destination.","S.051:043"]
["The Day when the earth will crack for them at once. That is an easy gathering for Us.","S.051:044"]
["A blessing from Us. Thus We reward the thankful.","S.055:035"]
["Or do you have oaths from Us, binding until the Day of Resurrection, that you will have whatever you demand?","S.069:039"]
["Had he falsely attributed some statements to Us.","S.070:044"]
["And none of you could have restrained Us from him.","S.070:047"]
["With Us are shackles, and a Fierce Fire.","S.074:012"]
["Upon Us is its collection and its recitation.","S.076:017"]
["Then upon Us is its explanation.","S.076:019"]
["To Us is their return.","S.089:025"]
["Then upon Us rests their reckoning.","S.089:026"]
["It is upon Us to guide.","S.093:012"]
["And to Us belong the Last and the First.","S.093:013"]

{"sheet":"WE","index":3,"n_rows":822,"n_cols":2,"rows_kept":822,"cut":false,"hidden":false,"merged":[]}
["Those who believe in the unseen, and perform the prayers, and give from what We have provided for them.","S.002:003"]
["And if you are in doubt about what We have revealed to Our servant, then produce a chapter like these, and call your witnesses apart from God, if you are truthful.","S.002:023"]
["They said, \"Glory be to You! We have no knowledge except what You have taught us. It is you who are the Knowledgeable, the Wise.\"","S.002:032"]
["And We said to the angels, \"Bow down to Adam.\" They bowed down, except for Satan. He refused, was arrogant, and was one of the disbelievers.","S.002:034"]
["But Satan caused them to slip from it, and caused them to depart the state they were in. We said, \"Go down, some of you enemies of one another. And you will have residence on earth, and enjoyment for a while.\"","S.002:036"]
["And recall that We delivered you from the people of Pharaoh. They inflicted on you terrible persecution, killing your sons and sparing your women. Therein was a tremendous trial from your Lord.","S.002:049"]
["And recall that We parted the sea for you, so We saved you, and We drowned the people of Pharaoh as you looked on.","S.002:050"]
["And recall that We appointed for Moses forty nights. Then you took to worshiping the calf after him, and you turned wicked.","S.002:051"]
["Then We pardoned you after that, so that you might be grateful.","S.002:052"]
["And recall that We gave Moses the Scripture and the Criterion, so that you may be guided.","S.002:053"]
["Then We revived you after your death, so that you may be appreciative.","S.002:056"]
["And We shaded you with clouds, and We sent down to you manna and quails: \"Eat of the good things We have provided for you.\" They did not wrong Us, but they used to wrong their own souls.","S.002:057"]
["And recall that We said, \"Enter this town, and eat plentifully from it whatever you wish; but enter the gate humbly, and say, 'Pardon.' We will forgive your sins, and give increase to the virtuous.\"","S.002:058"]
["But the wrongdoers among them substituted words other than those given to them, so We sent down on the wrongdoers a plague from heaven, because of their wicked behavior.","S.002:059"]
["And recall when Moses prayed for water for his people. We said, \"Strike the rock with your staff.\" Thereupon twelve springs gushed out from it, and each tribe recognized its drinking-place. \"Eat and drink from God's provision, and do not corrupt the earth with disobedience.\"","S.002:060"]
["And recall when We received a pledge from you, and raised the Mount above you: \"Take what We have given you earnestly, and remember what is in it, that you may attain righteousness.\"","S.002:063"]
["And you surely knew those of you who violated the Sabbath. We said to them, \"Be despicable apes!\"","S.002:065"]
["Thus We made it a deterrent for their generation, and for subsequent generations, and a lesson for the righteous.","S.002:066"]
["And We made a covenant with you: \"You shall not shed the blood of your own, nor shall you evict your own from your homes.\" You agreed, and were all witnesses.","S.002:084"]
["We gave Moses the Scripture, and sent a succession of messengers after him. And We gave Jesus son of Mary the clear proofs, and We supported him with the Holy Spirit. Is it that whenever a messenger comes to you with anything your souls do not desire, you grew arrogant, calling some impostors, and killing others?","S.002:087"]
["And We made a covenant with you, and raised the Mount above you: \"Take what We have given you firmly, and listen.\" They said, \"We hear and disobey.\" And their hearts became filled with the love of the calf because of their disbelief. Say, \"Wretched is what your faith commands you to do, if you are believers.\"","S.002:093"]
["We never nullify a verse, nor cause it to be forgotten, unless We bring one better than it, or similar to it. Do you not know that God is capable of all things?","S.002:106"]
["Those who do not know say, \"If only God would speak to us, or a sign would come to us.\" Thus said those who were before them. Their hearts are alike. We have made the signs clear for people who are certain.","S.002:118"]
["Those to whom We have given the Scripture follow it, as it ought to be followed-these believe in it. But as for those who reject it-these are the losers.","S.002:121"]
["And We made the House a focal point for the people, and a sanctuary. Use the shrine of Abraham as a place of prayer. And We commissioned Abraham and Ishmael, \"Sanctify My House for those who circle around it, and those who seclude themselves in it, and those who kneel and prostrate.\"","S.002:125"]
["Who would forsake the religion of Abraham, except he who fools himself? We chose him in this world, and in the Hereafter he will be among the righteous.","S.002:130"]
["Say, \"We believe in God; and in what was revealed to us; and in what was revealed to Abraham, and Ishmael, and Isaac, and Jacob, and the Patriarchs; and in what was given to Moses and Jesus; and in what was given to the prophets-from their Lord. We make no distinction between any of them, and to Him we surrender.\"","S.002:136"]
["Say, \"Do you argue with us about God, when He is our Lord and your Lord, and We have our works, and you have your works, and we are sincere to Him?\"","S.002:139"]
["Thus We made you a moderate community, that you may be witnesses to humanity, and that the Messenger may be a witness to you. We only established the direction of prayer, which you once followed, that We may distinguish those who follow the Messenger from those who turn on their heels. It is indeed difficult, except for those whom God has guided. But God would never let your faith go to waste. God is Kind towards the people, Merciful.","S.002:143"]
["We have seen your face turned towards the heaven. So We will turn you towards a direction that will satisfy you. So turn your face towards the Sacred Mosque. And wherever you may be, turn your faces towards it. Those who were given the Book know that it is the Truth from their Lord; and God is not unaware of what they do.","S.002:144"]
["Those to whom We have given the Book recognize it as they recognize their own children. But some of them conceal the truth while they know.","S.002:146"]
["Just as We sent to you a messenger from among you, who recites Our revelations to you, and purifies you, and teaches you the Book and wisdom, and teaches you what you did not know.","S.002:151"]
["Those who suppress the proofs and the guidance We have revealed, after We have clarified them to humanity in the Scripture-those-God curses them, and the cursers curse them.","S.002:159"]
["O you who believe! Eat of the good things We have provided for you, and give thanks to God, if it is Him that you serve.","S.002:172"]
["Ask the Children of Israel how many clear signs We have given them. Whoever alters the blessing of God after it has come to him-God is severe in retribution.","S.002:211"]
["These are God's revelations, which We recite to you in truth. You are one of the messengers.","S.002:252"]
["These messengers: We gave some advantage over others. To some of them God spoke directly, and some He raised in rank. We gave Jesus son of Mary the clear miracles, and We strengthened him with the Holy Spirit. Had God willed, those who succeeded them would not have fought one another, after the clear signs had come to them; but they disputed; some of them believed, and some of them disbelieved. Had God willed, they would not have fought one another; but God does whatever He desires.","S.002:253"]
["O you who believe! Spend from what We have given you, before a Day comes in which there is neither trading, nor friendship, nor intercession. The disbelievers are the wrongdoers.","S.002:254"]
["Or like him who passed by a town collapsed on its foundations. He said, \"How can God revive this after its demise?\" Thereupon God caused him to die for a hundred years, and then resurrected him. He said, \"For how long have you tarried?\" He said, \"I have tarried for a day, or part of a day.\" He said, \"No. You have tarried for a hundred years. Now look at your food and your drink-it has not spoiled-and look at your donkey. We will make you a wonder for mankind. And look at the bones, how We arrange them, and then clothe them with flesh.\" So when it became clear to him, he said, \"I know that God has power over all things.\"","S.002:259"]
["O you who believe! Give of the good things you have earned, and from what We have produced for you from the earth. And do not pick the inferior things to give away, when you yourselves would not accept it except with eyes closed. And know that God is Sufficient and Praiseworthy.","S.002:267"]
["How about when We gather them for a Day in which there is no doubt, and each soul will be paid in full for what it has earned, and they will not be wronged?","S.003:025"]
["These are accounts from the Unseen, which We reveal to you. You were not with them when they cast their lots as to which of them would take charge of Mary; nor were you with them as they quarreled.","S.003:044"]
["This is what We recite to you of the Verses and the Wise Reminder.","S.003:058"]
["Say, \"We believe in God, and in what was revealed to us; and in what was revealed to Abraham, and Ishmael, and Isaac, and Jacob, and the Patriarchs; and in what was given to Moses, and Jesus, and the prophets from their Lord. We make no distinction between any of them, and to Him we submit.\"","S.003:084"]
["These are the revelations of God. We recite them to you in truth. God desires no injustice for mankind.","S.003:108"]
["O you who believe! Do not befriend outsiders who never cease to wish you harm. They love to see you suffer. Hatred has already appeared from their mouths, but what their hearts conceal is worse. We have made the messages clear for you, if you understand.","S.003:118"]
["If a wound afflicts you, a similar wound has afflicted the others. Such days We alternate between the people, that God may know those who believe, and take martyrs from among you. God does not love the evildoers.","S.003:140"]
["No soul can die except by God's leave, at a predetermined time. Whoever desires the reward of the world, We will give him some of it; and whoever desires the reward of the Hereafter, We will give him some of it; and We will reward the appreciative.","S.003:145"]
["Those who disbelieve should not assume that We respite them for their own good. In fact, We only respite them so that they may increase in sinfulness. A humiliating torment awaits them.","S.003:178"]
["God has heard the statement of those who said, \"God is poor, and we are rich.\" We will write down what they said, and their wrongful killing of the prophets; and We will say, \"Taste the torment of the burning.\"","S.003:181"]
["Whoever does that, out of hostility and wrongdoing, We will cast him into a Fire. And that would be easy for God.","S.004:030"]
["If you avoid the worst of what you are forbidden, We will remit your sins, and admit you by a Gate of Honor.","S.004:031"]
["To everyone We have assigned beneficiaries in what is left by parents and relatives. Those with whom you have made an agreement, give them their share. God is Witness over all things.","S.004:033"]
["Those who are stingy, and exhort people to stinginess, and conceal what God has given them from His bounty. We have prepared for the disbelievers a disgraceful punishment.","S.004:037"]
["Then how will it be, when We bring a witness from every community, and We bring you as a witness against these?","S.004:041"]
["O you who were given the Book! Believe in what We sent down, confirming what you have, before We obliterate faces and turn them inside out, or curse them as We cursed the Sabbath-breakers. The command of God is always done.","S.004:047"]
["Or do they envy the people for what God has given them of His grace? We have given the family of Abraham the Book and wisdom, and We have given them a great kingdom.","S.004:054"]
["Those who reject Our revelations-We will scorch them in a Fire. Every time their skins are cooked, We will replace them with other skins, so they will experience the suffering. God is Most Powerful, Most Wise.","S.004:056"]
["As for those who believe and do good deeds, We will admit them into Gardens beneath which rivers flow, abiding therein forever. They will have purified spouses therein, and We will admit them into a shady shade.","S.004:057"]
["Had We decreed for them: \"Kill yourselves,\" or \"Leave your homes,\" they would not have done it, except for a few of them. But had they done what they were instructed to do, it would have been better for them, and a firmer confirmation.","S.004:066"]
["And We would have given them from Our presence a rich compensation.","S.004:067"]
["And We would have guided them on a straight path.","S.004:068"]
["Let those who sell the life of this world for the Hereafter fight in the cause of God. Whoever fights in the cause of God, and then is killed, or achieves victory, We will grant him a great compensation.","S.004:074"]
["Whatever good happens to you is from God, and whatever bad happens to you is from your own self. We sent you to humanity as a messenger, and God is Witness enough.","S.004:079"]
["You will find others who want security from you, and security from their own people. But whenever they are tempted into civil discord, they plunge into it. So if they do not withdraw from you, nor offer you peace, nor restrain their hands, seize them and execute them wherever you find them. Against these, We have given you clear authorization.","S.004:091"]
["There is no good in much of their private counsels, except for him who advocates charity, or kindness, or reconciliation between people. Whoever does that, seeking God's approval, We will give him a great compensation.","S.004:114"]
["Whoever makes a breach with the Messenger, after the guidance has become clear to him, and follows other than the path of the believers, We will direct him in the direction he has chosen, and commit him to Hell-what a terrible destination!","S.004:115"]
["But as for those who believe and do righteous deeds, We will admit them into gardens beneath which rivers flow, where they will abide forever. The promise of God is true-and who is more truthful in speech than God?","S.004:122"]
["To God belongs everything in the heavens and everything on earth. We have instructed those who were given the Book before you, and you, to be conscious of God. But if you refuse-to God belongs everything in the heavens and everything on earth. God is in no need, Praiseworthy.","S.004:131"]
["These are the unbelievers, truly. We have prepared for the unbelievers a shameful punishment.","S.004:151"]
["The People of the Scripture challenge you to bring down to them a book from the sky. They had asked Moses for something even greater. They said, \"Show us God plainly.\" The thunderbolt struck them for their wickedness. Then they took the calf for worship, even after the clear proofs had come to them. Yet We pardoned that, and We gave Moses a clear authority.","S.004:153"]
["And We raised the Mount above them in accordance with their covenant, and We said to them, \"Enter the gate humbly\", and We said to them, \"Do not violate the Sabbath\", and We received from them a solemn pledge.","S.004:154"]
["Due to wrongdoing on the part of the Jews, We forbade them good things that used to be lawful for them; and for deterring many from God's path.","S.004:160"]
["And for their taking usury, although they were forbidden it; and for their consuming people's wealth dishonestly. We have prepared for the faithless among them a painful torment.","S.004:161"]
["But those among them firmly rooted in knowledge, and the believers, believe in what was revealed to you, and in what was revealed before you; and the observers of prayers, and the givers of charity, and the believers in God and the Last Day-upon these We will bestow an immense reward.","S.004:162"]
["We have inspired you, as We had inspired Noah and the prophets after him. And We inspired Abraham, and Ishmael, and Isaac, and Jacob, and the Patriarchs, and Jesus, and Job, and Jonah, and Aaron, and Solomon. And We gave David the Psalms.","S.004:163"]
["Some messengers We have already told you about, while some messengers We have not told you about. And God spoke to Moses directly.","S.004:164"]
["O people! A proof has come to you from your Lord, and We sent down to you a clear light.","S.004:174"]
["God received a pledge from the Children of Israel, and We raised among them twelve chiefs. God said, \"I am with you; if you perform the prayer, and pay the alms, and believe in My messengers and support them, and lend God a loan of righteousness; I will remit your sins, and admit you into Gardens beneath which rivers flow. But whoever among you disbelieves afterwards has strayed from the right way.\"","S.005:012"]
["Because of their breaking their pledge, We cursed them, and made their hearts hard. They twist the words out of their context, and they disregarded some of what they were reminded of. You will always witness deceit from them, except for a few of them. But pardon them, and overlook. God loves the doers of good.","S.005:013"]
["And from those who say, \"We are Christians,\" We received their pledge, but they neglected some of what they were reminded of. So We provoked enmity and hatred among them until the Day of Resurrection; God will then inform them of what they used to craft.","S.005:014"]
["They said, \"O Moses, we will not enter it, ever, as long as they are in it. So go ahead, you and your Lord, and fight. We are staying right here.\"","S.005:024"]
["Because of that We ordained for the Children of Israel: that whoever kills a person-unless it is for murder or corruption on earth-it is as if he killed the whole of mankind; and whoever saves it, it is as if he saved the whole of mankind. Our messengers came to them with clarifications, but even after that, many of them continue to commit excesses in the land.","S.005:032"]
["And We wrote for them in it: a life for a life, an eye for an eye, a nose for a nose, an ear for an ear, a tooth for a tooth, and an equal wound for a wound; but whoever forgoes it in charity, it will serve as atonement for him. Those who do not rule according to what God revealed are the evildoers.","S.005:045"]
["In their footsteps, We sent Jesus son of Mary, fulfilling the Torah that preceded him; and We gave him the Gospel, wherein is guidance and light, and confirming the Torah that preceded him, and guidance and counsel for the righteous.","S.005:046"]
["And We revealed to you the Book, with truth, confirming the Scripture that preceded it, and superseding it. So judge between them according to what God revealed, and do not follow their desires if they differ from the truth that has come to you. For each of you We have assigned a law and a method. Had God willed, He could have made you a single nation, but He tests you through what He has given you. So compete in righteousness. To God is your return, all of you; then He will inform you of what you had disputed.","S.005:048"]
["The Jews say, \"God's hand is tied.\" It is their hands that are tied, and they are cursed for what they say. In fact, His hands are outstretched; He gives as He wills. Certainly, what was revealed to your from your Lord will increase many of them in defiance and blasphemy. And We placed between them enmity and hatred, until the Day of Resurrection. Whenever they kindle the fire of war, God extinguishes it. And they strive to spread corruption on earth. God does not love the corrupters.","S.005:064"]
["Had the People of the Scriputure believed and been righteous, We would have remitted their sins, and admitted them into the Gardens of Bliss.","S.005:065"]
["We made a covenant with the Children of Israel, and We sent to them messengers. Whenever a messenger came to them with what their souls did not desire, some of them they accused of lying, and others they put to death.","S.005:070"]
["The Messiah son of Mary was only a messenger, before whom other Messengers had passed away, and his mother was a woman of truth. They both used to eat food. Note how We make clear the revelations to them; then note how deluded they are.","S.005:075"]
["And when I inspired the disciples: 'Believe in Me and in My Messenger.' They said, 'We have believed, so bear witness that We have submitted.'","S.005:111"]
["Have they not considered how many generations We destroyed before them? We had established them on earth more firmly than We established you, and We sent the clouds pouring down abundant rain on them, and We made rivers flow beneath them. But We destroyed them for their sins, and established other civilizations after them.","S.006:006"]
["Had We sent down upon you a book on paper, and they had touched it with their hands, those who disbelieve would have said, \"This is nothing but plain magic.\"","S.006:007"]
["And they say, \"Why was an angel not sent down to him.\" Had We sent down an angel, the matter would have been settled, and they would not have been reprieved.","S.006:008"]
["Had We made him an angel, We would have made him a man, and confused them when they are already confused.","S.006:009"]
["Those to whom We have given the Book recognize it as they recognize their own children; but those who have lost their souls do not believe.","S.006:020"]
["On the Day when We gather them all together, then say to the idolaters, \"Where are your idols, those you used to claim?\"","S.006:022"]
["Among them are those who listen to you; but We place covers over their hearts, to prevent them from understanding it, and heaviness in their ears. Even if they see every sign, they will not believe in it. Until, when they come to you, to argue with you, those who disbelieve will say, \"These are nothing but myths of the ancients.\"","S.006:025"]
["There is no animal on land, nor a bird flying with its wings, but are communities like you. We neglected nothing in the Scripture. Then to their Lord they will be gathered.","S.006:038"]
["We sent messengers to communities before you, and We afflicted them with suffering and hardship, that they may humble themselves.","S.006:042"]
["Then, when they disregarded what they were reminded of, We opened for them the gates of all things. Until, when they delighted in what they were given, We seized them suddenly; and at once, they were in despair.","S.006:044"]
["Say, \"Have you considered? If God took away your hearing and your sight, and set a seal on your hearts, what god other than God would restore them to you?\" Note how We explain the revelations in various ways, yet they still turn away.","S.006:046"]
["Thus We try some of them by means of others, that they may say, \"Are these the ones whom God has favored from among us?\" Is God not aware of the appreciative?","S.006:053"]
["Thus We explain the revelations, and expose the path of the unrighteous.","S.006:055"]
["Say, \"Who delivers you from the darkness of land and sea?\" You call upon Him humbly and inwardly: \"If He delivers us from this, We will surely be among the thankful.\"","S.006:063"]
["Say, \"He is Able to send upon you an affliction, from above you, or from under your feet. Or He can divide you into factions, and make you taste the violence of one another. Note how We explain the revelations, so that they may understand.\"","S.006:065"]
["Thus We showed Abraham the empire of the heavens and the earth, that he might be one of those with certainty.","S.006:075"]
["That was Our argument which We gave to Abraham against his people. We elevate by degrees whomever We will. Your Lord is Wise and Informed.","S.006:083"]
["And We gave him Isaac and Jacob-each of them We guided. And We guided Noah previously; and from his descendants David, and Solomon, and Job, and Joseph, and Moses, and Aaron. Thus We reward the righteous.","S.006:084"]
["Those are they to whom We gave the Book, and wisdom, and prophethood. If these reject them, We have entrusted them to others who do not reject them.","S.006:089"]
["This too is a Scripture that We revealed-blessed-verifying what preceded it, that you may warn the Mother of Cities and all around it. Those who believe in the Hereafter believe in it, and are dedicated to their prayers.","S.006:092"]
["You have come to Us individually, just as We created you the first time, leaving behind you everything We gave you. We do not see with you your intercessors-those you claimed were your partners. The link between you is cut, and what you had asserted has failed you.","S.006:094"]
["And it is He Who created the stars for you, that you may be guided by them in the darkness of land and sea. We thus explain the revelations for people who know.","S.006:097"]
["And it is He who produced you from a single person, then a repository, then a depository. We have detailed the revelations for people who understand.","S.006:098"]
["And it is He who sends down water from the sky. With it We produce vegetation of all kinds, from which We bring greenery, from which We produce grains in clusters. And palm-trees with hanging clusters, and vineyards, and olives, and pomegranates-similar and dissimilar. Watch their fruits as they grow and ripen. Surely in this are signs for people who believe.","S.006:099"]
["Had God willed, they would not have practiced idolatry. We did not appoint you as a guardian over them, and you are not a manager over them.","S.006:107"]
["Do not insult those they call upon besides God, lest they insult God out of hostility and ignorance. We made attractive to every community their deeds. Then to their Lord is their return, and He will inform them of what they used to do.","S.006:108"]
["And We turn away their hearts and their visions, as they refused to believe in it the first time, and We leave them blundering in their rebellion.","S.006:110"]
["Even if We sent down the angels to them, and the dead spoke to them, and We gathered all things before them, they still would not believe, unless God wills; but most of them are ignorant.","S.006:111"]
["Likewise, We have assigned for every prophet an enemy-human and jinn devils-inspiring one another with fancy words in order to deceive. But had your Lord willed, they would not have done it. So leave them to their fabrications.","S.006:112"]
["Shall I seek a judge other than God, when He is the One who revealed to you the Book, explained in detail? Those to whom We gave the Book know that it is the truth revealed from your Lord. So do not be of those who doubt.","S.006:114"]
["Is he who was dead, then We gave him life, and made for him a light by which he walks among the people, like he who is in total darkness, and cannot get out of it? Thus the doings of disbelievers are made to appear good to them.","S.006:122"]
["And thus We set up in every city its leading wicked sinners, to conspire in it, but they conspire only against themselves, and they do not realize it.","S.006:123"]
["This is the straight path of your Lord. We have explained the revelations in detail for people who recollect.","S.006:126"]
["Thus We make some of the wrongdoers befriend one another, because of what they used to do.","S.006:129"]
["For the Jews We forbade everything with claws. As of cattle and sheep: We forbade them their fat, except what adheres to their backs, or the entrails, or what is mixed with bone. This is how We penalized them for their inequity. We are indeed truthful.","S.006:146"]
["And do not come near the property of the orphan, except with the best intentions, until he reaches maturity. And give full weight and full measure, equitably. We do not burden any soul beyond its capacity. And when you speak, be fair, even if it concerns a close relative. And fulfill your covenant with God. All this He has enjoined upon you, so that you may take heed.","S.006:152"]
["Then We gave Moses the Scripture, perfect for the righteous, and explaining everything clearly, and a beacon, and mercy, that they may believe in the encounter with their Lord.","S.006:154"]
["This too is a blessed Scripture that We revealed; so follow it, and be righteous, that you may receive mercy.","S.006:155"]
["Or lest you say, \"Had the Scripture been revealed to us, we would have been better guided than they.\" Clarification has come to you from your Lord, and guidance, and mercy. Who then does greater wrong than he who gives the lie to God's messages, and turns away from them? We will repay those who turn away from Our messages with the worst kind of punishment, because of their turning away.","S.006:157"]
["How many a town have We destroyed? Our might came upon them by night, or while they were napping.","S.007:004"]
["When Our might came upon them, their only cry was, \"We were indeed wrongdoers.\"","S.007:005"]
["We will question those to whom messengers were sent, and We will question the messengers.","S.007:006"]
["We will narrate to them with knowledge, for We were never absent.","S.007:007"]
["We created you, then We shaped you, then We said to the angels, \"Bow down before Adam;\" so they bowed down, except for Satan; he was not of those who bowed down.","S.007:011"]
["O children of Adam! We have provided you with clothing to cover your bodies, and for luxury. But the clothing of piety-that is best. These are some of God's revelations, so that they may take heed.","S.007:026"]
["O Children of Adam! Do not let Satan seduce you, as he drove your parents out of the Garden, stripping them of their garments, to show them their nakedness. He sees you, him and his clan, from where you cannot see them. We have made the devils friends of those who do not believe.","S.007:027"]
["Say, \"Who forbade God's finery which He has produced for His servants, and the delights of livelihood?\" Say, \"They are for those who believe, in this present world, but exclusively theirs on the Day of Resurrection.\" We thus detail the revelations for people who know.","S.007:032"]
["Those who reject Our revelations and are too arrogant to uphold them-the doors of Heaven will not be opened for them, nor will they enter Paradise, until the camel passes through the eye of the needle. Thus We repay the guilty.","S.007:040"]
["For them is a couch of hell, and above them are sheets of fire. Thus We repay the wrongdoers.","S.007:041"]
["Those who took their religion lightly, and in jest, and whom the worldly life deceived. Today We will ignore them, as they ignored the meeting on this Day of theirs, and they used to deny Our revelations.","S.007:051"]
["We have given them a Scripture, which We detailed with knowledge-guidance and mercy for people who believe.","S.007:052"]
["It is He who sends the wind ahead of His mercy. Then, when they have gathered up heavy clouds, We drive them to a dead land, where We make water come down, and with it We bring out all kinds of fruits. Thus We bring out the dead-perhaps you will reflect.","S.007:057"]
["As for the good land, it yields its produce by the leave of its Lord. But as for the bad, it produces nothing but hardship and misery. Thus We explain the revelations in various ways for people who are thankful.","S.007:058"]
["But they called him a liar. So We saved him and those with him in the Ark, and We drowned those who rejected Our revelations. They were blind people.","S.007:064"]
["So We saved him and those with him, by mercy from Us, and We cut off the roots of those who rejected Our revelations and were not believers.","S.007:072"]
["But We saved him and his family, except for his wife; she was of those who lagged behind.","S.007:083"]
["And We rained down on them a rain; note the consequences for the sinners.","S.007:084"]
["The arrogant elite among his people said, \"O Shuaib, We will evict you from our town, along with those who believe with you, unless you return to our religion.\" He said, \"Even if we are unwilling?\"","S.007:088"]
["We would be fabricating falsehood against God, if we were to return to your religion, after God has saved us from it. It is not for us to return to it, unless God, our Lord, wills. Our Lord embraces all things in knowledge. In God we place our trust. Our Lord, decide between us and our people in truth, for You are the Best of Deciders.","S.007:089"]
["We did not send any prophet to any town but We afflicted its people with misery and adversity, so that they may humble themselves.","S.007:094"]
["Then We substituted prosperity in place of hardship. Until they increased in number, and said, \"Adversity and prosperity has touched our ancestors.\" Then We seized them suddenly, while they were unaware.","S.007:095"]
["Had the people of the towns believed and turned righteous, We would have opened for them the blessings of the heaven and the earth; but they rejected the truth, so We seized them by what they were doing.","S.007:096"]
["Is it not guidance for those who inherit the land after its inhabitants, that if We willed, We could strike them for their sins? And seal up their hearts, so that they would not hear?","S.007:100"]
["We found most of them untrue to their covenants; We found most of them corrupt.","S.007:102"]
["Then, after them, We sent Moses with Our miracles to Pharaoh and his establishment, but they denounced them. So consider the end of the evildoers.","S.007:103"]
["And We inspired Moses: \"Throw your staff.\" And at once, it swallowed what they were faking.","S.007:117"]
["The chiefs of Pharaoh's people said, \"Will you let Moses and his people cause trouble in the land, and forsake you and your gods?\" He said, \"We will kill their sons, and spare their women. We have absolute power over them.\"","S.007:127"]
["And We afflicted the people of Pharaoh with barren years, and with shortage of crops, that they may take heed.","S.007:130"]
["So We let loose upon them the flood, and the locusts, and the lice, and the frogs, and blood-all explicit signs-but they were too arrogant. They were a sinful people.","S.007:133"]
["But when We lifted the plague from them, for a term they were to fulfill, they broke their promise.","S.007:135"]
["So We took vengeance on them, and drowned them in the sea-because they rejected Our signs, and paid no heed to them.","S.007:136"]
["And We made the oppressed people inherit the eastern and western parts of the land, which We had blessed. Thus the fair promise of your Lord to the Children of Israel was fulfilled, because of their endurance. And We destroyed what Pharaoh and his people had built, and what they had harvested.","S.007:137"]
["And We delivered the Children of Israel across the sea. And when they came upon a people who were devoted to some statues of theirs, they said, \"O Moses, make for us a god, as they have gods.\" He said, \"You are truly an ignorant people.\"","S.007:138"]
["Remember how We saved you from Pharaoh's people, who subjected you to the worst of sufferings-killing your sons and sparing your women. In that was a tremendous trial from your Lord.","S.007:141"]
["And We appointed to Moses thirty nights, and completed them with ten; and thus the time appointed by his Lord was forty nights. And Moses said to his brother Aaron: \"Take my place among my people, and be upright, and do not follow the way of the mischief-makers.\"","S.007:142"]
["And We inscribed for him in the Tablets all kinds of enlightenments, and decisive explanation of all things. \"Hold fast to them, and exhort your people to adopt the best of them. I will show you the fate of the sinners.\"","S.007:145"]
["Those who idolized the calf have incurred wrath from their Lord, and humiliation in this life. We thus requite the innovators.","S.007:152"]
["And inscribe for us goodness in this world, and in the Hereafter. We have turned to You. He said, \"My punishment-I inflict it upon whomever I will, but My mercy encompasses all things. I will specify it for those who act righteously and practice regular charity, and those who believe in Our signs.\"","S.007:156"]
["We divided them into twelve tribal communities. And We inspired Moses, when his people asked him for something to drink: \"Strike the rock with your staff.\" Whereupon twelve springs gushed from it. Each group recognized its drinking-place. And We shaded them with clouds, and We sent down upon them manna and quails: \"Eat of the good things We have provided for you.\" They did not wrong Us, but they used to wrong their own selves.","S.007:160"]
["But the wicked among them substituted other words for the words given to them; so We sent down upon them a plague from the sky, because of their wrongdoing.","S.007:162"]
["Ask them about the town by the sea, when they violated the Sabbath. When they observed the Sabbath, their fish would come to them abundantly. But when they violated the Sabbath, their fish would not come to them. Thus We tried them because they disobeyed.","S.007:163"]
["Then, when they neglected what they were reminded of, We saved those who prohibited evil, and We seized those who did wrong with a terrible punishment, because of their sinfulness.","S.007:165"]
["Then, when they rebelled against the commands to refrain, We said to them, \"Be despicable apes.\"","S.007:166"]
["And We scattered them into communities on earth. Some of them righteous, and some of them short of that. And We tested them with fortunes and misfortunes, so that they may return.","S.007:168"]
["And when We suspended the mountain over them, as if it was an umbrella, and they thought it would fall on them: \"Hold fast to what We have given you, and remember what it contains, so that you may be saved.\"","S.007:171"]
["And relate to them the story of him to whom We delivered Our signs, but he detached himself from them, so Satan went after him, and he became one of the perverts.","S.007:175"]
["Had We willed, We could have elevated him through them; but he clung to the ground, and followed his desires. His metaphor is that of a dog: if you chase it, it pants; and if you leave it alone, it pants. Such is the metaphor of the people who deny Our signs. So tell the tale, so that they may ponder.","S.007:176"]
["Among those We created is a community-they guide by truth, and do justice thereby.","S.007:181"]
["As for those who reject Our messages, We will gradually lead them from where they do not know.","S.007:182"]
["If you desire a verdict, the verdict has come to you. And if you desist, it would be best for you. And if you return, We will return; and your troops, however numerous, will not benefit you. God is with the believers.","S.008:019"]
["And when Our revelations are recited to them, they say, \"We have heard. Had we wanted, we could have said the like of this; these are nothing but myths of the ancients.\"","S.008:031"]
["And know that whatever spoils you gain, to God belongs its fifth, and to the Messenger, and the relatives, and the orphans, and the poor, and to the wayfarer, provided you believe in God and in what We revealed to Our servant on the Day of Distinction, the day when the two armies met. God is Capable of everything.","S.008:041"]
["Such was the case with the people of Pharaoh, and those before them. They denied the signs of their Lord, so We annihilated them for their wrongs, and We drowned the people of Pharaoh-they were all evildoers.","S.008:054"]
["But if they repent, and perform the prayers, and give the obligatory charity, then they are your brethren in faith. We detail the revelations for a people who know.","S.009:011"]
["Do not apologize. You have disbelieved after your belief. If We pardon some of you, We will punish others, because they are guilty.","S.009:066"]
["Among the Desert-Arabs around you there are some hypocrites, and among the inhabitants of Medina too. They have become adamant in hypocrisy. You do not know them, but We know them. We will punish them twice; then they will be returned to a severe torment.","S.009:101"]
["Is it a wonder to the people that We inspired a man from among them: \"Warn mankind, and give good news to those who believe that they are on a sound footing with their Lord\"? The disbelievers said, \"This is a manifest sorcerer.\"","S.010:002"]
["If God were to accelerate the ill for the people, as they wish to accelerate the good, their term would have been fulfilled. But We leave those who do not expect Our encounter to blunder in their excesses.","S.010:011"]
["Whenever adversity touches the human being, he prays to Us-reclining on his side, or sitting, or standing. But when We have relieved his adversity from him, he goes away, as though he had never called on Us for trouble that had afflicted him. Thus the deeds of the transgressors appear good to them.","S.010:012"]
["We destroyed generations before you when they did wrong. Their messengers came to them with clear signs, but they would not believe. Thus We requite the sinful people.","S.010:013"]
["Then We made you successors on earth after them, to see how you would behave.","S.010:014"]
["When We make the people taste mercy after some adversity has touched them, they begin to scheme against Our revelations. Say, \"God is swifter in scheming.\" Our envoys are writing down what you scheme.","S.010:021"]
["But then, when He has saved them, they commit violations on earth, and oppose justice. O people! Your violations are against your own souls. It is the enjoyment of the present life. Then to Us is your return, and We will inform you of what you used to do.","S.010:023"]
["The likeness of the present life is this: water that We send down from the sky is absorbed by the plants of the earth, from which the people and the animals eat. Until, when the earth puts on its fine appearance, and is beautified, and its inhabitants think that they have mastered it, Our command descends upon it by night or by day, and We turn it into stubble, as if it had not flourished the day before. We thus clarify the revelations for people who reflect.","S.010:024"]
["On the Day when We will gather them altogether, then say to those who ascribed partners, \"To your place, you and your partners.\" Then We will separate between them, and their partners will say, \"It was not us you were worshiping.\"","S.010:028"]
["God is sufficient witness between us and you. We were unaware of your worshiping us.","S.010:029"]
["Whether We show you some of what We promise them, or take you, to Us is their return. God is witness to everything they do.","S.010:046"]
["Some enjoyment in this world; then to Us is their return; then We will make them taste the severe punishment on account of their disbelief.","S.010:070"]
["But they denounced him, so We saved him and those with him in the Ark, and We made them successors, and We drowned those who rejected Our signs. So consider the fate of those who were warned.","S.010:073"]
["Then, after him, We sent messengers to their people. They came to them with the clear proofs, but they would not believe in anything they had already rejected. Thus We set a seal on the hearts of the hostile.","S.010:074"]
["Then, after them, We sent Moses and Aaron with Our proofs to Pharaoh and his dignitaries. But they acted arrogantly. They were sinful people.","S.010:075"]
["They said, \"Did you come to us to divert us from what we found our ancestors following, and so that you become prominent in the land? We will never believe in you.\"","S.010:078"]
["And We inspired Moses and his brother, \"Settle your people in Egypt, and make your homes places of worship, and perform the prayer, and give good news to the believers.\"","S.010:087"]
["And We delivered the Children of Israel across the sea. Pharaoh and his troops pursued them, defiantly and aggressively. Until, when he was about to drown, he said, \"I believe that there is no god except the One the Children of Israel believe in, and I am of those who submit.\"","S.010:090"]
["Today We will preserve your body, so that you become a sign for those after you. But most people are heedless of Our signs.","S.010:092"]
["And We settled the Children of Israel in a position of honor, and provided them with good things. They did not differ until knowledge came to them. Your Lord will judge between them on the Day of Resurrection regarding their differences.","S.010:093"]
["If you are in doubt about what We revealed to you, ask those who read the Scripture before you. The truth has come to you from your Lord, so do not be of those who doubt.","S.010:094"]
["If only there was one town that believed and benefited by its belief. Except for the people of Jonah. When they believed, We removed from them the suffering of disgrace in the worldly life, and We gave them comfort for a while.","S.010:098"]
["Then We save Our messengers and those who believe. It is binding on Us to save the believers.","S.010:103"]
["And if We postponed their punishment until a stated time, they would say, \"What holds it back?\" On the Day when it reaches them, it will not be averted from them, and what they used to ridicule will besiege them.","S.011:008"]
["If We give the human being a taste of mercy from Us, and then withdraw it from him, he becomes despairing and ungrateful.","S.011:009"]
["And if We give him a taste of prosperity, after some adversity has afflicted him, he will say, \"Troubles have gone away from me.\" He becomes excited and proud.","S.011:010"]
["Until, when Our command came, and the volcano erupted, We said, \"Board into it a pair of every kind, and your family-except those against whom the sentence has already been passed-and those who have believed.\" But those who believed with him were only a few.","S.011:040"]
["And when Our decree came, We saved Hud and those who believed with him, by a mercy from Us, and We delivered them from a harsh punishment.","S.012:058"]
["They said, \"O Saleh, we had hopes in you before this. Are you trying to prevent us from worshiping what our parents worship? We are in serious doubt regarding what you are calling us to.\"","S.012:062"]
["Then, when Our command came, We saved Saleh and those who believed with him, by a mercy from Us, from the disgrace of that day. Your Lord is the Strong, the Mighty.","S.012:066"]
["His wife was standing by, so she laughed. And We gave her good news of Isaac; and after Isaac, Jacob.","S.012:071"]
["And when Our command came about, We turned it upside down, and We rained down on it stones of baked clay.","S.012:082"]
["And when Our command came, We saved Shuaib and those who believed with him, by mercy from Us, and the Blast struck the wrongdoers, and they became motionless bodies in their homes.","S.012:094"]
["And We sent Moses with Our signs and a clear mandate.","S.012:096"]
["So be not in doubt regarding what these people worship. They worship only as their ancestors worshiped before. We will pay them their due in full, without any reduction.","S.012:109"]
["We gave Moses the Scripture, but it was disputed. Were it not for a prior word from your Lord, it would have been settled between them. They are in serious doubt concerning it.","S.012:110"]
["If only there were, among the generations before you, people with wisdom, who spoke against corruption on earth-except for the few whom We saved. But the wrongdoers pursued the luxuries they were indulged in, and thus became guilty.","S.012:116"]
["Everything We narrate to you of the history of the messengers is to strengthen your heart therewith. The truth has come to you in this, and a lesson, and a reminder for the believers.","S.012:120"]
["So they went away with him, and agreed to put him at the bottom of the well. And We inspired him, \"You will inform them of this deed of theirs when they are unaware.\"","S.013:015"]
["The Egyptian who bought him said to his wife, \"Take good care of him; he may be useful to us, or we may adopt him as a son.\" We thus established Joseph in the land, to teach him the interpretation of events. God has control over His affairs, but most people do not know.","S.013:021"]
["When he reached his maturity, We gave him wisdom and knowledge. We thus reward the righteous.","S.013:022"]
["She desired him, and he desired her, had he not seen the proof of his Lord. It was thus that We diverted evil and indecency away from him. He was one of Our loyal servants.","S.013:024"]
["Some ladies in the city said, \"The governor's wife is trying to seduce her servant. She is deeply in love with him. We see she has gone astray.\"","S.013:030"]
["He said, \"What was the matter with you, women, when you tried to seduce Joseph?\" They said, \"God forbid! We knew of no evil committed by him.\" The governor's wife then said, \"Now the truth is out. It was I who tried to seduce him, and he is telling the truth.\"","S.013:051"]
["And thus We established Joseph in the land, to live therein wherever he wished. We touch with Our mercy whomever We will, and We never waste the reward of the righteous.","S.013:056"]
["And when they opened their baggage, they found that their goods were returned to them. They said, \"Father, what more do we want? Here are our goods, returned to us. We will provide for our family, and protect our brother, and have an additional camel-load. This is easy commerce.\"","S.013:065"]
["And when they entered as their father had instructed them, it did not avail them anything against God; it was just a need in the soul of Jacob, which he carried out. He was a person of knowledge inasmuch as We had taught him, but most people do not know.","S.013:068"]
["So he began with their bags, before his brother's bag. Then he pulled it out of his brother's bag. Thus We devised a plan for Joseph; he could not have detained his brother under the king's law, unless God so willed. We elevate by degrees whomever We will; and above every person of knowledge, there is one more learned.","S.013:076"]
["They said, \"O noble prince, he has a father, a very old man, so take one of us in his place. We see that you are a good person.\"","S.013:078"]
["Go back to your father, and say, 'Our father, your son has stolen. We testify only to what we know, and we could not have prevented the unforeseen.'","S.013:081"]
["Ask the town where we were, and the caravan in which we came. We are being truthful.","S.013:082"]
["Then, when they entered into his presence, they said, \"Mighty governor, adversity has befallen us, and our family. We have brought scant merchandise. But give us full measure, and be charitable towards us-God rewards the charitable.\"","S.013:088"]
["They said, \"By God, God has preferred you over us. We were definitely in the wrong.\"","S.013:091"]
["This is news from the past that We reveal to you. You were not present with them when they plotted and agreed on a plan.","S.013:102"]
["We did not send before you except men, whom We inspired, from the people of the towns. Have they not roamed the earth and seen the consequences for those before them? The Home of the Hereafter is better for those who are righteous. Do you not understand?","S.013:109"]
["Until, when the messengers have despaired, and thought that they were rejected, Our help came to them. We save whomever We will, and Our severity is not averted from the guilty people.","S.013:110"]
["On earth are adjacent terrains, and gardens of vines, and crops, and date-palms, from the same root or from distinct roots, irrigated with the same water. We make some taste better than others. In that are proofs for people who reason.","S.014:004"]
["Thus We sent you among a community before which other communities have passed away, that you may recite to them what We revealed to you. Yet they deny the Benevolent One. Say, \"He is my Lord; there is no god but He; in Him I trust, and to Him is my repentance.\"","S.014:030"]
["Those to whom We gave the Scripture rejoice in what was revealed to you, while some factions reject parts of it. Say, \"I am commanded to worship God, and to never associate anything with Him. To Him I invite, and to Him is my return.\"","S.014:036"]
["Thus We revealed it an Arabic code of law. Were you to follow their desires, after the knowledge that has come to you, you would have neither ally nor defender against God.","S.014:037"]
["We sent messengers before you, and We assigned for them wives and offspring. No messenger could bring a sign except with the permission of God. For every era is a scripture.","S.014:038"]
["Whether We show you some of what We have promised them, or We cause you to die-your duty is to inform, and Ours is the reckoning.","S.014:040"]
["Do they not see how We deal with the earth, diminishing it at its edges? God judges; and nothing can hold back His judgment. And He is quick to settle accounts.","S.014:041"]
["Alif, Lam, Ra. A Scripture that We revealed to you, that you may bring humanity from darkness to light-with the permission of their Lord-to the path of the Almighty, the Praiseworthy.","S.015:001"]
["We sent Moses with Our signs: \"Bring your people out of darkness into light, and remind them of the Days of God.\" In that are signs for every patient and thankful person.\"","S.015:005"]
["And why should we not trust in God, when He has guided us in our ways? We will persevere in the face of your persecution. And upon God the reliant should rely.","S.015:012"]
["And We will settle you in the land after them. That is for him who fears My Majesty, and fears My threats.","S.015:014"]
["Tell My servants who have believed to perform the prayers, and to give from what We have given them, secretly and publicly, before a Day comes in which there is neither trading nor friendship.","S.015:031"]
["And you inhabited the homes of those who wronged themselves, and it became clear to you how We dealt with them, and We cited for you the examples.","S.015:045"]
["Surely We revealed the Message, and We will surely preserve it.","S.016:009"]
["Thus We slip it into the hearts of the guilty.","S.016:012"]
["Even if We opened for them a gateway into the sky, and they began to ascend through it.","S.016:014"]
["And We guarded them from every outcast devil.","S.016:017"]
["We spread the earth, and placed stabilizers in it, and in it We grew all things in proper measure.","S.016:019"]
["And in it We created livelihoods for you, and for those for whom you are not the providers.","S.016:020"]
["There is not a thing but with Us are its stores, and We send it down only in precise measure.","S.016:021"]
["It is We who give life and cause death, and We are the Inheritors.","S.016:023"]
["And We know those of you who go forward, and We know those who lag behind.","S.016:024"]
["And the jinn We created before, from piercing fire.","S.016:027"]
["And We will remove all ill-feelings from their hearts-brothers and sisters, on couches facing one another.","S.016:047"]
["Except for his wife. We have determined that she will be of those who lag behind.","S.016:060"]
["And We informed him of Our decree: the last remnant of these will be uprooted by early morning.","S.016:066"]
["And We turned it upside down, and rained down upon them stones of baked clay.","S.016:074"]
["So We took revenge upon them. Both are clearly documented.","S.016:079"]
["We gave them Our revelations, but they turned away from them.","S.016:081"]
["Do not extend your eyes towards what We have bestowed on some couples of them to enjoy, and do not grieve over them, and lower your wing to the believers.","S.016:088"]
["Just as We sent down to the separatists.","S.016:090"]
["To every community We sent a messenger: \"Worship God, and avoid idolatry.\" Some of them God guided, while others deserved misguidance. So travel through the earth, and see what the fate of the deniers was.","S.017:036"]
["When We intend for something to happen, We say to it, \"Be,\" and it becomes.","S.017:040"]
["Those who emigrate for God's sake after being persecuted, We will settle them in a good place in this world; but the reward of the Hereafter is greater, if they only knew.","S.017:041"]
["We did not send before you except men whom We inspired. So ask the people of knowledge, if you do not know.","S.017:043"]
["With the clarifications and the scriptures. And We revealed to you the Reminder, that you may clarify to the people what was revealed to them, and that they may reflect.","S.017:044"]
["To show ingratitude for what We have given them. Enjoy yourselves. You will soon know.","S.017:055"]
["And they allocate, to something they do not know, a share of what We have provided for them. By God, you will be questioned about what you have been inventing.","S.017:056"]
["By God, We sent messengers to communities before you, but Satan made their deeds appear alluring to them. He is their master today, and they will have a painful punishment.","S.017:063"]
["And there is a lesson for you in cattle: We give you a drink from their bellies, from between waste and blood, pure milk, refreshing to the drinkers.","S.017:066"]
["God cites the example of a bonded slave, who has no power over anything; and someone to whom We have given plentiful provision, from which he gives secretly and openly. Are they equal in comparison? All praise belongs to God, but most of them do not know.","S.017:075"]
["On the Day when We raise up a witness from every community-those who disbelieved will not be permitted, nor will they be excused.","S.017:084"]
["On the Day when We raise in every community a witness against them, from among them, and bring you as a witness against these. We have revealed to you the Book, as an explanation of all things, and guidance, and mercy and good news for those who submit.","S.017:089"]
["What you have runs out, but what is with God remains. We will reward those who are patient according to the best of their deeds.","S.017:096"]
["Whoever works righteousness, whether male or female, while being a believer, We will grant him a good life-and We will reward them according to the best of what they used to do.","S.017:097"]
["When We substitute a verse in place of another verse-and God knows best what He reveals-they say, \"You are an impostor.\" But most of them do not know.","S.017:101"]
["For those who are Jews, We have prohibited what We related to you before. We did not wrong them, but they used to wrong their own selves.","S.017:118"]
["And We gave him goodness in this world, and in the Hereafter he will be among the righteous.","S.017:122"]
["Then We inspired you: \"Follow the religion of Abraham, the Monotheist. He was not an idol-worshiper.\"","S.017:123"]
["Glory to Him who journeyed His servant by night, from the Sacred Mosque, to the Farthest Mosque, whose precincts We have blessed, in order to show him of Our wonders. He is the Listener, the Beholder.","S.018:001"]
["And We gave Moses the Scripture, and made it a guide for the Children of Israel: Take none for protector other than Me.","S.018:002"]
["The descendants of those We carried with Noah. He was an appreciative servant.","S.018:003"]
["And We conveyed to the Children of Israel in the Scripture: You will commit evil on earth twice, and you will rise to a great height.","S.018:004"]
["When the first of the two promises came true, We sent against you servants of Ours, possessing great might, and they ransacked your homes. It was a promise fulfilled.","S.018:005"]
["Then We gave you back your turn against them, and supplied you with wealth and children, and made you more numerous.","S.018:006"]
["Perhaps your Lord will have mercy on you. But if you revert, We will revert. We have made Hell a prison for the disbelievers.","S.018:008"]
["We have made the night and the day two wonders. We erased the wonder of the night, and made the wonder of the day revealing, that you may seek bounty from your Lord, and know the number of years, and the calculation. We have explained all things in detail.","S.018:012"]
["For every person We have attached his fate to his neck. And on the Day of Resurrection, We will bring out for him a book which he will find spread open.","S.018:013"]
["Whoever is guided-is guided for his own good. And whoever goes astray-goes astray to his detriment. No burdened soul carries the burdens of another, nor do We ever punish until We have sent a messenger.","S.018:015"]
["When We decide to destroy a town, We command its affluent ones, they transgress in it, so the word becomes justified against it, and We destroy it completely.","S.018:016"]
["How many generations have We destroyed after Noah? Your Lord is sufficient as Knower and Beholder of the sins of his servants.","S.018:017"]
["Whoever desires the fleeting life, We expedite for him what We decide to give him, to whomever We desire. Then We consign him to Hell, where he will roast, condemned and defeated.","S.018:018"]
["See how We have favored some of them over others; yet the Hereafter is greater in ranks, and greater in favors.","S.018:021"]
["And do not kill your children for fear of poverty. We provide for them, and for you. Killing them is a grave sin.","S.018:031"]
["And do not kill the soul which God has made sacred, except in the course of justice. If someone is killed unjustly, We have given his next of kin certain authority. But he should not be excessive in killing, for he will be supported.","S.018:033"]
["Your Lord knows you best. If He wills, He will have mercy on you; and if He wills, He will punish you. We did not send you as their advocate.","S.018:054"]
["Your Lord knows well everyone in the heavens and the earth. We have given some prophets advantage over others; and to David We gave the Psalms.","S.018:055"]
["There is no city but We will destroy before the Day of Resurrection, or punish it with a severe punishment. This is inscribed in the Book.","S.018:058"]
["Nothing prevents Us from sending miraculous signs, except that the ancients called them lies. We gave Thamood the she-camel, a visible sign, but they mistreated her. We do not send the signs except to instill reverence.","S.018:059"]
["When We said to the angels, \"Bow down before Adam,\" they bowed down, except for Satan. He said, \"Shall I bow down before someone You created from mud?\"","S.018:061"]
["We have honored the Children of Adam, and carried them on land and sea, and provided them with good things, and greatly favored them over many of those We created.","S.018:070"]
["On the Day when We call every people with their leader. Whoever is given his record in his right hand-these will read their record, and they will not be wronged one bit.","S.018:071"]
["They almost lured you away from what We have revealed to you, so that you would invent something else in Our name. In that case, they would have taken you for a friend.","S.018:073"]
["Had We not given you stability, you might have inclined towards them a little.","S.018:074"]
["Then We would have made you taste double in life, and double at death; then you would have found for yourself no helper against Us.","S.018:075"]
["The tradition of the messengers We sent before you-you will find no change in Our rules.","S.018:077"]
["When We bless the human being, he turns away and distances himself. But when adversity touches him, he is in despair.","S.018:083"]
["If We willed, We could take away what We revealed to you. Then you will find for yourself no protecting guardian against Us.","S.018:086"]
["Say, \"If there were angels on earth, walking around in peace, We would have sent down to them from heaven an angel messenger.\"","S.018:095"]
["Whomever God guides is the guided one. And whomever He leaves astray-for them you will find no protectors apart from Him. And We will gather them on the Day of Resurrection, on their faces, blind, dumb, and deaf. Their abode is Hell; whenever it abates, We intensify the blaze for them.","S.018:097"]
["He resolved to scare them off the land, but We drowned him, and those with him, altogether.","S.018:103"]
["After him, We said to the Children of Israel, \"Inhabit the land, and when the promise of the Hereafter arrives, We will bring you all together.\"","S.018:104"]
["With the truth We sent it down, and with the truth it descended. We sent you only as a bearer of good news and a warner.","S.018:105"]
["And We will turn what is on it into barren waste.","S.019:008"]
["Then We sealed their ears in the cave for a number of years.","S.019:011"]
["Then We awakened them to know which of the two groups could better calculate the length of their stay.","S.019:012"]
["We relate to you their story in truth. They were youths who believed in their Lord, and We increased them in guidance.","S.019:013"]
["And We strengthened their hearts, when they stood up and said, \"Our Lord is the Lord of the heavens and the earth; we will not call on any god besides Him, for then we would have spoken an outrage.\"","S.019:014"]
["You would think them awake, although they were asleep. And We turned them over to the right, and to the left, with their dog stretching its paws across the threshold. Had you looked at them, you would have turned away from them in flight, and been filled with fear of them.","S.019:018"]
["Even so, We awakened them, so that they may ask one another. A speaker among them said, \"How long have you stayed?\" They said, \"We have stayed a day, or part of a day.\" They said, \"Your Lord knows best how long you have stayed.\" \"Send one of you to the city, with this money of yours, and let him see which food is most suitable, and let him bring you some provision thereof. And let him be gentle, and let no one become aware of you.\"","S.019:019"]
["So it was, that We caused them to be discovered, that they would know that the promise of God is true, and that of the Hour there is no doubt. As they were disputing their case among themselves, they said, \"Build over them a building.\" Their Lord knows best about them. Those who prevailed over their case said, \"We will set up over them a place of worship.\"","S.019:021"]
["And content yourself with those who pray to their Lord morning and evening, desiring His Presence. And do not turn your eyes away from them, desiring the glitter of this world. And do not obey him whose heart We have made heedless of Our remembrance-so he follows his own desires-and his priorities are confused.","S.019:028"]
["And say, \"The truth is from your Lord. Whoever wills-let him believe. And whoever wills-let him disbelieve\". We have prepared for the unjust a Fire, whose curtains will hem them in. And when they cry for relief, they will be relieved with water like molten brass, which scalds the faces. What a miserable drink, and what a terrible place.","S.019:029"]
["And cite for them the parable of two men. To one of them We gave two gardens of vine, and We surrounded them with palms-trees, and We placed between them crops.","S.019:032"]
["Both gardens produced their harvest in full, and suffered no loss. And We made a river flow through them.","S.019:033"]
["And cite for them the parable of the present life: it is like water that We send down from the sky; the plants of the earth absorb it; but then it becomes debris, scattered by the wind. God has absolute power over everything.","S.019:045"]
["On the Day when We set the mountains in motion; and you see the earth emerging; and We gather them together, and leave none of them behind.","S.019:047"]
["They will be presented before your Lord in a row. \"You have come to Us as We created you the first time. Although you claimed We would not set a meeting for you.\"","S.019:048"]
["On the Day when He will say, \"Call on My partners whom you have claimed.\" They will call on them, but they will not answer them. And We will place between them a barrier.","S.019:052"]
["Who does greater wrong than he, who, when reminded of his Lord's revelations, turns away from them, and forgets what his hands have put forward? We have placed coverings over their hearts, lest they understand it, and heaviness in their ears. And if you call them to guidance, they will not be guided, ever.","S.019:057"]
["And these towns-We destroyed them when they committed injustices, and We set for their destruction an appointed time.","S.019:059"]
["Then they came upon a servant of Ours, whom We had blessed with mercy from Us, and had taught him knowledge from Our Own.","S.019:065"]
["Until, when he reached the setting of the sun, he found it setting in a murky spring, and found a people in its vicinity. We said, \"O Zul-Qarnain, you may either inflict a penalty, or else treat them kindly.\"","S.019:086"]
["But as for him who believes and acts righteously, he will have the finest reward, and We will speak to him of Our command with ease.","S.019:088"]
["Until, when he reached the rising of the sun, he found it rising on a people for whom We had provided no shelter from it.","S.019:090"]
["And so it was. We had full knowledge of what he had.","S.019:091"]
["On that Day, We will leave them surging upon one another. And the Trumpet will be blown, and We will gather them together.","S.019:099"]
["On that Day, We will present the disbelievers to Hell, all displayed.","S.019:100"]
["Do those who disbelieve think that they can take My servants for masters instead of Me? We have prepared Hell for the hospitality of the faithless.","S.019:102"]
["Say, \"Shall We inform you of the greatest losers in their works?\"","S.019:103"]
["It is they who rejected the communications of their Lord, and the encounter with Him. So their works are in vain. And on the Day of Resurrection, We will consider them of no weight.","S.019:105"]
["Say, \"If the ocean were ink for the words of my Lord, the ocean would run out, before the words of my Lord run out,\" even if We were to bring the like of it in addition to it.","S.019:109"]
["O Zechariah, We give you good news of a son, whose name is John, a name We have never given before.","S.020:007"]
["O John, hold on to the Scripture firmly, and We gave him wisdom in his youth.","S.020:012"]
["She screened herself away from them, and We sent to her Our spirit, and He appeared to her as an immaculate human.","S.020:017"]
["He said, \"Thus said your Lord, 'It is easy for Me, and We will make him a sign for humanity, and a mercy from Us. It is a matter already decided.'\"","S.020:021"]
["It is We who will inherit the earth and everyone on it, and to Us they will be returned.","S.020:040"]
["When he withdrew from them, and from what they worship besides God, We granted him Isaac and Jacob. And each We made a prophet.","S.020:049"]
["And We gave them freely of Our mercy, and gave them a noble reputation of truth.","S.020:050"]
["And We called him from the right side of the Mount, and brought him near in communion.","S.020:052"]
["And We granted him, out of Our mercy, his brother Aaron, a prophet.","S.020:053"]
["And We raised him to a high position.","S.020:057"]
["These are some of the prophets God has blessed, from the descendants of Adam, and from those We carried with Noah, and from the descendants of Abraham and Israel, and from those We guided and selected. Whenever the revelations of the Most Gracious are recited to them, they would fall down, prostrating and weeping.","S.020:058"]
["Such is Paradise which We will give as inheritance to those of Our servants who are devout.","S.020:063"]
["Does the human being not remember that We created him before, when he was nothing?","S.020:067"]
["By your Lord, We will round them up, and the devils, then We will bring them around Hell, on their knees.","S.020:068"]
["Then, out of every sect, We will snatch those most defiant to the Most Merciful.","S.020:069"]
["Then We will rescue those who were devout, and leave the wrongdoers in it, on their knees.","S.020:072"]
["How many a generation have We destroyed before them, who surpassed them in riches and splendor?","S.020:074"]
["No indeed! We will write what he says, and will keep extending the agony for him.","S.020:079"]
["Then We will inherit from him what he speaks of, and he will come to Us alone.","S.020:080"]
["Have you not considered how We dispatch the devils against the disbelievers, exciting them with incitement?","S.020:083"]
["So do not hurry against them. We are counting for them a countdown.","S.020:084"]
["On the Day when We will gather the righteous to the Most Merciful, as guests.","S.020:085"]
["How many a generation have We destroyed before them? Can you feel a single one of them, or hear from them the slightest whisper?","S.020:098"]
["He said, \"Take hold of it, and do not fear. We will restore it to its original condition.","S.021:021"]
["That We may show you some of Our greatest signs.","S.021:023"]
["When We inspired your mother with the inspiration.","S.021:038"]
["When your sister walked along, and said, 'Shall I tell you about someone who will take care of him?' So We returned you to your mother, that she may be comforted, and not sorrow. And you killed a person, but We saved you from stress; and We tested you thoroughly. And you stayed years among the people of Median. Then you came back, as ordained, O Moses.","S.021:040"]
["Approach him and say, 'We are the messengers of your Lord; so let the Children of Israel go with us, and do not torment them. We bring you a sign from your Lord, and peace be upon him who follows guidance.","S.021:047"]
["He who made the earth a habitat for you; and traced in it routes for you; and sent down water from the sky, with which We produce pairs of diverse plants.","S.021:053"]
["From it We created you, and into it We will return you, and from it We will bring you out another time.","S.021:055"]
["We showed him Our signs, all of them, but he denied and refused.","S.021:056"]
["And We inspired Moses: \"Travel by night with My servants, and strike for them a dry path across the sea, not fearing being overtaken, nor worrying.\"","S.021:077"]
["O Children of Israel! We have delivered you from your enemy, and promised you by the right side of the Mount, and sent down to you manna and quails.","S.021:080"]
["Eat of the good things We have provided for you, but do not be excessive therein, lest My wrath descends upon you. He upon whom My wrath descends has fallen.","S.021:081"]
["Thus We narrate to you reports of times gone by; and We have given you a message from Our Presence.","S.021:099"]
["And We covenanted with Adam before, but he forgot, and We found in him no resolve.","S.021:115"]
["And when We said to the angels, \"Bow down to Adam.\" They bowed down, except for Satan; he refused.","S.021:116"]
["But whoever turns away from My Reminder, for him is a confined life. And We will raise him on the Day of Resurrection blind.\"","S.021:124"]
["Thus We recompense him who transgresses and does not believe in the revelations of his Lord. The punishment of the Hereafter is more severe, and more lasting.","S.021:127"]
["Is it not instructive to them, how many generations before them We destroyed, in whose settlements they walk? Surely in that are signs for people of understanding.","S.021:128"]
["And do not extend your glance towards what We have given some classes of them to enjoy-the splendor of the life of this world-that We may test them thereby. Your Lord's provision is better, and more lasting.","S.021:131"]
["And exhort your people to pray, and patiently adhere to it. We ask of you no sustenance, but it is We who sustain you. The good ending is that for righteousness.","S.021:132"]
["Had We destroyed them with a punishment before him, they would have said, \"Our Lord, if only You had sent us a messenger, we would have followed Your revelations before we were humiliated and disgraced.\"","S.021:134"]
["None of the towns We destroyed before them had believed. Will they, then, believe?","S.022:006"]
["We did not send before you except men, whom We inspired. Ask the people of knowledge, if you do not know.","S.022:007"]
["Then We fulfilled Our promise to them, and We saved them together with whomever We willed, and We destroyed the extravagant.","S.022:009"]
["How many a guilty town have We crushed, and established thereafter another people?","S.022:011"]
["This continued to be their cry, until We made them silent ashes.","S.022:015"]
["If We wanted amusement, We could have found it within Us, were We to do so.","S.022:017"]
["In fact, We hurl the truth against falsehood, and it crushes it, so it vanishes. Woe unto you, for what you describe.","S.022:018"]
["And whoever of them says, \"I am a god besides Him,\" We will reward him with Hell. Thus We reward the wrongdoers.","S.022:029"]
["Do the disbelievers not see that the heavens and the earth were one mass, and We tore them apart? And We made from water every living thing. Will they not believe?","S.022:030"]
["And We placed on earth stabilizers, lest it sways with them, and We placed therein signposts and passages, that they may be guided.","S.022:031"]
["And We made the sky a protected ceiling; yet they turn away from its wonders.","S.022:032"]
["Every soul will taste death. We burden you with adversity and prosperity-a test. And to Us you will be returned.","S.022:035"]
["We have given these enjoyments, and their ancestors, until time grew long upon them. Do they not see how We gradually reduce the land from its extremities? Are they then the victors?","S.022:044"]
["We will set up the scales of justice for the Day of Resurrection, so that no soul will suffer the least injustice. And even if it be the weight of a mustard-seed, We will bring it up. Sufficient are We as Reckoners.","S.022:047"]
["This too is a blessed message that We revealed. Are you going to deny it?","S.022:050"]
["We gave Abraham his integrity formerly, and We knew him well.","S.022:051"]
["They planned to harm him, but We made them the worst losers.","S.022:070"]
["And We delivered him, and Lot, to the land that We blessed for all people.","S.022:071"]
["And We granted him Isaac and Jacob as a gift; and each We made righteous.","S.022:072"]
["And We made them leaders, guiding by Our command; and We inspired them to do good works, and to observe the prayer, and to give out charity. They were devoted servants to Us.","S.022:073"]
["And Lot-We gave him judgment and knowledge, and We delivered him from the town that practiced the abominations. They were wicked and perverted people.","S.022:074"]
["And We admitted him into Our mercy; for He was one of the righteous.","S.022:075"]
["And Noah, when he called before. So We answered him, and delivered him and his family from the great disaster.","S.022:076"]
["And We supported him against the people who rejected Our signs. They were an evil people, so We drowned them all.","S.022:077"]
["And David and Solomon, when they gave judgment in the case of the field, when some people's sheep wandered therein by night; and We were witnesses to their judgment.","S.022:078"]
["And so We made Solomon understand it, and to each We gave wisdom and knowledge. And We subjected the mountains along with David to sing Our praises, and the birds as well-surely We did.","S.022:079"]
["And We taught him the making of shields for you, to protect you from your violence. Are you, then, appreciative?","S.022:080"]
["And to Solomon the stormy wind, blowing at His command towards the land that We have blessed. We are aware of everything.","S.022:081"]
["And of the devils were some that dived for him, and performed other, lesser tasks. But We kept them restrained.","S.022:082"]
["So We answered him, lifted his suffering, and restored his family to him, and their like with them-a mercy from Us, and a reminder for the worshipers.","S.022:084"]
["And We admitted them into Our mercy. They were among the righteous.","S.022:086"]
["And Jonah, when he stormed out in fury, thinking We had no power over him. But then He cried out in the darkness, \"There is no god but You! Glory to You! I was one of the wrongdoers!\"","S.022:087"]
["So We answered him, and saved him from the affliction. Thus We save the faithful.","S.022:088"]
["So We answered him, and gave him John. And We cured his wife for him. They used to vie in doing righteous deeds, and used to call on Us in love and awe, and they used to humble themselves to Us.","S.022:090"]
["And she who guarded her virginity. We breathed into her of Our spirit, and made her and her son a sign to the world.","S.022:091"]
["Whoever does righteous deeds, and is a believer, his effort will not be denied. We are writing it down for him.","S.022:094"]
["There is a ban on the town that We had destroyed-that they will not return.","S.022:095"]
["The promise of truth has drawn near. The eyes of those who disbelieved will stare in horror: \"Woe to us. We were oblivious to this. In fact, we were wrongdoers.\"","S.022:097"]
["On the Day when We fold the heaven, like the folding of a book. Just as We began the first creation, We will repeat it-a promise binding on Us. We will act.","S.022:104"]
["O people! If you are in doubt about the Resurrection-We created you from dust, then from a small drop, then from a clinging clot, then from a lump of flesh, partly developed and partly undeveloped. In order to clarify things for you. And We settle in the wombs whatever We will for a designated term, and then We bring you out as infants, until you reach your full strength. And some of you will pass away, and some of you will be returned to the vilest age, so that he may not know, after having known. And you see the earth still; but when We send down water on it, it vibrates, and swells, and grows all kinds of lovely pairs.","S.023:005"]
["Turning aside in contempt, to lead away from the path of God. He will have humiliation in this world, and on the Day of Resurrection We will make him taste the agony of burning.","S.023:009"]
["Thus We revealed it as clarifying signs, and God guides whomever He wills.","S.023:016"]
["As for those who disbelieve and repel from God's path and from the Sacred Mosque-which We have designated for all mankind equally, whether residing therein or passing through-and seek to commit sacrilege therein-We will make him taste of a painful punishment.","S.023:025"]
["Those whose hearts tremble when God is mentioned, and those who endure what has befallen them, and those who perform the prayer and spend from what We have provided for them.","S.023:035"]
["We have made the animal offerings emblems of God for you. In them is goodness for you. So pronounce God's name upon them as they line up. Then, when they have fallen on their sides, eat of them and feed the contented and the beggar. Thus We have subjected them to you, that you may be thankful.","S.023:036"]
["Those who were unjustly evicted from their homes, merely for saying, \"Our Lord is God.\" Were it not that God repels people by means of others: monasteries, churches, synagogues, and mosques-where the name of God is mentioned much-would have been demolished. God supports whoever supports Him. God is Strong and Mighty.","S.023:040"]
["Those who, when We empower them in the land, observe the prayer, and give regular charity, and command what is right, and forbid what is wrong. To God belongs the outcome of events.","S.023:041"]
["How many a town have We destroyed while it was doing wrong? They lie in ruins; with stilled wells, and lofty mansions.","S.023:045"]
["For every congregation We have appointed acts of devotion, which they observe. So do not let them dispute with you in this matter. And invite to your Lord; you are upon a straight guidance.","S.023:067"]
["Then We made him a seed, in a secure repository.","S.024:013"]
["Then We developed the seed into a clot. Then We developed the clot into a lump. Then We developed the lump into bones. Then We clothed the bones with flesh. Then We produced it into another creature. Most Blessed is God, the Best of Creators.","S.024:014"]
["We created above you seven pathways, and We are never heedless of the creation.","S.024:017"]
["And We sent down water from the sky in proper quantity, and settled it in the ground, and We are Able to take it away.","S.024:018"]
["With it We produce for you gardens of palms and vines, yielding abundant fruit for you to eat.","S.024:019"]
["And there is a lesson for you in livestock: We give you to drink from what is in their bellies, and you have many benefits in them, and from them you eat.","S.024:021"]
["But the notables of his people, who disbelieved, said, \"This is nothing but a human like you, who wants to gain superiority over you. Had God willed, He would have sent down angels. We never heard of this from our forefathers of old.","S.024:024"]
["So We inspired him: \"Build the Ark under Our observation and by Our inspiration. And when Our decree comes to pass, and the oven boils over, load into it two pairs of every kind, together with your family, except those of them against whom the word has already been pronounced. And do not speak to me concerning those who did wrong; for they are to be drowned.\"","S.024:027"]
["Surely in that are signs. We are always testing.","S.024:030"]
["Then, after them, We established another generation.","S.024:031"]
["And We sent among them a messenger from themselves: \"Serve God. You have no god other than Him. Will you not be cautious?\"","S.024:032"]
["But the dignitaries of his people, those who disbelieved and denied the meeting of the Hereafter, and We had indulged them in the present life, said, \"This is nothing but a human like you; he eats what you eat, and he drinks what you drink.","S.024:033"]
["There is nothing but our life in this world. We die, and we live, and we are not resurrected.","S.024:037"]
["He is nothing but a man, making up lies about God. We have no faith in him.\"","S.024:038"]
["Then the Blast struck them, justifiably, and We turned them into scum. So away with the wicked people.","S.024:041"]
["Then, after them, We raised other generations.","S.024:042"]
["Then We sent Our messengers in succession. Every time a messenger came to his community, they called him a liar. So We made them follow one another, and made them history. So away with a people who do not believe.","S.024:044"]
["Then We sent Moses and his brother Aaron, with Our signs and a clear authority.","S.024:045"]
["And We gave Moses the Scripture, that they may be guided.","S.024:049"]
["And We made Mary's son and his mother a sign, and We sheltered them on high ground with security and flowing springs.","S.024:050"]
["We never burden any soul beyond its capacity. And with Us is a record that tells the truth, and they will not be wronged.","S.024:062"]
["Until, when We seize the decadent among them with torment, they begin to groan.","S.024:064"]
["If the truth conformed to their desires, the heavens, the earth, and everyone in them would have gone to ruin. In fact, We have given them their message, but they keep avoiding their message.","S.024:071"]
["Even if We had mercy on them, and relieved their problems, they would still blindly persist in their defiance.","S.024:075"]
["Until, when We have opened before them a gate of intense agony, at once they will despair.","S.024:077"]
["In fact, We have given them the truth, and they are liars.","S.024:090"]
["We are surely Able to show you what We promise them.","S.024:095"]
["Repel evil by what is better. We are aware of what they describe.","S.024:096"]
["Did you think that We created you in vain, and that to Us you will not be returned?\"","S.024:115"]
["A chapter that We have revealed, and made obligatory, and revealed in it clear Verses, that you may take heed.","S.025:001"]
["In fact, they have denied the Hour, and We have prepared for those who deny the Hour a Blaze.","S.026:011"]
["They have denied you because of what you say; so you can neither avert, nor help. Whoever among you commits injustice, We will make him taste a grievous punishment.","S.026:019"]
["We never sent any messengers before you, but they ate food and walked in the marketplaces. And We made some of you tempters for one another-will you be patient? Your Lord is always Observing.","S.026:020"]
["Likewise, to every prophet We assign enemies from among the wicked. But your Lord suffices as a Guide and Savior.","S.026:031"]
["Whatever argument they come to you with, We provide you with the truth, and a better exposition.","S.026:033"]
["We said, \"Go to the people who rejected Our signs,\" and We destroyed them completely.","S.026:036"]
["And the people of Noah: when they rejected the messengers, We drowned them, and made them a lesson for mankind. We have prepared for the wrongdoers a painful retribution.","S.026:037"]
["To each We presented the parables; and each We devastated utterly.","S.026:039"]
["Do you not see how your Lord extends the shadow? Had He willed, He could have made it still. And We made the sun a pointer to it.","S.026:045"]
["Then We withdraw it towards Us gradually.","S.026:046"]
["And it is He who sends the winds, bringing advance news of His mercy; and We send down from the sky pure water.","S.026:048"]
["To revive dead lands thereby, and to provide drink for the multitude of animals and humans We created.","S.026:049"]
["Had We willed, We could have sent to every town a warner.","S.026:051"]
["If We will, We can send down upon them a sign from heaven, at which their necks will stay bent in humility.","S.027:004"]
["Have they not seen the earth, and how many beautiful pairs We produced therein?","S.027:007"]
["He said, \"No. Go, both of you, with Our proofs. We will be with you, listening.","S.027:015"]
["And We inspired Moses: \"Travel with My servants by night. You will be followed.\"","S.027:052"]
["So We drove them out of gardens and springs.","S.027:057"]
["So it was. And We made the Children of Israel inherit them.","S.027:059"]
["And there We brought the others near.","S.027:064"]
["And We saved Moses and those with him, all together.","S.027:065"]
["Then We drowned the others.","S.027:066"]
["By God, We were in evident error.","S.027:097"]
["So We delivered him and those with him in the laden Ark.","S.027:119"]
["Then We drowned the rest.","S.027:120"]
["So they denied him, and We destroyed them. Surely in this is a sign, but most of them are not believers.","S.027:139"]
["So We saved him and his family, altogether.","S.027:170"]
["Then We destroyed the others.","S.027:172"]
["And We rained down on them a rain. Dreadful is the rain of those forewarned.","S.027:173"]
["Had We revealed it to one of the foreigners.","S.027:198"]
["Thus We make it pass through the hearts of the guilty.","S.027:200"]
["Have you considered: if We let them enjoy themselves for some years.","S.027:205"]
["Never did We destroy a town, but it had warners.","S.027:208"]
["As for those who do not believe in the Hereafter: We made their deeds appear good to them, so they wander aimlessly.","S.028:004"]
["And We gave David and Solomon knowledge. They said, \"Praise God, who has favored us over many of His believing servants.\"","S.028:015"]
["Go back to them. We will come upon them with troops they cannot resist; and we will expel them from there, disgraced and humiliated.\"","S.028:037"]
["And We sent to Thamood their brother Saleh: \"Worship God.\" But they became two disputing factions.","S.028:045"]
["They planned a plan, and We planned a plan, but they did not notice.","S.028:050"]
["So note the outcome of their planning; We destroyed them and their people, altogether.","S.028:051"]
["And We saved those who believed and were pious.","S.028:053"]
["So We saved him and his family, except for his wife, whom We destined to be among the laggards.","S.028:057"]
["And We rained upon them a rain. Miserable was the rain of those forewarned.","S.028:058"]
["Or, who created the heavens and the earth, and rains down water from the sky for you? With it We produce gardens full of beauty, whose trees you could not have produced. Is there another god with God? But they are a people who equate.","S.028:060"]
["And when the Word has fallen on them, We will bring out for them from the earth a creature which will say to them that the people are uncertain of Our revelations.","S.028:082"]
["On the Day when We gather from every community a group of those who rejected Our revelations; and they will be restrained.","S.028:083"]
["Do they not see that We made the night for them to rest therein, and the day for visibility? Surely in that are signs for people who believe.","S.028:086"]
["But We desired to favor those who were oppressed in the land, and to make them leaders, and to make them the inheritors.","S.029:005"]
["We inspired the mother of Moses: \"Nurse him; then, when you fear for him, cast him into the river, and do not fear, nor grieve; We will return him to you, and make him one of the messengers.\"","S.029:007"]
["The heart of Moses' mother became vacant. She was about to disclose him, had We not steadied her heart, that she may remain a believer.","S.029:010"]
["Thus We returned him to his mother, that she may be comforted, and not grieve, and know that God's promise is true. But most of them do not know.","S.029:013"]
["And when he reached his maturity, and became established, We gave him wisdom and knowledge. Thus do We reward the virtuous.","S.029:014"]
["He said, \"We will strengthen your arm with your brother, and We will give you authority, so they will not touch you. By virtue of Our signs, you and those who follow you will be the triumphant.\"","S.029:035"]
["But when Moses came to them with Our signs, clear and manifest, they said, \"This is nothing but fabricated magic, and We never heard of this from our ancestors of old.\"","S.029:036"]
["So We seized him, and his troops, and We threw them into the sea. Observe, therefore, what was the end of the oppressors.","S.029:040"]
["And We made them leaders calling to the Fire. And on Resurrection Day, they will not be saved.","S.029:041"]
["And We pursued them in this world with a curse. And on Resurrection Day, they will be among the despised.","S.029:042"]
["We gave Moses the Scripture after We had annihilated the previous generations; as an illumination for mankind, and guidance, and mercy, so that they may remember.","S.029:043"]
["You were not on the Western Side when We decreed the command to Moses, nor were you among the witnesses.","S.029:044"]
["But We established many generations, and time took its toll on them. Nor were you among the people of Median, reciting Our revelations to them. But We kept sending messengers.","S.029:045"]
["Nor were you by the side of the Mount when We proclaimed. Rather, it was a mercy from your Lord, that you may warn people who received no warner before you, so that they may take heed.","S.029:046"]
["But when the truth came to them from Us, they said, \"If only he was given the like of what was given to Moses.\" Did they not disbelieve in what was given to Moses in the past? They said, \"Two works of magic backing one another.\" And they said, \"We are disbelieving in both.\"","S.029:048"]
["Those to whom We gave the Scripture before it believe in it.","S.029:052"]
["And they say, \"If we follow the guidance with you, we will be snatched from our land.\" Did We not establish for them a Safe Sanctuary, to which are brought all kinds of fruits, as provision from Ourselves? But most of them do not know.","S.029:057"]
["And how many a city did We destroy for turning unappreciative of its livelihood? Here are their homes, uninhabited after them, except for a few. And We became the Inheritors.","S.029:058"]
["Your Lord never destroys cities without first sending a messenger in their midst, reciting to them Our revelations. And We never destroy the cities, unless their people are wrongdoers.","S.029:059"]
["Can someone to whom We have made a fine promise-which he will attain-be equal to someone to whom We have given enjoyments in this world, but who will be, on Resurrection Day, among the arraigned?","S.029:061"]
["Those against whom the sentence is justified will say, \"Our Lord, these are they whom we misled. We misled them, as we were misled. We beg Your forgiveness; it was not us they used to worship.\"","S.029:063"]
["And We will draw out from every community a witness, and say, \"Produce your evidence.\" Then they will realize that the truth is God's, and those they used to invent have forsaken them.","S.029:075"]
["Quaroon belonged to the clan of Moses, but he oppressed them. We had given him treasures, the keys of which would weigh down a group of strong men. His people said to him, \"Do not exult; God does not love the exultant.","S.029:076"]
["So We caused the earth to cave in on him and his mansion. He had no company to save him from God, and he could not defend himself.","S.029:081"]
["Those who believe and do righteous deeds-We will remit their sins, and We will reward them according to the best of what they used to do.","S.030:007"]
["But We saved him, together with the company of the Ark, and We made it a sign for all peoples.","S.030:015"]
["And We granted him Isaac and Jacob, and conferred on his descendants the Prophethood and the Book, and gave him his reward in this life; and in the Hereafter he will be among the upright.","S.030:027"]
["And when Our envoys brought Abraham the good news, they said, \"We are going to destroy the people of this town; its people are wrongdoers.\"","S.030:031"]
["He said, \"Yet Lot is in it.\" They said, \"We are well aware of who is in it. We will save him, and his family, except for his wife, who will remain behind.\"","S.030:032"]
["Then, when Our envoys came to Lot, they were mistreated, and he was troubled and distressed on their account. They said, \"Do not fear, nor grieve. We will save you and your family, except for your wife, who will remain behind.\"","S.030:033"]
["And We left behind a clear trace of it, for people who understand.","S.030:035"]
["Each We seized by his sin. Against some We sent a sandstorm. Some were struck by the Blast. Some We caused the ground to cave in beneath them. And some We drowned. It was not God who wronged them, but it was they who wronged their own selves.","S.030:040"]
["Likewise, We revealed to you the Scripture. Those to whom We gave the Scripture believe in it, and some of these believe in it. None renounce Our communications except the disbelievers.","S.030:047"]
["Does it not suffice them that We revealed to you the Scripture, which is recited to them? In that is mercy and a reminder for people who believe.","S.030:051"]
["To be ungrateful for what We have given them, and to enjoy themselves. They will surely come to know.","S.030:066"]
["Do they not see that We established a Secure Sanctuary, while all around them the people are being carried away? Do they believe in falsehood, and reject the blessings of God?","S.030:067"]
["As for those who strive for Us-We will guide them in Our ways. God is with the doers of good.","S.030:069"]
["He illustrates an example for you, from your own selves: do you make your servants full partners in the wealth We have given you? Do you revere them as you revere one another? We thus explain the revelations for a people who understand.","S.031:028"]
["To show ingratitude for what We have given them. Indulge yourselves-you will surely know.","S.031:034"]
["Have We sent down to them any authority, which speaks in support of their idols?","S.031:035"]
["When We give people a taste of mercy, they rejoice in it. But when adversity befalls them, because of what their hands have perpetrated, they begin to despair.","S.031:036"]
["Before you, We sent messengers to their people. They came to them with clear proofs. Then We took revenge on those who sinned. It is incumbent on Us to help the believers.","S.031:047"]
["But if We send a wind, and they see it turning things yellow, they would continue thereafter to disbelieve.","S.031:051"]
["He created the heavens without pillars that you can see, and placed stabilizers on earth lest it shifts with you, and scattered throughout it all kinds of creatures. And from the sky We sent down water, and caused to grow therein of every noble pair.","S.032:010"]
["Whoever disbelieves-let not his disbelief sadden you. To Us is their return. Then We will inform them of what they did. God knows what lies within the hearts.","S.032:023"]
["We give them a little comfort; then We compel them to a harsh torment.","S.032:024"]
["Had We willed, We could have given every soul its guidance, but the declaration from Me will come true: \"I will fill Hell with jinn and humans, altogether.\"","S.033:013"]
["So taste, because you forgot the meeting of this Day of yours; We have forgotten you; so taste the eternal torment for what you used to do.","S.033:014"]
["Who is more wrong than he, who, when reminded of his Lord's revelations, turns away from them? We will certainly wreak vengeance upon the criminals.","S.033:022"]
["We gave Moses the Book; so do not be in doubt regarding His encounter; and We made it a guidance for the Children of Israel.","S.033:023"]
["And We appointed leaders from among them, guiding by Our command, as long as they persevered and were certain of Our communications.","S.033:024"]
["Is it not a lesson for them, how many generations We have destroyed before them, in whose habitations they walk? Surely in that are signs. Do they not hear?","S.033:026"]
["Do they not see how We conduct the water to a dry land, and with it We produce vegetation, from which their livestock eat, and themselves? Do they not see?","S.033:027"]
["Recall that We received a pledge from the prophets, and from you, and from Noah, and Abraham, and Moses, and Jesus son of Mary. We received from them a solemn pledge.","S.034:007"]
["O you who believe! Remember God's blessings upon you, when forces came against you, and We sent against them a wind, and forces you did not see. God is Observant of what you do.","S.034:009"]
["But whoever of you remains obedient to God and His Messenger, and acts righteously, We will give her a double reward; and We have prepared for her a generous provision.","S.034:031"]
["When you said to him whom God had blessed, and you had favored, \"Keep your wife to yourself, and fear God.\" But you hid within yourself what God was to reveal. And you feared the people, but it was God you were supposed to fear. Then, when Zaid ended his relationship with her, We gave her to you in marriage, that there may be no restriction for believers regarding the wives of their adopted sons, when their relationship has ended. The command of God was fulfilled.","S.034:037"]
["O prophet! We have sent you as a witness, and a bearer of good news, and a warner.","S.034:045"]
["O Prophet! We have permitted to you your wives to whom you have given their dowries, and those you already have, as granted to you by God, and the daughters of your paternal uncle, and the daughters of your paternal aunts, and the daughters of your maternal uncle, and the daughters of your maternal aunts who emigrated with you, and a believing woman who has offered herself to the Prophet, if the Prophet desires to marry her, exclusively for you, and not for the believers. We know what We have ordained for them regarding their wives and those their right-hands possess. This is to spare you any difficulty. God is FORGIVING AND MERCIFUL.","S.034:050"]
["If the hypocrites, and those with sickness in their hearts, and the rumormongers in the City, do not desist, We will incite you against them; then they will not be your neighbors there except for a short while.","S.034:060"]
["Do they not reflect upon what lies before them and behind them, of the heaven and the earth? If We will, We can make the earth cave in beneath them, or make pieces of the sky fall down on them. In that is a sign for every devout servant.","S.035:009"]
["We bestowed upon David favor from Us: \"O mountains, and birds: echo with him.\" And We softened iron for him.","S.035:010"]
["And for Solomon the wind-its outward journey was one month, and its return journey was one month. And We made a spring of tar flow for him. And there were sprites that worked under him, by the leave of his Lord. But whoever of them swerved from Our command, We make him taste of the punishment of the Inferno.","S.035:012"]
["Then, when We decreed death for him, nothing indicated his death to them except an earthworm eating at his staff. Then, when he fell down, it became clear to the sprites that, had they known the unseen, they would not have remained in the demeaning torment.","S.035:014"]
["But they turned away, so We unleashed against them the flood of the dam; and We substituted their two gardens with two gardens of bitter fruits, thorny shrubs, and meager harvest.","S.035:016"]
["We thus penalized them for their ingratitude. Would We penalize any but the ungrateful?","S.035:017"]
["Between them and the towns We had blessed, We placed prominent towns, and We made the travel between them easy. \"Travel between them by night and day, in safety.\"","S.035:018"]
["But they said, \"Our Lord, lengthen the distances of our journeys.\" They wronged themselves; so We made them history, and We scattered them in every direction. In this are lessons for every steadfast and appreciative person.","S.035:019"]
["He had no authority over them; except that We willed to distinguish him who believes in the Hereafter, from him who is doubtful about it. Your Lord is Guardian over all things.","S.035:021"]
["And those who were oppressed will say to those who were arrogant, \"It was your scheming by night and day; as you instructed us to reject God, and to set up rivals to Him.\" They will hide their remorse when they see the retribution. We will put yokes around the necks of those who disbelieved. Will they be repaid for anything other than what they used to do?","S.035:033"]
["Today, none of you has the power to profit or harm the other. And We will say to those who did wrong, \"Taste the agony of the Fire which you used to deny.\"","S.035:042"]
["But We gave them no book to study, and We did not send them any warner before you.","S.035:044"]
["Those before them also denied the Truth, yet they have not attained one-tenth of what We had given them. They rejected My messengers, so how was My disapproval?","S.035:045"]
["God is He who sends the winds, which agitate clouds, which We drive to a dead land, and thereby revive the ground after it had died. Likewise is the Resurrection.","S.036:009"]
["Have you not seen that God sends down water from the sky? With it We produce fruits of various colors. And in the mountains are streaks of white and red-varying in their hue-and pitch-black.","S.036:027"]
["Those who recite the Book of God, and perform the prayer, and spend of what We have provided for them, secretly and publicly, expect a trade that will not fail.","S.036:029"]
["What We inspired in you, of the Book, is the truth, confirming what preceded it. God is Well-Informed of His servants, All-Seeing.","S.036:031"]
["Then We passed the Book to those of Our servants whom We chose. Some of them wrong their souls, and some follow a middle course, and some are in the foremost in good deeds by God's leave; that is the greatest blessing.","S.036:032"]
["As for those who disbelieve, for them is the Fire of Hell, wherein they will never be finished off and die, nor will its punishment be lightened for them. Thus We will repay every ingrate.","S.036:036"]
["And they will scream therein, \"Our Lord, let us out, and we will act righteously, differently from the way we used to act.\" Did We not give you a life long enough, in which anyone who wanted to understand would have understood? And the warner did come to you. So taste. The evildoers will have no helper.","S.036:037"]
["Say, \"Have you considered those partners of yours that you worship instead of God? Show me what they have created on earth. Or do they have any share in the heavens?\" Or have We given them a book whose clear teachings they follow? In fact, the wrongdoers promise one another nothing but delusions.","S.036:040"]
["And We placed a barrier in front of them, and a barrier behind them, and We have enshrouded them, so they cannot see.","S.037:009"]
["It is We who revive the dead; and We write down what they have forwarded, and their traces. We have tallied all things in a Clear Record.","S.037:012"]
["We sent them two messengers, but they denied them both, so We reinforced them with a third. They said, \"We are messengers to you.\"","S.037:014"]
["After him, We sent down no hosts from heaven to his people; nor would We ever send any down.","S.037:028"]
["Have they not considered how many generations We destroyed before them; and that unto them they will not return?","S.037:031"]
["And there is a sign for them in the dead land: We give it life, and produce from it grains from which they eat.","S.037:033"]
["And We place in it gardens of palm-trees and vines, and cause springs to gush out of it.","S.037:034"]
["Another sign for them is the night: We strip the day out of it-and they are in darkness.","S.037:037"]
["And the moon: We have disposed it in phases, until it returns like the old twig.","S.037:039"]
["Another sign for them is that We carried their offspring in the laden Ark.","S.037:041"]
["And We created for them the like of it, in which they ride.","S.037:042"]
["If We will, We can drown them-with no screaming to be heard from them, nor will they be saved.","S.037:043"]
["On this Day, We will seal their mouths, and their hands will speak to Us, and their feet will testify to everything they had done.","S.037:065"]
["If We will, We can blind their eyes as they rush towards the path-but how will they see?","S.037:066"]
["And if We will, We can cripple them in their place; so they can neither move forward, nor go back.","S.037:067"]
["Whomever We grant old age, We reverse his development. Do they not understand?","S.037:068"]
["Have they not seen that We created for them, of Our Handiwork, livestock that they own?","S.037:071"]
["And We subdued them for them. Some they ride, and some they eat.","S.037:072"]
["So let their words not sadden you. We know what they conceal, and what they reveal.","S.037:076"]
["Does the human being not consider that We created him from a seed? Yet he becomes a fierce adversary.","S.037:077"]
["Inquire of them, \"Are they more difficult to create, or the others We created?\" We created them from sticky clay.","S.038:011"]
["The Word of our Lord has been realized against us. We are tasting it.","S.038:031"]
["We seduced you. We were seducers.\"","S.038:032"]
["Thus We deal with the sinners.","S.038:034"]
["Even though We sent messengers to warn them.","S.038:072"]
["And Noah called out to Us, and We are the Best of responders.","S.038:075"]
["And We saved him and his family from the great calamity.","S.038:076"]
["And We made his descendants the survivors.","S.038:077"]
["And We left mention of him among those who succeeded.","S.038:078"]
["Then We drowned the others.","S.038:082"]
["They wished him ill, but We made them the losers.","S.038:098"]
["So We gave him good news of a clement boy.","S.038:101"]
["You have fulfilled the vision.\" Thus We reward the doers of good.","S.038:105"]
["And We redeemed him with a great sacrifice.","S.038:107"]
["And We left with him for later generations.","S.038:108"]
["Thus We reward the doers of good.","S.038:110"]
["And We gave him good news of Isaac, a prophet, one of the righteous.","S.038:112"]
["And We blessed him, and Isaac. But among their descendants are some who are righteous, and some who are clearly unjust to themselves.","S.038:113"]
["And We blessed Moses and Aaron.","S.038:114"]
["And We delivered them and their people from the terrible disaster.","S.038:115"]
["And We supported them, and so they were the victors.","S.038:116"]
["And We gave them the Clarifying Scripture.","S.038:117"]
["And We guided them upon the straight path.","S.038:118"]
["And We left with them for later generations.","S.038:119"]
["Thus We reward the righteous.","S.038:121"]
["And We left with him for later generations.","S.038:129"]
["Thus We reward the virtuous.","S.038:131"]
["Then We annihilated the others.","S.038:136"]
["Then We threw him into the wilderness, and he was sick.","S.038:145"]
["And We made a gourd tree grow over him.","S.038:146"]
["Then We sent him to a hundred thousand, or more.","S.038:147"]
["And they believed, so We gave them enjoyment for a while.","S.038:148"]
["Or did We create the angels females, as they witnessed?\"","S.038:150"]
["How many generations have We destroyed before them? They cried out when it was too late to escape.","S.039:003"]
["And We strengthened his kingdom, and gave him wisdom and decisive speech.","S.039:020"]
["He said, \"He has done you wrong by asking your ewe in addition to his ewes. Many partners take advantage of one another, except those who believe and do good deeds, but these are so few.\" David realized that We were testing him, so he sought forgiveness from his Lord, and fell down to his knees, and repented.","S.039:024"]
["So We forgave him that. And for him is nearness to Us, and a good place of return.","S.039:025"]
["O David, We made you a ruler in the land, so judge between the people with justice, and do not follow desire, lest it diverts you from God's path. Those who stray from God's path will have a painful punishment, for having ignored the Day of Account.","S.039:026"]
["Or are We to treat those who believe and do righteous deeds like those who make trouble on earth? Or are We to treat the pious like the shameless?","S.039:028"]
["A blessed Book that We sent down to you, that they may ponder its Verses, and for those with intelligence to take heed.","S.039:029"]
["And We granted David, Solomon, an excellent servant. He was penitent.","S.039:030"]
["So We placed the wind at his service, blowing gently by his command, wherever he directed.","S.039:036"]
["And We restored his family for him, and their like with them; as a mercy from Us, and a lesson for those who possess insight.","S.039:043"]
["Take with your hand a bundle, and strike with it, and do not break your oath. We found him patient. What an excellent servant! He was obedient.","S.039:044"]
["When adversity touches the human being, he calls on Us. But then, when We favor him with a blessing from Us, he says, \"I have attained this by virtue of my knowledge.\" However, it is a test, but most of them do not know.","S.040:049"]
["We sent Moses with Our signs, and a clear authority.","S.041:023"]
["Most surely We will support Our messengers and those who believe, in this life, and on the Day the witnesses arise.","S.041:051"]
["Those who call the Book a lie, and what We sent Our messengers with-they will surely know.","S.041:070"]
["So be patient. The promise of God is true. Whether We show you some of what We have promised them, or take you to Us, to Us they will be returned.","S.041:077"]
["We sent messengers before you. Some of them We told you about, and some We did not tell you about. No messenger can bring a miracle except by leave of God. Then, when the command of God is issued, fair judgment will be passed, and there and then the seekers of vanity will lose.","S.041:078"]
["Then, when they witnessed Our might, they said, \"We believe in God alone, and we reject what we used to associate with Him.\"","S.041:084"]
["So He completed them as seven universes in two days, and He assigned to each universe its laws. And We decorated the lower universe with lamps, and for protection. That is the design of the Almighty, the All-Knowing.","S.042:012"]
["So We unleashed upon them a screaming wind, for a few miserable days, to make them taste the punishment of shame in this life; but the punishment of the Hereafter is more shameful; and they will not be saved.","S.042:016"]
["And as for Thamood, We guided them, but they preferred blindness over guidance. So the thunderbolt of the humiliating punishment seized them, because of what they used to earn.","S.042:017"]
["And We saved those who believed and were righteous.","S.042:018"]
["We will make those who disbelieve taste an intense agony, and We will recompense them according to the worst of what they used to do.","S.042:027"]
["And of His signs is that you see the land still. But when We send down water upon it, it stirs and grows. Surely, He Who revived it will revive the dead. He is Able to do all things.","S.042:039"]
["We gave Moses the Book, but disputes arose concerning it. Were it not for a prior decree from your Lord, judgment would have been pronounced between them. But they are in perplexing doubt concerning it.","S.042:045"]
["And when We let him taste a mercy from Us, after the adversity that had afflicted him, he will say, \"This is mine, and I do not think that the Hour is coming; and even if I am returned to my Lord, I will have the very best with Him.\" We will inform those who disbelieve of what they did, and We will make them taste an awful punishment.","S.042:050"]
["When We provide comfort for the human being, he withdraws and distances himself; but when adversity befalls him, he starts lengthy prayers.","S.042:051"]
["We will show them Our proofs on the horizons, and in their very souls, until it becomes clear to them that it is the truth. Is it not sufficient that your Lord is witness over everything?","S.042:053"]
["He prescribed for you the same religion He enjoined upon Noah, and what We inspired to you, and what We enjoined upon Abraham, and Moses, and Jesus: \"You shall uphold the religion, and be not divided therein.\" As for the idolaters, what you call them to is outrageous to them. God chooses to Himself whom He wills, and He guides to Himself whoever repents.","S.043:013"]
["To this go on inviting, and be upright as you were commanded, and do not follow their inclinations, and say, \"I believe in whatever Book God has sent down, and I was commanded to judge between you equitably. God is our Lord and your Lord. We have our deeds, and you have your deeds. Let there be no quarrel between us and you. God will bring us together, and to Him is the ultimate return.\"","S.043:015"]
["Whoever desires the harvest of the Hereafter, We increase for him his harvest; and whoever desires the harvest of this world, We give him thereof, and he has no share of the Hereafter.","S.043:020"]
["That is the good news God gives to His servants who believe and do good deeds. Say, \"I ask of you no wage for it, except affection among the near of kin.\" Whoever does a good deed, We will increase its goodness for him. God is Forgiving and Appreciative.","S.043:023"]
["And those who respond to their Lord, and pray regularly, and conduct their affairs by mutual consultation, and give of what We have provided them.","S.043:038"]
["But if they turn away-We did not send you as a guardian over them. Your only duty is communication. Whenever We let man taste mercy from Us, he rejoices in it; but when misfortune befalls them, as a consequence of what their hands have perpetrated, man turns blasphemous.","S.043:048"]
["We thus inspired you spiritually, by Our command. You did not know what the Scripture is, nor what faith is, but We made it a light, with which We guide whomever We will of Our servants. You surely guide to a straight path.","S.043:052"]
["Shall We hold back the Reminder from you, since you are a transgressing people?","S.044:005"]
["How many a prophet did We send to the ancients?","S.044:006"]
["He who sends down water from the sky in due proportion; and so We revive thereby a dead land. Thus you will be brought out.","S.044:011"]
["Or have We given them a book prior to this one, to which they adhere?","S.044:021"]
["Likewise, We sent no warner before you to any town, but the wealthy among them said, \"We found our parents on a course, and we are following in their footsteps.\"","S.044:023"]
["So We wreaked vengeance upon them. Behold, then, what was the fate of those who deny.","S.044:025"]
["Is it they who allocate the mercy of your Lord? It is We who have allocated their livelihood in this life, and We elevated some of them in rank above others, that some of them would take others in service. But your Lord's mercy is better than what they amass.","S.044:032"]
["Were it not that humanity would become a single community, We would have provided those who disbelieve in the Most Gracious with roofs of silver to their houses, and stairways by which they ascend.","S.044:033"]
["Whoever shuns the remembrance of the Most Gracious, We assign for him a devil, to be his companion.","S.044:036"]
["Even if We take you away, We will wreak vengeance upon them.","S.044:041"]
["Or show you what We have promised them; for We have absolute power over them.","S.044:042"]
["Ask those of Our messengers We sent before you: \"Did We appoint gods besides the Most Gracious to be worshiped?\"","S.044:045"]
["We sent Moses with Our revelations to Pharaoh and his dignitaries. He said, \"I am the Messenger of the Lord of the Worlds.\"","S.044:046"]
["Each sign We showed them was more marvelous than its counterpart. And We afflicted them with the plagues, so that they may repent.","S.044:048"]
["But when We lifted the torment from them, they immediately broke their promise.","S.044:050"]
["And when they provoked Our wrath, We took retribution from them, and We drowned them all.","S.044:055"]
["Thus We made them a precedent and an example for the others.","S.044:056"]
["He was just a servant whom We blessed, and We made him an example for the Children of Israel.","S.044:059"]
["Had We willed, We would have made of you angels to be successors on earth.","S.044:060"]
["Have they contrived some scheme? We too are contriving.","S.044:079"]
["Or do they think that We cannot hear their secrets and their conspiracies? Yes indeed, Our messengers are by them, writing down.","S.044:080"]
["A decree from Us. We have been sending messages.","S.045:005"]
["The Day when We launch the Great Assault-We will avenge.","S.045:016"]
["Before them We tested the people of Pharaoh; a noble messenger came to them.","S.045:017"]
["So it was; and We passed it on to another people.","S.045:028"]
["And We delivered the Children of Israel from the humiliating persecution.","S.045:030"]
["And We chose them knowingly over all other people.","S.045:032"]
["And We gave them many signs, in which was an obvious test.","S.045:033"]
["Are they better, or the people of Tubba and those before them? We annihilated them. They were evildoers.","S.045:037"]
["So it is, and We will wed them to lovely companions.","S.045:054"]
["These are God's Verses which We recite to you in truth. In which message, after God and His revelations, will they believe?","S.046:006"]
["We gave the Children of Israel the Book, and wisdom, and prophecy; and We provided them with the good things; and We gave them advantage over all other people.","S.046:016"]
["And We gave them precise rulings. They fell into dispute only after knowledge came to them, out of mutual rivalry. Your Lord will judge between them on the Day of Resurrection regarding the things they differed about.","S.046:017"]
["Then We set you upon a pathway of faith, so follow it, and do not follow the inclinations of those who do not know.","S.046:018"]
["Do those who perpetrate the evil deeds assume that We will regard them as equal to those who believe and do righteous deeds, whether in their life or their death? Evil is their judgment!","S.046:021"]
["This Book of Ours speaks about you in truth. We have been transcribing what you have been doing.\"","S.046:029"]
["And it will be said, \"Today We forget you, as you forgot the encounter of this Day of yours. Your abode is the Fire, and there are no saviors for you.","S.046:034"]
["Those are they from whom We accept the best of their deeds, and We overlook their misdeeds, among the dwellers of Paradise-the promise of truth which they are promised.","S.047:016"]
["It will destroy everything by the command of its Lord. And when the morning came upon them, there was nothing to be seen except their dwellings. Thus We requite the guilty people.","S.047:025"]
["We had empowered them in the same way as We empowered you; and We gave them the hearing, and the sight, and the minds. But neither their hearing, nor their sight, nor their minds availed them in any way. That is because they disregarded the revelations of God; and so they became surrounded by what they used to ridicule.","S.047:026"]
["How many a town was more powerful than your town which evicted you? We destroyed them, and there was no helper for them.","S.048:013"]
["Had We willed, We could have shown them to you, and you would have recognized them by their marks. Yet you will recognize them by their tone of speech. And God knows your actions.","S.048:030"]
["We will certainly test you, until We know those among you who strive, and those who are steadfast, and We will test your reactions.","S.048:031"]
["It is they who disbelieved, and barred you from the Sacred Mosque, and prevented the offering from reaching its destination. Were it not for faithful men and faithful women, whom you did not know, you were about to hurt them, and became guilty of an unintentional crime. Thus God admits into His mercy whomever He wills. Had they dispersed, We would have punished those who disbelieved among them with a painful penalty.","S.049:025"]
["O people! We created you from a male and a female, and made you races and tribes, that you may know one another. The best among you in the sight of God is the most righteous. God is All-Knowing, Well-Experienced.","S.050:013"]
["We know what the earth consumes of them, and with Us is a comprehensive book.","S.051:004"]
["Have they not observed the sky above them, how We constructed it, and decorated it, and it has no cracks?","S.051:006"]
["And the earth, how We spread it out, and set on it mountains, and grew in it all kinds of delightful pairs?","S.051:007"]
["And We brought down from the sky blessed water, and produced with it gardens and grain to harvest.","S.051:009"]
["As sustenance for the servants. And We revive thereby a dead town. Likewise is the resurrection.","S.051:011"]
["Were We fatigued by the first creation? But they are in doubt of a new creation.","S.051:015"]
["We created the human being, and We know what his soul whispers to him. We are nearer to him than his jugular vein.","S.051:016"]
["You were in neglect of this, so We lifted your screen from you, and your vision today is keen.","S.051:022"]
["On the Day when We will say to Hell, \"Are you full?\" And it will say, \"Are there any more?\"","S.051:030"]
["Therein they will have whatever they desire-and We have even more.","S.051:035"]
["How many generations before them, who were more powerful than they, did We destroy? They explored the lands-was there any escape?","S.051:036"]
["We created the heavens and the earth and what is between them in six days, and no fatigue touched Us.","S.051:038"]
["It is We who control life and death, and to Us is the destination.","S.051:043"]
["And We left in it a sign for those who fear the painful punishment.","S.052:037"]
["And in Moses. We sent him to Pharaoh with a clear authority.","S.052:038"]
["So We seized him and his troops, and threw them into the sea, and He was to blame.","S.052:040"]
["And in Aad. We unleashed against them the devastating wind.","S.052:041"]
["We constructed the universe with power, and We are expanding it.","S.052:047"]
["And the earth-We spread it out-How well We prepared it!","S.052:048"]
["Relaxing on luxurious furnishings; and We will couple them with gorgeous spouses.","S.053:020"]
["Those who believed and their offspring followed them in faith-We will unite them with their offspring, and We will not deprive them of any of their works. Every person is hostage to what he has earned.","S.053:021"]
["And We will supply them with fruit, and meat; such as they desire.","S.053:022"]
["So We opened the floodgates of heaven with water pouring down.","S.055:011"]
["And We made the earth burst with springs, and the waters met for a purpose already destined.","S.055:012"]
["And We carried him on a craft of planks and nails.","S.055:013"]
["And We left it as a sign. Is there anyone who would take heed?","S.055:015"]
["They said, \"Are we to follow one of us, a human being? We would then go astray, and end up in Hell.","S.055:024"]
["We unleashed upon them a shower of stones, except for the family of Lot; We rescued them at dawn.","S.055:034"]
["A blessing from Us. Thus We reward the thankful.","S.055:035"]
["They even lusted for his guest, so We obliterated their eyes. \"So taste My punishment and My warnings.\"","S.055:037"]
["They rejected Our signs, all of them, so We seized them-the seizure of an Almighty Omnipotent.","S.055:042"]
["Everything We created is precisely measured.","S.055:049"]
["Is it you who create it, or are We the Creator?","S.057:059"]
["We have decreed death among you, and We will not be outstripped.","S.057:060"]
["Is it you who make it grow, or are We the Grower?","S.057:064"]
["If We will, We can turn it into rubble; then you will lament.","S.057:065"]
["Is it you who sent it down from the clouds, or are We the Sender?","S.057:069"]
["If We will, We can make it salty. Will you not be thankful?","S.057:070"]
["Is it you who produce its tree, or are We the Producer?","S.057:072"]
["Know that God revives the earth after its death. We thus explain the revelations for you, so that you may understand.","S.058:017"]
["No calamity occurs on earth, or in your souls, but it is in a Book, even before We make it happen. That is easy for God.","S.058:022"]
["We sent Our messengers with the clear proofs, and We sent down with them the Book and the Balance, that humanity may uphold justice. And We sent down iron, in which is violent force, and benefits for humanity. That God may know who supports Him and His messengers invisibly. God is Strong and Powerful.","S.058:025"]
["Then We sent in their wake Our messengers, and followed up with Jesus son of Mary, and We gave him the Gospel, and instilled in the hearts of those who followed him compassion and mercy. But as for the monasticism which they invented-We did not ordain it for them-only to seek God's approval. But they did not observe it with its due observance. So We gave those of them who believed their reward, but many of them are sinful.","S.058:027"]
["Those who oppose God and His Messenger will be subdued, as those before them were subdued. We have revealed clear messages. The unbelievers will have a demeaning punishment.","S.059:005"]
["You have had an excellent example in Abraham and those with him; when they said to their people, \"We are quit of you, and what you worship apart from God. We denounce you. Enmity and hatred has surfaced between us and you, forever, until you believe in God alone.\" Except for the words of Abraham to his father, \"I will ask forgiveness for you, though I have no power from God to do anything for you.\" \"Our Lord, in You we trust, and to You we repent, and to You is the ultimate resort.","S.061:004"]
["O you who believe! Be supporters of God, as Jesus son of Mary said to the disciples, \"Who are my supporters towards God?\" The disciples said, \"We are God's supporters.\" So a group of the Children of Israel believed, while another group disbelieved. We supported those who believed against their foe, so they became dominant.","S.062:014"]
["And give from what We have provided for you, before death approaches one of you, and he says, \"My Lord, if only You would delay me for a short while, so that I may be charitable, and be one of the righteous.\"","S.064:010"]
["So believe in God and His Messenger, and the Light which We sent down. God is Aware of everything you do.","S.065:008"]
["How many a town defied the command of its Lord and His messengers? So We held it strictly accountable, and We punished it with a dreadful punishment.","S.066:008"]
["And Mary, the daughter of Imran, who guarded her womb, and so We breathed into her of Our Spirit; and she believed in the truth of her Lord's Words and His Books, and was one of the devout.","S.067:012"]
["We have adorned the lower heaven with lanterns, and made them missiles against the devils; and We have prepared for them the punishment of the Blaze.","S.068:005"]
["Say, \"He is the Compassionate. We have faith in Him, and in Him we trust. Soon you will know who is in evident error.\"","S.068:029"]
["We tested them, as We tested the owners of the garden, when they vowed to harvest it in the morning.","S.069:017"]
["Perhaps our Lord will give us a better substitute for it. We are turning to our Lord.\"","S.069:032"]
["Shall We treat the Muslims like the villains?","S.069:035"]
["So leave Me to those who reject this discourse; We will proceed against them gradually, from where they do not know.","S.069:044"]
["When the waters overflowed, We carried you in the cruising ship.","S.070:011"]
["And We know that some of you will reject it.","S.070:049"]
["But We see it near.","S.071:007"]
["No indeed! We created them from what they know.","S.071:039"]
["I swear by the Lord of the Easts and the Wests, that We are Able.","S.071:040"]
["To replace them with better than they, and We are not to be outdone.","S.071:041"]
["Had they kept true to the Path, We would have given them plenty water to drink.","S.073:016"]
["We have sent to you a messenger, a witness over you, as We sent to Pharaoh a messenger.","S.074:015"]
["But Pharaoh defied the Messenger, so We seized him with a terrible seizing.","S.074:016"]
["Does man think that We will not reassemble his bones?","S.076:003"]
["Yes indeed; We are Able to reconstruct his fingertips.","S.076:004"]
["Then, when We have recited it, follow its recitation.","S.076:018"]
["We created man from a liquid mixture, to test him; and We made him hearing and seeing.","S.077:002"]
["We only feed you for the sake of God. We want from you neither compensation, nor gratitude.","S.077:009"]
["We created them, and strengthened their frame; and whenever We will, We can replace them with others like them.","S.077:028"]
["Did We not destroy the ancients?","S.078:016"]
["This is how We deal with the guilty.","S.078:018"]
["Did We not create you from an insignificant fluid?","S.078:020"]
["We measured precisely. We are the best to measure.","S.078:023"]
["Did We not make the earth a homestead?","S.078:025"]
["This is the Day of Separation; We have gathered you, together with the ancients.","S.078:038"]
["This is how We reward the doers of good.","S.078:044"]
["Did We not make the earth a cradle?","S.079:006"]
["But We have enumerated everything in writing.","S.079:029"]
["So taste! We will increase you only in suffering.","S.079:030"]
["Did We not give him two eyes?","S.091:008"]
["And We showed him the two ways?","S.091:010"]
["Did We not soothe your heart?","S.095:001"]
["No. If he does not desist, We will drag him by the forelock.","S.097:015"]